Workbook

Sheet TEOS-10 Test Data
A1: Longitude | B1: 162.5
A2: Latitude | B2: 33
A3: Conductivity | B3: p | C3: SP | D3: temp ITS-90 | E3: temp IPTS-68 | F3: SP from C | G3: SR | H3: delta SA Atlas | I3: SAAR Atlas | J3: delta SA | K3: Absolute Salinity (SA) | L3: t ITS-90 | M3: Potential t | N3: Conservative Temperature (Θ) | O3: Potential Density ( σΘ ) | P3: In situ Density (ρSA, Θ, p) | Q3: Sound Speed (c)
A4: (mS cm-1) | B4: (dbar) | D4: (ºC) | E4: (ºC) | G4: (g kg-1) | H4: (g kg-1) | I4: (g kg-1) | J4: (g kg-1) | K4: (g kg-1) | L4: (ºC) | M4: (ºC) | N4: (ºC) | O4: (kg m-3 - 1000) | P4: (kg m-3) | Q4: (m s-1)
B5: 0 | C5: 34.57586 | D5: 19.50761 | F5: =IF(C5 ="",SP_from_C(A5,L5,B5),C5) -> 34.57586 | G5: =(35.16504/35)*F5 -> 34.7389 | H5: =LookUp_atlas("deltaSA_ref",B5,$B$1,$B$2) -> 0.000327101505 | I5: =LookUp_atlas("SAAR_ref",B5,$B$1,$B$2) -> 9.410246618e-06 | J5: =IF(is_Baltic($B$1,$B$2)=1,"Baltic",G5*I5) -> 0.0003269016162 | K5: =IF(is_Baltic($B$1,$B$2)=1,SA_Baltic(F5),G5+J5) -> 34.7392269 | L5: =IF(D5 ="",E5/1.00024,D5) -> 19.50761 | M5: =pt0_from_t(K5,L5,B5) -> 19.50761 | N5: =CT_from_pt(K5,M5) -> 19.51302026 | O5: =sigma0(K5,N5) -> 24.57087912 | P5: =rho(K5,N5,B5) -> 1024.570879 | Q5: =Sound_Speed(K5,N5,B5) -> 1519.553658
B6: 10 | C6: 34.74774 | D6: 20.0083 | F6: =IF(C6 ="",SP_from_C(A6,L6,B6),C6) -> 34.74774 | G6: =(35.16504/35)*F6 -> 34.91159049 | H6: =LookUp_atlas("deltaSA_ref",B6,$B$1,$B$2) -> 0.0003392317575 | I6: =LookUp_atlas("SAAR_ref",B6,$B$1,$B$2) -> 9.773385523e-06 | J6: =IF(is_Baltic($B$1,$B$2)=1,"Baltic",G6*I6) -> 0.000341204433 | K6: =IF(is_Baltic($B$1,$B$2)=1,SA_Baltic(F6),G6+J6) -> 34.91193169 | L6: 20.0083 | M6: =pt0_from_t(K6,L6,B6) -> 20.00645861 | N6: =CT_from_pt(K6,M6) -> 20.00724537 | O6: =sigma0(K6,N6) -> 24.57163618 | P6: =rho(K6,N6,B6) -> 1024.61485 | Q6: =Sound_Speed(K6,N6,B6) -> 1521.298463
B7: 20 | C7: 34.67881 | D7: 19.13378 | F7: =IF(C7 ="",SP_from_C(A7,L7,B7),C7) -> 34.67881 | G7: 34.84233545 | H7: =LookUp_atlas("deltaSA_ref",B7,$B$1,$B$2) -> 0.0003335219 | I7: =LookUp_atlas("SAAR_ref",B7,$B$1,$B$2) -> 9.747636148e-06 | J7: =IF(is_Baltic($B$1,$B$2)=1,"Baltic",G7*I7) -> 0.0003396304085 | K7: =IF(is_Baltic($B$1,$B$2)=1,SA_Baltic(F7),G7+J7) -> 34.84267508 | L7: 19.13378 | M7: =pt0_from_t(K7,L7,B7) -> 19.13021431 | N7: =CT_from_pt(K7,M7) -> 19.13193562 | O7: =sigma0(K7,N7) -> 24.74663494 | P7: =rho(K7,N7,B7) -> 1024.833339 | Q7: =Sound_Speed(K7,N7,B7) -> 1518.949438
B8: 30 | C8: 34.68279 | D8: 18.83432 | F8: =IF(C8 ="",SP_from_C(A8,L8,B8),C8) -> 34.68279 | G8: 34.84633422 | H8: =LookUp_atlas("deltaSA_ref",B8,$B$1,$B$2) -> 0.000375042687 | I8: =LookUp_atlas("SAAR_ref",B8,$B$1,$B$2) -> 1.05818711e-05 | J8: =IF(is_Baltic($B$1,$B$2)=1,"Baltic",G8*I8) -> 0.0003687394171 | K8: =IF(is_Baltic($B$1,$B$2)=1,SA_Baltic(F8),G8+J8) -> 34.84670296 | L8: 18.83432 | M8: =pt0_from_t(K8,L8,B8) -> 18.82903027 | N8: =CT_from_pt(K8,M8) -> 18.83023404 | O8: =sigma0(K8,N8) -> 24.82638652 | P8: =rho(K8,N8,B8) -> 1024.956574 | Q8: =Sound_Speed(K8,N8,B8) -> 1518.270366
B9: 40 | C9: 34.68397 | D9: 18.28816 | F9: =IF(C9 ="",SP_from_C(A9,L9,B9),C9) -> 34.68397 | G9: 34.84751978 | H9: =LookUp_atlas("deltaSA_ref",B9,$B$1,$B$2) -> 0.0003898003775 | I9: =LookUp_atlas("SAAR_ref",B9,$B$1,$B$2) -> 1.137676302e-05 | J9: =IF(is_Baltic($B$1,$B$2)=1,"Baltic",G9*I9) -> 0.0003964519743 | K9: =IF(is_Baltic($B$1,$B$2)=1,SA_Baltic(F9),G9+J9) -> 34.84791624 | L9: 18.28816 | M9: =pt0_from_t(K9,L9,B9) -> 18.28125191 | N9: =CT_from_pt(K9,M9) -> 18.28173497 | O9: =sigma0(K9,N9) -> 24.9647743 | P9: =rho(K9,N9,B9) -> 1025.138697 | Q9: =Sound_Speed(K9,N9,B9) -> 1516.871212
B10: 50 | C10: 34.68861 | D10: 17.89383 | F10: =IF(C10 ="",SP_from_C(A10,L10,B10),C10) -> 34.68861 | G10: 34.85218166 | H10: =LookUp_atlas("deltaSA_ref",B10,$B$1,$B$2) -> 0.0004303118502 | I10: =LookUp_atlas("SAAR_ref",B10,$B$1,$B$2) -> 1.293165735e-05 | J10: =IF(is_Baltic($B$1,$B$2)=1,"Baltic",G10*I10) -> 0.000450696471 | K10: =IF(is_Baltic($B$1,$B$2)=1,SA_Baltic(F10),G10+J10) -> 34.85263236 | L10: 17.89383 | M10: =pt0_from_t(K10,L10,B10) -> 17.88532531 | N10: =CT_from_pt(K10,M10) -> 17.88520658 | O10: =sigma0(K10,N10) -> 25.0660941 | P10: =rho(K10,N10,B10) -> 1025.283802 | Q10: =Sound_Speed(K10,N10,B10) -> 1515.896222
B11: 76 | C11: 34.69963 | D11: 17.05615 | F11: =IF(C11 ="",SP_from_C(A11,L11,B11),C11) -> 34.69963 | G11: 34.86325363 | H11: =LookUp_atlas("deltaSA_ref",B11,$B$1,$B$2) -> 0.0005691950773 | I11: =LookUp_atlas("SAAR_ref",B11,$B$1,$B$2) -> 1.621901002e-05 | J11: =IF(is_Baltic($B$1,$B$2)=1,"Baltic",G11*I11) -> 0.0005654474598 | K11: =IF(is_Baltic($B$1,$B$2)=1,SA_Baltic(F11),G11+J11) -> 34.86381907 | L11: 17.05615 | M11: =pt0_from_t(K11,L11,B11) -> 17.04364413 | N11: =CT_from_pt(K11,M11) -> 17.04230832 | O11: =sigma0(K11,N11) -> 25.277795 | P11: =rho(K11,N11,B11) -> 1025.609696 | Q11: =Sound_Speed(K11,N11,B11) -> 1513.862719
B12: 101 | C12: 34.69791 | D12: 16.49231 | F12: =IF(C12 ="",SP_from_C(A12,L12,B12),C12) -> 34.69791 | G12: 34.86152552 | H12: =LookUp_atlas("deltaSA_ref",B12,$B$1,$B$2) -> 0.0006965125282 | I12: =LookUp_atlas("SAAR_ref",B12,$B$1,$B$2) -> 1.977926595e-05 | J12: =IF(is_Baltic($B$1,$B$2)=1,"Baltic",G12*I12) -> 0.0006895353845 | K12: =IF(is_Baltic($B$1,$B$2)=1,SA_Baltic(F12),G12+J12) -> 34.86221505 | L12: 16.49231 | M12: =pt0_from_t(K12,L12,B12) -> 16.47606671 | N12: =CT_from_pt(K12,M12) -> 16.47422988 | O12: =sigma0(K12,N12) -> 25.41001126 | P12: =rho(K12,N12,B12) -> 1025.851966 | Q12: =Sound_Speed(K12,N12,B12) -> 1512.574099
B13: 126 | C13: 34.71489 | D13: 16.12846 | F13: =IF(C13 ="",SP_from_C(A13,L13,B13),C13) -> 34.71489 | G13: 34.87858558 | H13: =LookUp_atlas("deltaSA_ref",B13,$B$1,$B$2) -> 0.0008433418419 | I13: =LookUp_atlas("SAAR_ref",B13,$B$1,$B$2) -> 2.396069849e-05 | J13: =IF(is_Baltic($B$1,$B$2)=1,"Baltic",G13*I13) -> 0.0008357152728 | K13: =IF(is_Baltic($B$1,$B$2)=1,SA_Baltic(F13),G13+J13) -> 34.8794213 | L13: 16.12846 | M13: =pt0_from_t(K13,L13,B13) -> 16.10849234 | N13: =CT_from_pt(K13,M13) -> 16.10587465 | O13: =sigma0(K13,N13) -> 25.5080441 | P13: =rho(K13,N13,B13) -> 1026.060043 | Q13: =Sound_Speed(K13,N13,B13) -> 1511.894666
B14: 151 | C14: 34.68967 | D14: 15.68431 | F14: =IF(C14 ="",SP_from_C(A14,L14,B14),C14) -> 34.68967 | G14: 34.85324666 | H14: =LookUp_atlas("deltaSA_ref",B14,$B$1,$B$2) -> 0.001001694449 | I14: =LookUp_atlas("SAAR_ref",B14,$B$1,$B$2) -> 2.839614537e-05 | J14: =IF(is_Baltic($B$1,$B$2)=1,"Baltic",G14*I14) -> 0.0009896978587 | K14: =IF(is_Baltic($B$1,$B$2)=1,SA_Baltic(F14),G14+J14) -> 34.85423636 | L14: 15.68431 | M14: =pt0_from_t(K14,L14,B14) -> 15.66082656 | N14: =CT_from_pt(K14,M14) -> 15.65849832 | O14: =sigma0(K14,N14) -> 25.59047369 | P14: =rho(K14,N14,B14) -> 1026.253047 | Q14: =Sound_Speed(K14,N14,B14) -> 1510.906613
B15: 176 | C15: 34.65537 | D15: 15.24777 | F15: =IF(C15 ="",SP_from_C(A15,L15,B15),C15) -> 34.65537 | G15: 34.81878492 | H15: =LookUp_atlas("deltaSA_ref",B15,$B$1,$B$2) -> 0.001146533554 | I15: =LookUp_atlas("SAAR_ref",B15,$B$1,$B$2) -> 3.295885906e-05 | J15: =IF(is_Baltic($B$1,$B$2)=1,"Baltic",G15*I15) -> 0.001147587425 | K15: =IF(is_Baltic($B$1,$B$2)=1,SA_Baltic(F15),G15+J15) -> 34.81993251 | L15: 15.24777 | M15: =pt0_from_t(K15,L15,B15) -> 15.22091263 | N15: =CT_from_pt(K15,M15) -> 15.21911159 | O15: =sigma0(K15,N15) -> 25.66232361 | P15: =rho(K15,N15,B15) -> 1026.435825 | Q15: =Sound_Speed(K15,N15,B15) -> 1509.914876
B16: 202 | C16: 34.63723 | D16: 15.02876 | F16: =IF(C16 ="",SP_from_C(A16,L16,B16),C16) -> 34.63723 | G16: 34.80055938 | H16: =LookUp_atlas("deltaSA_ref",B16,$B$1,$B$2) -> 0.001306176088 | I16: =LookUp_atlas("SAAR_ref",B16,$B$1,$B$2) -> 3.832996775e-05 | J16: =IF(is_Baltic($B$1,$B$2)=1,"Baltic",G16*I16) -> 0.001333904319 | K16: =IF(is_Baltic($B$1,$B$2)=1,SA_Baltic(F16),G16+J16) -> 34.80189329 | L16: 15.02876 | M16: =pt0_from_t(K16,L16,B16) -> 14.99821931 | N16: =CT_from_pt(K16,M16) -> 14.99669838 | O16: =sigma0(K16,N16) -> 25.69747727 | P16: =rho(K16,N16,B16) -> 1026.585839 | Q16: =Sound_Speed(K16,N16,B16) -> 1509.630368
B17: 252 | C17: 34.58649 | D17: 14.44007 | F17: =IF(C17 ="",SP_from_C(A17,L17,B17),C17) -> 34.58649 | G17: 34.74958012 | H17: =LookUp_atlas("deltaSA_ref",B17,$B$1,$B$2) -> 0.001555687022 | I17: =LookUp_atlas("SAAR_ref",B17,$B$1,$B$2) -> 4.592949143e-05 | J17: =IF(is_Baltic($B$1,$B$2)=1,"Baltic",G17*I17) -> 0.001596030542 | K17: =IF(is_Baltic($B$1,$B$2)=1,SA_Baltic(F17),G17+J17) -> 34.75117615 | L17: 14.44007 | M17: =pt0_from_t(K17,L17,B17) -> 14.40294847 | N17: =CT_from_pt(K17,M17) -> 14.40222266 | O17: =sigma0(K17,N17) -> 25.78719034 | P17: =rho(K17,N17,B17) -> 1026.897702 | Q17: =Sound_Speed(K17,N17,B17) -> 1508.516409
B18: 303 | C18: 34.53391 | D18: 13.76216 | F18: =IF(C18 ="",SP_from_C(A18,L18,B18),C18) -> 34.53391 | G18: 34.69675219 | H18: =LookUp_atlas("deltaSA_ref",B18,$B$1,$B$2) -> 0.001918317195 | I18: =LookUp_atlas("SAAR_ref",B18,$B$1,$B$2) -> 5.669358522e-05 | J18: =IF(is_Baltic($B$1,$B$2)=1,"Baltic",G18*I18) -> 0.001967083277 | K18: =IF(is_Baltic($B$1,$B$2)=1,SA_Baltic(F18),G18+J18) -> 34.69871927 | L18: 13.76216 | M18: =pt0_from_t(K18,L18,B18) -> 13.71889294 | N18: =CT_from_pt(K18,M18) -> 13.7189146 | O18: =sigma0(K18,N18) -> 25.89051682 | P18: =rho(K18,N18,B18) -> 1027.229058 | Q18: =Sound_Speed(K18,N18,B18) -> 1507.094704
B19: 353 | C19: 34.44696 | D19: 12.58746 | F19: =IF(C19 ="",SP_from_C(A19,L19,B19),C19) -> 34.44696 | G19: 34.60939218 | H19: =LookUp_atlas("deltaSA_ref",B19,$B$1,$B$2) -> 0.002406799849 | I19: =LookUp_atlas("SAAR_ref",B19,$B$1,$B$2) -> 7.427739917e-05 | J19: =IF(is_Baltic($B$1,$B$2)=1,"Baltic",G19*I19) -> 0.002570695638 | K19: =IF(is_Baltic($B$1,$B$2)=1,SA_Baltic(F19),G19+J19) -> 34.61196288 | L19: 12.58746 | M19: =pt0_from_t(K19,L19,B19) -> 12.53989784 | N19: =CT_from_pt(K19,M19) -> 12.54107258 | O19: =sigma0(K19,N19) -> 26.06061476 | P19: =rho(K19,N19,B19) -> 1027.627526 | Q19: =Sound_Speed(K19,N19,B19) -> 1503.911194
B20: 404 | C20: 34.3741 | D20: 11.61051 | F20: =IF(C20 ="",SP_from_C(A20,L20,B20),C20) -> 34.3741 | G20: 34.53618861 | H20: =LookUp_atlas("deltaSA_ref",B20,$B$1,$B$2) -> 0.003092026444 | I20: =LookUp_atlas("SAAR_ref",B20,$B$1,$B$2) -> 0.000101116678 | J20: =IF(is_Baltic($B$1,$B$2)=1,"Baltic",G20*I20) -> 0.003492184663 | K20: =IF(is_Baltic($B$1,$B$2)=1,SA_Baltic(F20),G20+J20) -> 34.5396808 | L20: 11.61051 | M20: =pt0_from_t(K20,L20,B20) -> 11.55878933 | N20: =CT_from_pt(K20,M20) -> 11.56087576 | O20: =sigma0(K20,N20) -> 26.19146926 | P20: =rho(K20,N20,B20) -> 1027.991983 | Q20: =Sound_Speed(K20,N20,B20) -> 1501.322152
B21: 505 | C21: 34.17681 | D21: 8.998112 | F21: =IF(C21 ="",SP_from_C(A21,L21,B21),C21) -> 34.17681 | G21: 34.33796831 | H21: =LookUp_atlas("deltaSA_ref",B21,$B$1,$B$2) -> 0.004943227283 | I21: =LookUp_atlas("SAAR_ref",B21,$B$1,$B$2) -> 0.0001523542013 | J21: =IF(is_Baltic($B$1,$B$2)=1,"Baltic",G21*I21) -> 0.005231533736 | K21: =IF(is_Baltic($B$1,$B$2)=1,SA_Baltic(F21),G21+J21) -> 34.34319984 | L21: 8.998112 | M21: =pt0_from_t(K21,L21,B21) -> 8.942797861 | N21: =CT_from_pt(K21,M21) -> 8.9471117 | O21: =sigma0(K21,N21) -> 26.48859062 | P21: =rho(K21,N21,B21) -> 1028.765824 | Q21: =Sound_Speed(K21,N21,B21) -> 1493.382125
B22: 606 | C22: 34.04839 | D22: 6.567234 | F22: =IF(C22 ="",SP_from_C(A22,L22,B22),C22) -> 34.04839 | G22: 34.20894275 | H22: =LookUp_atlas("deltaSA_ref",B22,$B$1,$B$2) -> 0.007328918773 | I22: =LookUp_atlas("SAAR_ref",B22,$B$1,$B$2) -> 0.0002178806735 | J22: =IF(is_Baltic($B$1,$B$2)=1,"Baltic",G22*I22) -> 0.007453467487 | K22: =IF(is_Baltic($B$1,$B$2)=1,SA_Baltic(F22),G22+J22) -> 34.21639622 | L22: 6.567234 | M22: =pt0_from_t(K22,L22,B22) -> 6.511521631 | N22: =CT_from_pt(K22,M22) -> 6.516671192 | O22: =sigma0(K22,N22) -> 26.74172312 | P22: =rho(K22,N22,B22) -> 1029.506314 | Q22: =Sound_Speed(K22,N22,B22) -> 1485.590209
B23: 707 | C23: 34.05378 | D23: 5.180429 | F23: =IF(C23 ="",SP_from_C(A23,L23,B23),C23) -> 34.05378 | G23: 34.21435817 | H23: =LookUp_atlas("deltaSA_ref",B23,$B$1,$B$2) -> 0.01013451684 | I23: =LookUp_atlas("SAAR_ref",B23,$B$1,$B$2) -> 0.0002934317297 | J23: =IF(is_Baltic($B$1,$B$2)=1,"Baltic",G23*I23) -> 0.0100395783 | K23: =IF(is_Baltic($B$1,$B$2)=1,SA_Baltic(F23),G23+J23) -> 34.22439775 | L23: 5.180429 | M23: =pt0_from_t(K23,L23,B23) -> 5.122399462 | N23: =CT_from_pt(K23,M23) -> 5.126991509 | O23: =sigma0(K23,N23) -> 26.91962633 | P23: =rho(K23,N23,B23) -> 1030.165698 | Q23: =Sound_Speed(K23,N23,B23) -> 1481.692918
B24: 808 | C24: 34.13533 | D24: 4.453866 | F24: =IF(C24 ="",SP_from_C(A24,L24,B24),C24) -> 34.13533 | G24: 34.29629271 | H24: =LookUp_atlas("deltaSA_ref",B24,$B$1,$B$2) -> 0.01280156409 | I24: =LookUp_atlas("SAAR_ref",B24,$B$1,$B$2) -> 0.0003657104012 | J24: =IF(is_Baltic($B$1,$B$2)=1,"Baltic",G24*I24) -> 0.01254251097 | K24: =IF(is_Baltic($B$1,$B$2)=1,SA_Baltic(F24),G24+J24) -> 34.30883522 | L24: 4.453866 | M24: =pt0_from_t(K24,L24,B24) -> 4.391374516 | N24: =CT_from_pt(K24,M24) -> 4.394905681 | O24: =sigma0(K24,N24) -> 27.06773178 | P24: =rho(K24,N24,B24) -> 1030.787966 | Q24: =Sound_Speed(K24,N24,B24) -> 1480.462829
B25: 909 | C25: 34.21526 | D25: 4.010992 | F25: =IF(C25 ="",SP_from_C(A25,L25,B25),C25) -> 34.21526 | G25: 34.37659961 | H25: =LookUp_atlas("deltaSA_ref",B25,$B$1,$B$2) -> 0.01489981065 | I25: =LookUp_atlas("SAAR_ref",B25,$B$1,$B$2) -> 0.0004257381098 | J25: =IF(is_Baltic($B$1,$B$2)=1,"Baltic",G25*I25) -> 0.01463542854 | K25: =IF(is_Baltic($B$1,$B$2)=1,SA_Baltic(F25),G25+J25) -> 34.39123504 | L25: 4.010992 | M25: =pt0_from_t(K25,L25,B25) -> 3.943005896 | N25: =CT_from_pt(K25,M25) -> 3.945688018 | O25: =sigma0(K25,N25) -> 27.17984216 | P25: =rho(K25,N25,B25) -> 1031.370426 | Q25: =Sound_Speed(K25,N25,B25) -> 1480.373625
B26: 1010 | C26: 34.28701 | D26: 3.630195 | F26: =IF(C26 ="",SP_from_C(A26,L26,B26),C26) -> 34.28701 | G26: 34.44868795 | H26: =LookUp_atlas("deltaSA_ref",B26,$B$1,$B$2) -> 0.01651232156 | I26: =LookUp_atlas("SAAR_ref",B26,$B$1,$B$2) -> 0.0004732423993 | J26: =IF(is_Baltic($B$1,$B$2)=1,"Baltic",G26*I26) -> 0.01630257974 | K26: =IF(is_Baltic($B$1,$B$2)=1,SA_Baltic(F26),G26+J26) -> 34.46499053 | L26: 3.630195 | M26: =pt0_from_t(K26,L26,B26) -> 3.556753872 | N26: =CT_from_pt(K26,M26) -> 3.558773374 | O26: =sigma0(K26,N26) -> 27.27684764 | P26: =rho(K26,N26,B26) -> 1031.937504 | Q26: =Sound_Speed(K26,N26,B26) -> 1480.519608
B27: 1111 | C27: 34.33858 | D27: 3.351287 | F27: =IF(C27 ="",SP_from_C(A27,L27,B27),C27) -> 34.33858 | G27: 34.50050112 | H27: =LookUp_atlas("deltaSA_ref",B27,$B$1,$B$2) -> 0.01768503747 | I27: =LookUp_atlas("SAAR_ref",B27,$B$1,$B$2) -> 0.0005089349035 | J27: =IF(is_Baltic($B$1,$B$2)=1,"Baltic",G27*I27) -> 0.01755850921 | K27: =IF(is_Baltic($B$1,$B$2)=1,SA_Baltic(F27),G27+J27) -> 34.51805963 | L27: 3.351287 | M27: =pt0_from_t(K27,L27,B27) -> 3.271960912 | N27: =CT_from_pt(K27,M27) -> 3.273561594 | O27: =sigma0(K27,N27) -> 27.3462749 | P27: =rho(K27,N27,B27) -> 1032.475163 | Q27: =Sound_Speed(K27,N27,B27) -> 1481.061985
B28: 1213 | C28: 34.38449 | D28: 3.102174 | F28: =IF(C28 ="",SP_from_C(A28,L28,B28),C28) -> 34.38449 | G28: 34.54662761 | H28: =LookUp_atlas("deltaSA_ref",B28,$B$1,$B$2) -> 0.01868748664 | I28: =LookUp_atlas("SAAR_ref",B28,$B$1,$B$2) -> 0.0005380760228 | J28: =IF(is_Baltic($B$1,$B$2)=1,"Baltic",G28*I28) -> 0.01858871198 | K28: =IF(is_Baltic($B$1,$B$2)=1,SA_Baltic(F28),G28+J28) -> 34.56521632 | L28: 3.102174 | M28: =pt0_from_t(K28,L28,B28) -> 3.016872906 | N28: =CT_from_pt(K28,M28) -> 3.018142374 | O28: =sigma0(K28,N28) -> 27.40739233 | P28: =rho(K28,N28,B28) -> 1033.00861 | Q28: =Sound_Speed(K28,N28,B28) -> 1481.736181
B29: 1314 | C29: 34.42426 | D29: 2.876307 | F29: =IF(C29 ="",SP_from_C(A29,L29,B29),C29) -> 34.42426 | G29: 34.58658514 | H29: =LookUp_atlas("deltaSA_ref",B29,$B$1,$B$2) -> 0.01949419109 | I29: =LookUp_atlas("SAAR_ref",B29,$B$1,$B$2) -> 0.000561454629 | J29: =IF(is_Baltic($B$1,$B$2)=1,"Baltic",G29*I29) -> 0.01941879833 | K29: =IF(is_Baltic($B$1,$B$2)=1,SA_Baltic(F29),G29+J29) -> 34.60600394 | L29: 2.876307 | M29: =pt0_from_t(K29,L29,B29) -> 2.785099842 | N29: =CT_from_pt(K29,M29) -> 2.78611849 | O29: =sigma0(K29,N29) -> 27.46065239 | P29: =rho(K29,N29,B29) -> 1033.529181 | Q29: =Sound_Speed(K29,N29,B29) -> 1482.48279
B30: 1416 | C30: 34.45672 | D30: 2.694073 | F30: =IF(C30 ="",SP_from_C(A30,L30,B30),C30) -> 34.45672 | G30: 34.6191982 | H30: =LookUp_atlas("deltaSA_ref",B30,$B$1,$B$2) -> 0.02017631116 | I30: =LookUp_atlas("SAAR_ref",B30,$B$1,$B$2) -> 0.0005820915136 | J30: =IF(is_Baltic($B$1,$B$2)=1,"Baltic",G30*I30) -> 0.02015154148 | K30: =IF(is_Baltic($B$1,$B$2)=1,SA_Baltic(F30),G30+J30) -> 34.63934974 | L30: 2.694073 | M30: =pt0_from_t(K30,L30,B30) -> 2.59659272 | N30: =CT_from_pt(K30,M30) -> 2.59742803 | O30: =sigma0(K30,N30) -> 27.50365672 | P30: =rho(K30,N30,B30) -> 1034.042644 | Q30: =Sound_Speed(K30,N30,B30) -> 1483.423122
B31: 1517 | C31: 34.48842 | D31: 2.50686 | F31: =IF(C31 ="",SP_from_C(A31,L31,B31),C31) -> 34.48842 | G31: 34.65104768 | H31: =LookUp_atlas("deltaSA_ref",B31,$B$1,$B$2) -> 0.0207538996 | I31: =LookUp_atlas("SAAR_ref",B31,$B$1,$B$2) -> 0.0005992239777 | J31: =IF(is_Baltic($B$1,$B$2)=1,"Baltic",G31*I31) -> 0.02076373862 | K31: =IF(is_Baltic($B$1,$B$2)=1,SA_Baltic(F31),G31+J31) -> 34.67181142 | L31: 2.50686 | M31: =pt0_from_t(K31,L31,B31) -> 2.403358644 | N31: =CT_from_pt(K31,M31) -> 2.404039995 | O31: =sigma0(K31,N31) -> 27.54594873 | P31: =rho(K31,N31,B31) -> 1034.551007 | Q31: =Sound_Speed(K31,N31,B31) -> 1484.324123
B32: 1771 | C32: 34.54501 | D32: 2.196994 | F32: =IF(C32 ="",SP_from_C(A32,L32,B32),C32) -> 34.54501 | G32: 34.70790453 | H32: =LookUp_atlas("deltaSA_ref",B32,$B$1,$B$2) -> 0.02160221096 | I32: =LookUp_atlas("SAAR_ref",B32,$B$1,$B$2) -> 0.0006174416176 | J32: =IF(is_Baltic($B$1,$B$2)=1,"Baltic",G32*I32) -> 0.02143010471 | K32: =IF(is_Baltic($B$1,$B$2)=1,SA_Baltic(F32),G32+J32) -> 34.72933463 | L32: 2.196994 | M32: =pt0_from_t(K32,L32,B32) -> 2.076721951 | N32: =CT_from_pt(K32,M32) -> 2.07716853 | O32: =sigma0(K32,N32) -> 27.61856904 | P32: =rho(K32,N32,B32) -> 1035.788231 | Q32: =Sound_Speed(K32,N32,B32) -> 1487.262494
B33: 2025 | C33: 34.58881 | D33: 1.953304 | F33: =IF(C33 ="",SP_from_C(A33,L33,B33),C33) -> 34.58881 | G33: 34.75191106 | H33: =LookUp_atlas("deltaSA_ref",B33,$B$1,$B$2) -> 0.02190620881 | I33: =LookUp_atlas("SAAR_ref",B33,$B$1,$B$2) -> 0.000625378399 | J33: =IF(is_Baltic($B$1,$B$2)=1,"Baltic",G33*I33) -> 0.0217330945 | K33: =IF(is_Baltic($B$1,$B$2)=1,SA_Baltic(F33),G33+J33) -> 34.77364416 | L33: 1.953304 | M33: =pt0_from_t(K33,L33,B33) -> 1.815400366 | N33: =CT_from_pt(K33,M33) -> 1.815713253 | O33: =sigma0(K33,N33) -> 27.67441257 | P33: =rho(K33,N33,B33) -> 1037.002956 | Q33: =Sound_Speed(K33,N33,B33) -> 1490.485582
B34: 2279 | C34: 34.61341 | D34: 1.825799 | F34: =IF(C34 ="",SP_from_C(A34,L34,B34),C34) -> 34.61341 | G34: 34.77662706 | H34: =LookUp_atlas("deltaSA_ref",B34,$B$1,$B$2) -> 0.02183495434 | I34: =LookUp_atlas("SAAR_ref",B34,$B$1,$B$2) -> 0.0006256658011 | J34: =IF(is_Baltic($B$1,$B$2)=1,"Baltic",G34*I34) -> 0.02175854623 | K34: =IF(is_Baltic($B$1,$B$2)=1,SA_Baltic(F34),G34+J34) -> 34.79838561 | L34: 1.825799 | M34: =pt0_from_t(K34,L34,B34) -> 1.668190658 | N34: =CT_from_pt(K34,M34) -> 1.668445589 | O34: =sigma0(K34,N34) -> 27.70534355 | P34: =rho(K34,N34,B34) -> 1038.182755 | Q34: =Sound_Speed(K34,N34,B34) -> 1494.209506
B35: 2534 | C35: 34.63526 | D35: 1.709283 | F35: =IF(C35 ="",SP_from_C(A35,L35,B35),C35) -> 34.63526 | G35: 34.79858009 | H35: =LookUp_atlas("deltaSA_ref",B35,$B$1,$B$2) -> 0.02163127385 | I35: =LookUp_atlas("SAAR_ref",B35,$B$1,$B$2) -> 0.000621030221 | J35: =IF(is_Baltic($B$1,$B$2)=1,"Baltic",G35*I35) -> 0.02161096989 | K35: =IF(is_Baltic($B$1,$B$2)=1,SA_Baltic(F35),G35+J35) -> 34.82019106 | L35: 1.709283 | M35: =pt0_from_t(K35,L35,B35) -> 1.531154603 | N35: =CT_from_pt(K35,M35) -> 1.531373787 | O35: =sigma0(K35,N35) -> 27.73292853 | P35: =rho(K35,N35,B35) -> 1039.358318 | Q35: =Sound_Speed(K35,N35,B35) -> 1498.01284
B36: 2789 | C36: 34.64812 | D36: 1.626311 | F36: =IF(C36 ="",SP_from_C(A36,L36,B36),C36) -> 34.64812 | G36: 34.81150073 | H36: =LookUp_atlas("deltaSA_ref",B36,$B$1,$B$2) -> 0.02138537894 | I36: =LookUp_atlas("SAAR_ref",B36,$B$1,$B$2) -> 0.0006144368292 | J36: =IF(is_Baltic($B$1,$B$2)=1,"Baltic",G36*I36) -> 0.02138946813 | K36: =IF(is_Baltic($B$1,$B$2)=1,SA_Baltic(F36),G36+J36) -> 34.8328902 | L36: 1.626311 | M36: =pt0_from_t(K36,L36,B36) -> 1.426435635 | N36: =CT_from_pt(K36,M36) -> 1.426659188 | O36: =sigma0(K36,N36) -> 27.75069188 | P36: =rho(K36,N36,B36) -> 1040.516906 | Q36: =Sound_Speed(K36,N36,B36) -> 1501.970264
B37: 3045 | C37: 34.6589 | D37: 1.566066 | F37: =IF(C37 ="",SP_from_C(A37,L37,B37),C37) -> 34.6589 | G37: 34.82233157 | H37: =LookUp_atlas("deltaSA_ref",B37,$B$1,$B$2) -> 0.02113915564 | I37: =LookUp_atlas("SAAR_ref",B37,$B$1,$B$2) -> 0.0006075898016 | J37: =IF(is_Baltic($B$1,$B$2)=1,"Baltic",G37*I37) -> 0.02115769353 | K37: =IF(is_Baltic($B$1,$B$2)=1,SA_Baltic(F37),G37+J37) -> 34.84348926 | L37: =IF(D37 ="",E37/1.00024,D37) -> 1.566066 | M37: =pt0_from_t(K37,L37,B37) -> 1.343174161 | N37: =CT_from_pt(K37,M37) -> 1.34340103 | O37: =sigma0(K37,N37) -> 27.76512153 | P37: =rho(K37,N37,B37) -> 1041.669545 | Q37: =Sound_Speed(K37,N37,B37) -> 1506.060171
B38: 3300 | C38: 34.6671 | D38: 1.527974 | F38: =IF(C38 ="",SP_from_C(A38,L38,B38),C38) -> 34.6671 | G38: 34.83057023 | H38: =LookUp_atlas("deltaSA_ref",B38,$B$1,$B$2) -> 0.02091823018 | I38: =LookUp_atlas("SAAR_ref",B38,$B$1,$B$2) -> 0.0006012182435 | J38: =IF(is_Baltic($B$1,$B$2)=1,"Baltic",G38*I38) -> 0.02094077426 | K38: =IF(is_Baltic($B$1,$B$2)=1,SA_Baltic(F38),G38+J38) -> 34.85151101 | L38: 1.527974 | M38: =pt0_from_t(K38,L38,B38) -> 1.280899634 | N38: =CT_from_pt(K38,M38) -> 1.281130212 | O38: =sigma0(K38,N38) -> 27.77593442 | P38: =rho(K38,N38,B38) -> 1042.806747 | Q38: =Sound_Speed(K38,N38,B38) -> 1510.244988
B39: 3556 | C39: 34.67315 | D39: 1.503932 | F39: =IF(C39 ="",SP_from_C(A39,L39,B39),C39) -> 34.67315 | G39: 34.83664876 | H39: =LookUp_atlas("deltaSA_ref",B39,$B$1,$B$2) -> 0.02070147972 | I39: =LookUp_atlas("SAAR_ref",B39,$B$1,$B$2) -> 0.0005950693717 | J39: =IF(is_Baltic($B$1,$B$2)=1,"Baltic",G39*I39) -> 0.02073022269 | K39: =IF(is_Baltic($B$1,$B$2)=1,SA_Baltic(F39),G39+J39) -> 34.85737898 | L39: 1.503932 | M39: =pt0_from_t(K39,L39,B39) -> 1.231426604 | N39: =CT_from_pt(K39,M39) -> 1.23166434 | O39: =sigma0(K39,N39) -> 27.78408753 | P39: =rho(K39,N39,B39) -> 1043.938653 | Q39: =Sound_Speed(K39,N39,B39) -> 1514.522963
B40: 3812 | C40: 34.67689 | D40: 1.489079 | F40: =IF(C40 ="",SP_from_C(A40,L40,B40),C40) -> 34.67689 | G40: 34.8404064 | H40: =LookUp_atlas("deltaSA_ref",B40,$B$1,$B$2) -> 0.02051662125 | I40: =LookUp_atlas("SAAR_ref",B40,$B$1,$B$2) -> 0.000589541645 | J40: =IF(is_Baltic($B$1,$B$2)=1,"Baltic",G40*I40) -> 0.0205398705 | K40: =IF(is_Baltic($B$1,$B$2)=1,SA_Baltic(F40),G40+J40) -> 34.86094627 | L40: 1.489079 | M40: =pt0_from_t(K40,L40,B40) -> 1.190074221 | N40: =CT_from_pt(K40,M40) -> 1.190326765 | O40: =sigma0(K40,N40) -> 27.78981026 | P40: =rho(K40,N40,B40) -> 1045.061351 | Q40: =Sound_Speed(K40,N40,B40) -> 1518.854788
B41: 4069 | C41: 34.67984 | D41: 1.484811 | F41: =IF(C41 ="",SP_from_C(A41,L41,B41),C41) -> 34.67984 | G41: 34.84337031 | H41: =LookUp_atlas("deltaSA_ref",B41,$B$1,$B$2) -> 0.02031823242 | I41: =LookUp_atlas("SAAR_ref",B41,$B$1,$B$2) -> 0.0005838242878 | J41: =IF(is_Baltic($B$1,$B$2)=1,"Baltic",G41*I41) -> 0.02034240585 | K41: =IF(is_Baltic($B$1,$B$2)=1,SA_Baltic(F41),G41+J41) -> 34.86371271 | L41: 1.484811 | M41: =pt0_from_t(K41,L41,B41) -> 1.158052486 | N41: =CT_from_pt(K41,M41) -> 1.158316799 | O41: =sigma0(K41,N41) -> 27.79423038 | P41: =rho(K41,N41,B41) -> 1046.179967 | Q41: =Sound_Speed(K41,N41,B41) -> 1523.264878
B42: 4325 | C42: 34.68301 | D42: 1.481007 | F42: =IF(C42 ="",SP_from_C(A42,L42,B42),C42) -> 34.68301 | G42: 34.84655526 | H42: =LookUp_atlas("deltaSA_ref",B42,$B$1,$B$2) -> 0.02014892272 | I42: =LookUp_atlas("SAAR_ref",B42,$B$1,$B$2) -> 0.0005787337194 | J42: =IF(is_Baltic($B$1,$B$2)=1,"Baltic",G42*I42) -> 0.02016687653 | K42: =IF(is_Baltic($B$1,$B$2)=1,SA_Baltic(F42),G42+J42) -> 34.86672213 | L42: 1.481007 | M42: =pt0_from_t(K42,L42,B42) -> 1.12572825 | N42: =CT_from_pt(K42,M42) -> 1.126003438 | O42: =sigma0(K42,N42) -> 27.79885269 | P42: =rho(K42,N42,B42) -> 1047.288309 | Q42: =Sound_Speed(K42,N42,B42) -> 1527.675137
B43: 4583 | C43: 34.68477 | D43: 1.489867 | F43: =IF(C43 ="",SP_from_C(A43,L43,B43),C43) -> 34.68477 | G43: 34.84832356 | H43: =LookUp_atlas("deltaSA_ref",B43,$B$1,$B$2) -> 0.01996715675 | I43: =LookUp_atlas("SAAR_ref",B43,$B$1,$B$2) -> 0.0005730874386 | J43: =IF(is_Baltic($B$1,$B$2)=1,"Baltic",G43*I43) -> 0.01997113649 | K43: =IF(is_Baltic($B$1,$B$2)=1,SA_Baltic(F43),G43+J43) -> 34.86829469 | L43: 1.489867 | M43: =pt0_from_t(K43,L43,B43) -> 1.104596176 | N43: =CT_from_pt(K43,M43) -> 1.104880989 | O43: =sigma0(K43,N43) -> 27.8015518 | P43: =rho(K43,N43,B43) -> 1048.395763 | Q43: =Sound_Speed(K43,N43,B43) -> 1532.187386
B44: 4840 | C44: 34.68687 | D44: 1.495774 | F44: =IF(C44 ="",SP_from_C(A44,L44,B44),C44) -> 34.68687 | G44: 34.85043346 | H44: =LookUp_atlas("deltaSA_ref",B44,$B$1,$B$2) -> 0.01977816842 | I44: =LookUp_atlas("SAAR_ref",B44,$B$1,$B$2) -> 0.000566697449 | J44: =IF(is_Baltic($B$1,$B$2)=1,"Baltic",G44*I44) -> 0.01974965174 | K44: =IF(is_Baltic($B$1,$B$2)=1,SA_Baltic(F44),G44+J44) -> 34.87018311 | L44: 1.495774 | M44: =pt0_from_t(K44,L44,B44) -> 1.079853087 | N44: =CT_from_pt(K44,M44) -> 1.080149032 | O44: =sigma0(K44,N44) -> 27.80474272 | P44: =rho(K44,N44,B44) -> 1049.493584 | Q44: =Sound_Speed(K44,N44,B44) -> 1536.683303
B45: 5098 | C45: 34.69099 | D45: 1.498908 | F45: =IF(C45 ="",SP_from_C(A45,L45,B45),C45) -> 34.69099 | G45: 34.85457289 | H45: =LookUp_atlas("deltaSA_ref",B45,$B$1,$B$2) -> 0.01931775006 | I45: =LookUp_atlas("SAAR_ref",B45,$B$1,$B$2) -> 0.0005565612087 | J45: =IF(is_Baltic($B$1,$B$2)=1,"Baltic",G45*I45) -> 0.01939870321 | K45: =IF(is_Baltic($B$1,$B$2)=1,SA_Baltic(F45),G45+J45) -> 34.87397159 | L45: 1.498908 | M45: =pt0_from_t(K45,L45,B45) -> 1.051453129 | N45: =CT_from_pt(K45,M45) -> 1.051752515 | O45: =sigma0(K45,N45) -> 27.80969218 | P45: =rho(K45,N45,B45) -> 1050.591576 | Q45: =Sound_Speed(K45,N45,B45) -> 1541.199827
B46: 5355 | C46: 34.69363 | D46: 1.50661 | F46: =IF(C46 ="",SP_from_C(A46,L46,B46),C46) -> 34.69363 | G46: 34.85722533 | H46: =LookUp_atlas("deltaSA_ref",B46,$B$1,$B$2) -> 0.01895451382 | I46: =LookUp_atlas("SAAR_ref",B46,$B$1,$B$2) -> 0.0005474068516 | J46: =IF(is_Baltic($B$1,$B$2)=1,"Baltic",G46*I46) -> 0.01908108397 | K46: =IF(is_Baltic($B$1,$B$2)=1,SA_Baltic(F46),G46+J46) -> 34.87630642 | L46: 1.50661 | M46: =pt0_from_t(K46,L46,B46) -> 1.026768448 | N46: =CT_from_pt(K46,M46) -> 1.027076689 | O46: =sigma0(K46,N46) -> 27.81321987 | P46: =rho(K46,N46,B46) -> 1051.677285 | Q46: =Sound_Speed(K46,N46,B46) -> 1545.728417
B47: 5614 | C47: 34.69469 | D47: 1.524539 | F47: =IF(C47 ="",SP_from_C(A47,L47,B47),C47) -> 34.69469 | G47: 34.85829033 | H47: =LookUp_atlas("deltaSA_ref",B47,$B$1,$B$2) -> 0.01871301139 | I47: =LookUp_atlas("SAAR_ref",B47,$B$1,$B$2) -> 0.0005404406666 | J47: =IF(is_Baltic($B$1,$B$2)=1,"Baltic",G47*I47) -> 0.01883883766 | K47: =IF(is_Baltic($B$1,$B$2)=1,SA_Baltic(F47),G47+J47) -> 34.87712917 | L47: 1.524539 | M47: =pt0_from_t(K47,L47,B47) -> 1.010866164 | N47: =CT_from_pt(K47,M47) -> 1.011184168 | O47: =sigma0(K47,N47) -> 27.81494342 | P47: =rho(K47,N47,B47) -> 1052.762096 | Q47: =Sound_Speed(K47,N47,B47) -> 1550.344376
B48: 5872 | C48: 34.69503 | D48: 1.553982 | F48: =IF(C48 ="",SP_from_C(A48,L48,B48),C48) -> 34.69503 | G48: 34.85863194 | H48: =LookUp_atlas("deltaSA_ref",B48,$B$1,$B$2) -> 0.01858950636 | I48: =LookUp_atlas("SAAR_ref",B48,$B$1,$B$2) -> 0.0005366714718 | J48: =IF(is_Baltic($B$1,$B$2)=1,"Baltic",G48*I48) -> 0.01870763331 | K48: =IF(is_Baltic($B$1,$B$2)=1,SA_Baltic(F48),G48+J48) -> 34.87733957 | L48: 1.553982 | M48: =pt0_from_t(K48,L48,B48) -> 1.005333213 | N48: =CT_from_pt(K48,M48) -> 1.005655065 | O48: =sigma0(K48,N48) -> 27.81548167 | P48: =rho(K48,N48,B48) -> 1053.833665 | Q48: =Sound_Speed(K48,N48,B48) -> 1555.000145
B49: 6131 | C49: 34.69559 | D49: 1.591949 | F49: =IF(C49 ="",SP_from_C(A49,L49,B49),C49) -> 34.69559 | G49: 34.85919458 | H49: =LookUp_atlas("deltaSA_ref",B49,$B$1,$B$2) -> 0.01855150738 | I49: =LookUp_atlas("SAAR_ref",B49,$B$1,$B$2) -> 0.0005347482806 | J49: =IF(is_Baltic($B$1,$B$2)=1,"Baltic",G49*I49) -> 0.01864089436 | K49: =IF(is_Baltic($B$1,$B$2)=1,SA_Baltic(F49),G49+J49) -> 34.87783547 | L49: 1.591949 | M49: =pt0_from_t(K49,L49,B49) -> 1.007003896 | N49: =CT_from_pt(K49,M49) -> 1.007321336 | O49: =sigma0(K49,N49) -> 27.81576668 | P49: =rho(K49,N49,B49) -> 1054.901544 | Q49: =Sound_Speed(K49,N49,B49) -> 1559.717546

Sheet TS-55
A1: Longitude | B1: -10.5
A2: Latitude | B2: 40.5
A3: Conductivity | B3: p | C3: SP | D3: temp ITS-90 | E3: temp IPTS-68 | F3: SP from C | G3: SR | H3: delta SA Atlas | I3: SAAR Atlas | J3: delta SA | K3: Absolute Salinity (SA) | L3: t ITS-90 | M3: Potential t | N3: Conservative Temperature (Θ) | O3: Potential Density ( σΘ ) | P3: In situ Density (ρSA, Θ, p) | Q3: Sound Speed (c)
A4: (mS cm-1) | B4: (dbar) | D4: (ºC) | E4: (ºC) | G4: (g kg-1) | H4: (g kg-1) | I4: (g kg-1) | J4: (g kg-1) | K4: (g kg-1) | L4: (ºC) | M4: (ºC) | N4: (ºC) | O4: (kg m-3 - 1000) | P4: (kg m-3) | Q4: (m s-1)
B5: 0 | C5: 35.89 | E5: 16.101 | F5: =IF(C5 ="",SP_from_C(A5,L5,B5),C5) -> 35.89 | G5: =(35.16504/35)*F5 -> 36.05923673 | H5: =LookUp_atlas("deltaSA_ref",B5,$B$1,$B$2) -> 0.0001815080263 | I5: =LookUp_atlas("SAAR_ref",B5,$B$1,$B$2) -> 5.022098424e-06 | J5: =IF(is_Baltic($B$1,$B$2)=1,"Baltic",G5*I5) -> 0.0001810930359 | K5: =IF(is_Baltic($B$1,$B$2)=1,SA_Baltic(F5),G5+J5) -> 36.05941782 | L5: =IF(D5 ="",E5/1.00024,D5) -> 16.09713669 | M5: =pt0_from_t(K5,L5,B5) -> 16.09713669 | N5: =CT_from_pt(K5,M5) -> 16.0633161 | O5: =sigma0(K5,N5) -> 26.41361691 | P5: =rho(K5,N5,B5) -> 1026.413617 | Q5: =Sound_Speed(K5,N5,B5) -> 1511.091291
B6: 10 | C6: 35.883 | E6: 16.342 | F6: =IF(C6 ="",SP_from_C(A6,L6,B6),C6) -> 35.883 | G6: =(35.16504/35)*F6 -> 36.05220372 | H6: =LookUp_atlas("deltaSA_ref",B6,$B$1,$B$2) -> 0.0001873404874 | I6: =LookUp_atlas("SAAR_ref",B6,$B$1,$B$2) -> 5.254515804e-06 | J6: =IF(is_Baltic($B$1,$B$2)=1,"Baltic",G6*I6) -> 0.0001894368742 | K6: =IF(is_Baltic($B$1,$B$2)=1,SA_Baltic(F6),G6+J6) -> 36.05239316 | L6: 16.33807886 | M6: =pt0_from_t(K6,L6,B6) -> 16.33647128 | N6: =CT_from_pt(K6,M6) -> 16.30268471 | O6: =sigma0(K6,N6) -> 26.35264777 | P6: =rho(K6,N6,B6) -> 1026.396396 | Q6: =Sound_Speed(K6,N6,B6) -> 1511.979696
B7: 20 | C7: 35.879 | E7: 16.193 | F7: =IF(C7 ="",SP_from_C(A7,L7,B7),C7) -> 35.879 | G7: 36.04818486 | H7: =LookUp_atlas("deltaSA_ref",B7,$B$1,$B$2) -> 0.0002042737983 | I7: =LookUp_atlas("SAAR_ref",B7,$B$1,$B$2) -> 5.645844782e-06 | J7: =IF(is_Baltic($B$1,$B$2)=1,"Baltic",G7*I7) -> 0.0002035224564 | K7: =IF(is_Baltic($B$1,$B$2)=1,SA_Baltic(F7),G7+J7) -> 36.04838838 | L7: 16.18911461 | M7: =pt0_from_t(K7,L7,B7) -> 16.18591892 | N7: =CT_from_pt(K7,M7) -> 16.15233356 | O7: =sigma0(K7,N7) -> 26.38461336 | P7: =rho(K7,N7,B7) -> 1026.472153 | Q7: =Sound_Speed(K7,N7,B7) -> 1511.686367
B8: 30 | C8: 35.879 | E8: 15.747 | F8: =IF(C8 ="",SP_from_C(A8,L8,B8),C8) -> 35.879 | G8: 36.04818486 | H8: =LookUp_atlas("deltaSA_ref",B8,$B$1,$B$2) -> 0.0002228026606 | I8: =LookUp_atlas("SAAR_ref",B8,$B$1,$B$2) -> 6.175033458e-06 | J8: =IF(is_Baltic($B$1,$B$2)=1,"Baltic",G8*I8) -> 0.0002225987476 | K8: =IF(is_Baltic($B$1,$B$2)=1,SA_Baltic(F8),G8+J8) -> 36.04840746 | L8: 15.74322163 | M8: =pt0_from_t(K8,L8,B8) -> 15.73851782 | N8: =CT_from_pt(K8,M8) -> 15.70523265 | O8: =sigma0(K8,N8) -> 26.48751976 | P8: =rho(K8,N8,B8) -> 1026.619053 | Q8: =Sound_Speed(K8,N8,B8) -> 1510.484633
B9: 50 | C9: 35.887 | E9: 14.859 | F9: =IF(C9 ="",SP_from_C(A9,L9,B9),C9) -> 35.887 | G9: =(35.16504/35)*F9 -> 36.05622259 | H9: =LookUp_atlas("deltaSA_ref",B9,$B$1,$B$2) -> 0.0003145573247 | I9: =LookUp_atlas("SAAR_ref",B9,$B$1,$B$2) -> 8.63515359e-06 | J9: =IF(is_Baltic($B$1,$B$2)=1,"Baltic",G9*I9) -> 0.0003113510199 | K9: =IF(is_Baltic($B$1,$B$2)=1,SA_Baltic(F9),G9+J9) -> 36.05653394 | L9: =IF(D9 ="",E9/1.00024,D9) -> 14.8554347 | M9: =pt0_from_t(K9,L9,B9) -> 14.84789385 | N9: =CT_from_pt(K9,M9) -> 14.81510199 | O9: =sigma0(K9,N9) -> 26.6931614 | P9: =rho(K9,N9,B9) -> 1026.913139 | Q9: =Sound_Speed(K9,N9,B9) -> 1508.053123
B10: 75 | C10: 35.9 | E10: 14.226 | F10: =IF(C10 ="",SP_from_C(A10,L10,B10),C10) -> 35.9 | G10: 36.06928389 | H10: =LookUp_atlas("deltaSA_ref",B10,$B$1,$B$2) -> 0.0004212387689 | I10: =LookUp_atlas("SAAR_ref",B10,$B$1,$B$2) -> 1.080833817e-05 | J10: =IF(is_Baltic($B$1,$B$2)=1,"Baltic",G10*I10) -> 0.0003898490177 | K10: =IF(is_Baltic($B$1,$B$2)=1,SA_Baltic(F10),G10+J10) -> 36.06967373 | L10: 14.22258658 | M10: =pt0_from_t(K10,L10,B10) -> 14.21159221 | N10: =CT_from_pt(K10,M10) -> 14.17906684 | O10: =sigma0(K10,N10) -> 26.84126307 | P10: =rho(K10,N10,B10) -> 1027.172019 | Q10: =Sound_Speed(K10,N10,B10) -> 1506.463146
B11: 100 | C11: 35.894 | E11: 13.772 | F11: =IF(C11 ="",SP_from_C(A11,L11,B11),C11) -> 35.894 | G11: 36.06325559 | H11: =LookUp_atlas("deltaSA_ref",B11,$B$1,$B$2) -> 0.0005390805652 | I11: =LookUp_atlas("SAAR_ref",B11,$B$1,$B$2) -> 1.32148715e-05 | J11: =IF(is_Baltic($B$1,$B$2)=1,"Baltic",G11*I11) -> 0.0004765712885 | K11: =IF(is_Baltic($B$1,$B$2)=1,SA_Baltic(F11),G11+J11) -> 36.06373216 | L11: 13.76869551 | M11: =pt0_from_t(K11,L11,B11) -> 13.75433905 | N11: =CT_from_pt(K11,M11) -> 13.72242095 | O11: =sigma0(K11,N11) -> 26.93353856 | P11: =rho(K11,N11,B11) -> 1027.375294 | Q11: =Sound_Speed(K11,N11,B11) -> 1505.398929
B12: 125 | C12: 35.883 | E12: 13.462 | F12: =IF(C12 ="",SP_from_C(A12,L12,B12),C12) -> 35.883 | G12: 36.05220372 | H12: =LookUp_atlas("deltaSA_ref",B12,$B$1,$B$2) -> 0.0006017002513 | I12: =LookUp_atlas("SAAR_ref",B12,$B$1,$B$2) -> 1.500281054e-05 | J12: =IF(is_Baltic($B$1,$B$2)=1,"Baltic",G12*I12) -> 0.0005408843819 | K12: =IF(is_Baltic($B$1,$B$2)=1,SA_Baltic(F12),G12+J12) -> 36.05274461 | L12: 13.4587699 | M12: =pt0_from_t(K12,L12,B12) -> 13.44107949 | N12: =CT_from_pt(K12,M12) -> 13.40975286 | O12: =sigma0(K12,N12) -> 26.9902864 | P12: =rho(K12,N12,B12) -> 1027.543087 | Q12: =Sound_Speed(K12,N12,B12) -> 1504.783129
B13: 150 | C13: 35.861 | E13: 13.132 | F13: =IF(C13 ="",SP_from_C(A13,L13,B13),C13) -> 35.861 | G13: 36.03009998 | H13: =LookUp_atlas("deltaSA_ref",B13,$B$1,$B$2) -> 0.0006567199272 | I13: =LookUp_atlas("SAAR_ref",B13,$B$1,$B$2) -> 1.792233503e-05 | J13: =IF(is_Baltic($B$1,$B$2)=1,"Baltic",G13*I13) -> 0.0006457435232 | K13: =IF(is_Baltic($B$1,$B$2)=1,SA_Baltic(F13),G13+J13) -> 36.03074573 | L13: 13.12884908 | M13: =pt0_from_t(K13,L13,B13) -> 13.10795035 | N13: =CT_from_pt(K13,M13) -> 13.07749422 | O13: =sigma0(K13,N13) -> 27.04164758 | P13: =rho(K13,N13,B13) -> 1027.705814 | Q13: =Sound_Speed(K13,N13,B13) -> 1504.079659
B14: 200 | C14: 35.821 | E14: 12.797 | F14: =IF(C14 ="",SP_from_C(A14,L14,B14),C14) -> 35.821 | G14: 35.98991137 | H14: =LookUp_atlas("deltaSA_ref",B14,$B$1,$B$2) -> 0.0007595411707 | I14: =LookUp_atlas("SAAR_ref",B14,$B$1,$B$2) -> 2.115072674e-05 | J14: =IF(is_Baltic($B$1,$B$2)=1,"Baltic",G14*I14) -> 0.0007612127806 | K14: =IF(is_Baltic($B$1,$B$2)=1,SA_Baltic(F14),G14+J14) -> 35.99067258 | L14: 12.79392946 | M14: =pt0_from_t(K14,L14,B14) -> 12.76649107 | N14: =CT_from_pt(K14,M14) -> 12.7373154 | O14: =sigma0(K14,N14) -> 27.07964395 | P14: =rho(K14,N14,B14) -> 1027.966098 | Q14: =Sound_Speed(K14,N14,B14) -> 1503.736237
B15: 250 | C15: 35.758 | E15: 12.368 | F15: =IF(C15 ="",SP_from_C(A15,L15,B15),C15) -> 35.758 | G15: 35.92661429 | H15: =LookUp_atlas("deltaSA_ref",B15,$B$1,$B$2) -> 0.0008487909493 | I15: =LookUp_atlas("SAAR_ref",B15,$B$1,$B$2) -> 2.334943943e-05 | J15: =IF(is_Baltic($B$1,$B$2)=1,"Baltic",G15*I15) -> 0.0008388663043 | K15: =IF(is_Baltic($B$1,$B$2)=1,SA_Baltic(F15),G15+J15) -> 35.92745316 | L15: 12.36503239 | M15: =pt0_from_t(K15,L15,B15) -> 12.33144009 | N15: =CT_from_pt(K15,M15) -> 12.30413439 | O15: =sigma0(K15,N15) -> 27.1169592 | P15: =rho(K15,N15,B15) -> 1028.226677 | Q15: =Sound_Speed(K15,N15,B15) -> 1503.038178
B16: 300 | C16: 35.714 | E16: 12.084 | F16: =IF(C16 ="",SP_from_C(A16,L16,B16),C16) -> 35.714 | G16: 35.88240682 | H16: =LookUp_atlas("deltaSA_ref",B16,$B$1,$B$2) -> 0.0009288216424 | I16: =LookUp_atlas("SAAR_ref",B16,$B$1,$B$2) -> 2.543780572e-05 | J16: =IF(is_Baltic($B$1,$B$2)=1,"Baltic",G16*I16) -> 0.0009127696933 | K16: =IF(is_Baltic($B$1,$B$2)=1,SA_Baltic(F16),G16+J16) -> 35.88331959 | L16: 12.08110054 | M16: =pt0_from_t(K16,L16,B16) -> 12.04132532 | N16: =CT_from_pt(K16,M16) -> 12.01528525 | O16: =sigma0(K16,N16) -> 27.1392366 | P16: =rho(K16,N16,B16) -> 1028.471995 | Q16: =Sound_Speed(K16,N16,B16) -> 1502.839676
B17: 400 | C17: 35.666 | E17: 11.605 | F17: =IF(C17 ="",SP_from_C(A17,L17,B17),C17) -> 35.666 | G17: 35.83418048 | H17: =LookUp_atlas("deltaSA_ref",B17,$B$1,$B$2) -> 0.001098196257 | I17: =LookUp_atlas("SAAR_ref",B17,$B$1,$B$2) -> 3.14036107e-05 | J17: =IF(is_Baltic($B$1,$B$2)=1,"Baltic",G17*I17) -> 0.001125322653 | K17: =IF(is_Baltic($B$1,$B$2)=1,SA_Baltic(F17),G17+J17) -> 35.8353058 | L17: 11.60221547 | M17: =pt0_from_t(K17,L17,B17) -> 11.55033842 | N17: =CT_from_pt(K17,M17) -> 11.52584408 | O17: =sigma0(K17,N17) -> 27.19559548 | P17: =rho(K17,N17,B17) -> 1028.974749 | Q17: =Sound_Speed(K17,N17,B17) -> 1502.775177
B18: 500 | C18: 35.665 | E18: 11.211 | F18: =IF(C18 ="",SP_from_C(A18,L18,B18),C18) -> 35.665 | G18: 35.83317576 | H18: =LookUp_atlas("deltaSA_ref",B18,$B$1,$B$2) -> 0.001317181215 | I18: =LookUp_atlas("SAAR_ref",B18,$B$1,$B$2) -> 3.714153761e-05 | J18: =IF(is_Baltic($B$1,$B$2)=1,"Baltic",G18*I18) -> 0.001330899245 | K18: =IF(is_Baltic($B$1,$B$2)=1,SA_Baltic(F18),G18+J18) -> 35.83450666 | L18: 11.20831001 | M18: =pt0_from_t(K18,L18,B18) -> 11.14457668 | N18: =CT_from_pt(K18,M18) -> 11.12056118 | O18: =sigma0(K18,N18) -> 27.27043116 | P18: =rho(K18,N18,B18) -> 1029.496072 | Q18: =Sound_Speed(K18,N18,B18) -> 1503.042625
B19: 600 | C19: 35.712 | E19: 10.994 | F19: =IF(C19 ="",SP_from_C(A19,L19,B19),C19) -> 35.712 | G19: 35.88039739 | H19: =LookUp_atlas("deltaSA_ref",B19,$B$1,$B$2) -> 0.001569404705 | I19: =LookUp_atlas("SAAR_ref",B19,$B$1,$B$2) -> 4.350037435e-05 | J19: =IF(is_Baltic($B$1,$B$2)=1,"Baltic",G19*I19) -> 0.001560810718 | K19: =IF(is_Baltic($B$1,$B$2)=1,SA_Baltic(F19),G19+J19) -> 35.8819582 | L19: 10.99136207 | M19: =pt0_from_t(K19,L19,B19) -> 10.91542752 | N19: =CT_from_pt(K19,M19) -> 10.89074644 | O19: =sigma0(K19,N19) -> 27.34910985 | P19: =rho(K19,N19,B19) -> 1030.019556 | Q19: =Sound_Speed(K19,N19,B19) -> 1503.975829
B20: 700 | C20: 35.859 | E20: 11.162 | F20: =IF(C20 ="",SP_from_C(A20,L20,B20),C20) -> 35.859 | G20: =(35.16504/35)*F20 -> 36.02809055 | H20: =LookUp_atlas("deltaSA_ref",B20,$B$1,$B$2) -> 0.001802342985 | I20: =LookUp_atlas("SAAR_ref",B20,$B$1,$B$2) -> 4.968482365e-05 | J20: =IF(is_Baltic($B$1,$B$2)=1,"Baltic",G20*I20) -> 0.001790049325 | K20: =IF(is_Baltic($B$1,$B$2)=1,SA_Baltic(F20),G20+J20) -> 36.0298806 | L20: =IF(D20 ="",E20/1.00024,D20) -> 11.15932176 | M20: =pt0_from_t(K20,L20,B20) -> 11.06938223 | N20: =CT_from_pt(K20,M20) -> 11.04155114 | O20: =sigma0(K20,N20) -> 27.43564946 | P20: =rho(K20,N20,B20) -> 1030.544725 | Q20: =Sound_Speed(K20,N20,B20) -> 1506.375659
B21: 800 | C21: 35.975 | E21: 11.211 | F21: =IF(C21 ="",SP_from_C(A21,L21,B21),C21) -> 35.975 | G21: 36.14463754 | H21: =LookUp_atlas("deltaSA_ref",B21,$B$1,$B$2) -> 0.001994996776 | I21: =LookUp_atlas("SAAR_ref",B21,$B$1,$B$2) -> 5.494168492e-05 | J21: =IF(is_Baltic($B$1,$B$2)=1,"Baltic",G21*I21) -> 0.001985847287 | K21: =IF(is_Baltic($B$1,$B$2)=1,SA_Baltic(F21),G21+J21) -> 36.14662339 | L21: 11.20831001 | M21: =pt0_from_t(K21,L21,B21) -> 11.10468756 | N21: =CT_from_pt(K21,M21) -> 11.07446481 | O21: =sigma0(K21,N21) -> 27.5196328 | P21: =rho(K21,N21,B21) -> 1031.067661 | Q21: =Sound_Speed(K21,N21,B21) -> 1508.323076
B22: 900 | C22: 36.038 | E22: 11.119 | F22: =IF(C22 ="",SP_from_C(A22,L22,B22),C22) -> 36.038 | G22: 36.20793461 | H22: =LookUp_atlas("deltaSA_ref",B22,$B$1,$B$2) -> 0.002148921202 | I22: =LookUp_atlas("SAAR_ref",B22,$B$1,$B$2) -> 5.915472883e-05 | J22: =IF(is_Baltic($B$1,$B$2)=1,"Baltic",G22*I22) -> 0.002141870554 | K22: =IF(is_Baltic($B$1,$B$2)=1,SA_Baltic(F22),G22+J22) -> 36.21007649 | L22: 11.11633208 | M22: =pt0_from_t(K22,L22,B22) -> 10.99976577 | N22: =CT_from_pt(K22,M22) -> 10.96844626 | O22: =sigma0(K22,N22) -> 27.58809421 | P22: =rho(K22,N22,B22) -> 1031.576728 | Q22: =Sound_Speed(K22,N22,B22) -> 1509.716607
B23: 1000 | C23: 36.095 | E23: 11.009 | F23: =IF(C23 ="",SP_from_C(A23,L23,B23),C23) -> 36.095 | G23: 36.26520339 | H23: =LookUp_atlas("deltaSA_ref",B23,$B$1,$B$2) -> 0.002292975121 | I23: =LookUp_atlas("SAAR_ref",B23,$B$1,$B$2) -> 6.304886462e-05 | J23: =IF(is_Baltic($B$1,$B$2)=1,"Baltic",G23*I23) -> 0.002286479899 | K23: =IF(is_Baltic($B$1,$B$2)=1,SA_Baltic(F23),G23+J23) -> 36.26748987 | L23: 11.00635847 | M23: =pt0_from_t(K23,L23,B23) -> 10.87698071 | N23: =CT_from_pt(K23,M23) -> 10.84473462 | O23: =sigma0(K23,N23) -> 27.65504763 | P23: =rho(K23,N23,B23) -> 1032.084065 | Q23: =Sound_Speed(K23,N23,B23) -> 1511.040526
B24: 1100 | C24: 36.126 | E24: 10.872 | F24: =IF(C24 ="",SP_from_C(A24,L24,B24),C24) -> 36.126 | G24: 36.29634957 | H24: =LookUp_atlas("deltaSA_ref",B24,$B$1,$B$2) -> 0.002387564903 | I24: =LookUp_atlas("SAAR_ref",B24,$B$1,$B$2) -> 6.57806024e-05 | J24: =IF(is_Baltic($B$1,$B$2)=1,"Baltic",G24*I24) -> 0.00238759574 | K24: =IF(is_Baltic($B$1,$B$2)=1,SA_Baltic(F24),G24+J24) -> 36.29873717 | L24: 10.86939135 | M24: =pt0_from_t(K24,L24,B24) -> 10.7274705 | N24: =CT_from_pt(K24,M24) -> 10.69488116 | O24: =sigma0(K24,N24) -> 27.70641706 | P24: =rho(K24,N24,B24) -> 1032.576085 | Q24: =Sound_Speed(K24,N24,B24) -> 1512.238596
B25: 1200 | C25: 36.131 | E25: 10.662 | F25: =IF(C25 ="",SP_from_C(A25,L25,B25),C25) -> 36.131 | G25: 36.30137315 | H25: =LookUp_atlas("deltaSA_ref",B25,$B$1,$B$2) -> 0.002483651493 | I25: =LookUp_atlas("SAAR_ref",B25,$B$1,$B$2) -> 6.880729477e-05 | J25: =IF(is_Baltic($B$1,$B$2)=1,"Baltic",G25*I25) -> 0.002497799283 | K25: =IF(is_Baltic($B$1,$B$2)=1,SA_Baltic(F25),G25+J25) -> 36.30387095 | L25: 10.65944173 | M25: =pt0_from_t(K25,L25,B25) -> 10.50568971 | N25: =CT_from_pt(K25,M25) -> 10.47341552 | O25: =sigma0(K25,N25) -> 27.75024542 | P25: =rho(K25,N25,B25) -> 1033.062205 | Q25: =Sound_Speed(K25,N25,B25) -> 1513.147553
B26: 1300 | C26: 35.982 | E26: 9.71 | F26: =IF(C26 ="",SP_from_C(A26,L26,B26),C26) -> 35.982 | G26: 36.15167055 | H26: =LookUp_atlas("deltaSA_ref",B26,$B$1,$B$2) -> 0.002622301987 | I26: =LookUp_atlas("SAAR_ref",B26,$B$1,$B$2) -> 7.290099681e-05 | J26: =IF(is_Baltic($B$1,$B$2)=1,"Baltic",G26*I26) -> 0.002635492819 | K26: =IF(is_Baltic($B$1,$B$2)=1,SA_Baltic(F26),G26+J26) -> 36.15430604 | L26: 9.707670159 | M26: =pt0_from_t(K26,L26,B26) -> 9.549193499 | N26: =CT_from_pt(K26,M26) -> 9.52149449 | O26: =sigma0(K26,N26) -> 27.79998599 | P26: =rho(K26,N26,B26) -> 1033.575987 | Q26: =Sound_Speed(K26,N26,B26) -> 1511.207887
B27: 1400 | C27: 35.822 | E27: 8.707 | F27: =IF(C27 ="",SP_from_C(A27,L27,B27),C27) -> 35.822 | G27: 35.99091608 | H27: =LookUp_atlas("deltaSA_ref",B27,$B$1,$B$2) -> 0.002800263516 | I27: =LookUp_atlas("SAAR_ref",B27,$B$1,$B$2) -> 7.843412541e-05 | J27: =IF(is_Baltic($B$1,$B$2)=1,"Baltic",G27*I27) -> 0.002822916026 | K27: =IF(is_Baltic($B$1,$B$2)=1,SA_Baltic(F27),G27+J27) -> 35.993739 | L27: 8.704910821 | M27: =pt0_from_t(K27,L27,B27) -> 8.543537731 | N27: =CT_from_pt(K27,M27) -> 8.520438687 | O27: =sigma0(K27,N27) -> 27.83887858 | P27: =rho(K27,N27,B27) -> 1034.084735 | Q27: =Sound_Speed(K27,N27,B27) -> 1508.981504
B28: 1500 | C28: 35.663 | E28: 7.724 | F28: =IF(C28 ="",SP_from_C(A28,L28,B28),C28) -> 35.663 | G28: 35.83116633 | H28: =LookUp_atlas("deltaSA_ref",B28,$B$1,$B$2) -> 0.002997159615 | I28: =LookUp_atlas("SAAR_ref",B28,$B$1,$B$2) -> 8.544622224e-05 | J28: =IF(is_Baltic($B$1,$B$2)=1,"Baltic",G28*I28) -> 0.003061637801 | K28: =IF(is_Baltic($B$1,$B$2)=1,SA_Baltic(F28),G28+J28) -> 35.83422797 | L28: 7.722146685 | M28: =pt0_from_t(K28,L28,B28) -> 7.559076243 | N28: =CT_from_pt(K28,M28) -> 7.540231548 | O28: =sigma0(K28,N28) -> 27.86410901 | P28: =rho(K28,N28,B28) -> 1034.58381 | Q28: =Sound_Speed(K28,N28,B28) -> 1506.737973
B29: 1750 | C29: 35.294 | E29: 5.545 | F29: =IF(C29 ="",SP_from_C(A29,L29,B29),C29) -> 35.294 | G29: 35.46042634 | H29: =LookUp_atlas("deltaSA_ref",B29,$B$1,$B$2) -> 0.003490362067 | I29: =LookUp_atlas("SAAR_ref",B29,$B$1,$B$2) -> 0.0001002967626 | J29: =IF(is_Baltic($B$1,$B$2)=1,"Baltic",G29*I29) -> 0.003556565963 | K29: =IF(is_Baltic($B$1,$B$2)=1,SA_Baltic(F29),G29+J29) -> 35.4639829 | L29: 5.543669519 | M29: =pt0_from_t(K29,L29,B29) -> 5.37894296 | N29: =CT_from_pt(K29,M29) -> 5.368632331 | O29: =sigma0(K29,N29) -> 27.86630994 | P29: =rho(K29,N29,B29) -> 1035.779754 | Q29: =Sound_Speed(K29,N29,B29) -> 1501.884393
B30: 2000 | C30: 35.078 | E30: 4.156 | F30: =IF(C30 ="",SP_from_C(A30,L30,B30),C30) -> 35.078 | G30: 35.2434078 | H30: =LookUp_atlas("deltaSA_ref",B30,$B$1,$B$2) -> 0.004223545201 | I30: =LookUp_atlas("SAAR_ref",B30,$B$1,$B$2) -> 0.0001205949545 | J30: =IF(is_Baltic($B$1,$B$2)=1,"Baltic",G30*I30) -> 0.00425017716 | K30: =IF(is_Baltic($B$1,$B$2)=1,SA_Baltic(F30),G30+J30) -> 35.24765798 | L30: 4.155002799 | M30: =pt0_from_t(K30,L30,B30) -> 3.984318743 | N30: =CT_from_pt(K30,M30) -> 3.978343678 | O30: =sigma0(K30,N30) -> 27.85353388 | P30: =rho(K30,N30,B30) -> 1036.94576 | Q30: =Sound_Speed(K30,N30,B30) -> 1500.085361
B31: 2500 | C31: 34.977 | E31: 3.237 | F31: =IF(C31 ="",SP_from_C(A31,L31,B31),C31) -> 34.977 | G31: 35.14193155 | H31: =LookUp_atlas("deltaSA_ref",B31,$B$1,$B$2) -> 0.006281622173 | I31: =LookUp_atlas("SAAR_ref",B31,$B$1,$B$2) -> 0.0001771149092 | J31: =IF(is_Baltic($B$1,$B$2)=1,"Baltic",G31*I31) -> 0.006224160016 | K31: =IF(is_Baltic($B$1,$B$2)=1,SA_Baltic(F31),G31+J31) -> 35.14815571 | L31: 3.236223306 | M31: =pt0_from_t(K31,L31,B31) -> 3.031198801 | N31: =CT_from_pt(K31,M31) -> 3.027362375 | O31: =sigma0(K31,N31) -> 27.86902908 | P31: =rho(K31,N31,B31) -> 1039.234526 | Q31: =Sound_Speed(K31,N31,B31) -> 1504.461504
B32: 3000 | C32: 34.93 | E32: 2.825 | F32: =IF(C32 ="",SP_from_C(A32,L32,B32),C32) -> 34.93 | G32: 35.09470992 | H32: =LookUp_atlas("deltaSA_ref",B32,$B$1,$B$2) -> 0.008163835833 | I32: =LookUp_atlas("SAAR_ref",B32,$B$1,$B$2) -> 0.0002289607352 | J32: =IF(is_Baltic($B$1,$B$2)=1,"Baltic",G32*I32) -> 0.008035310584 | K32: =IF(is_Baltic($B$1,$B$2)=1,SA_Baltic(F32),G32+J32) -> 35.10274523 | L32: 2.824322163 | M32: =pt0_from_t(K32,L32,B32) -> 2.576652915 | N32: =CT_from_pt(K32,M32) -> 2.573746154 | O32: =sigma0(K32,N32) -> 27.87397021 | P32: =rho(K32,N32,B32) -> 1041.473008 | Q32: =Sound_Speed(K32,N32,B32) -> 1511.083181
B33: 3500 | C33: 34.91 | E33: 2.641 | F33: =IF(C33 ="",SP_from_C(A33,L33,B33),C33) -> 34.91 | G33: 35.07461561 | H33: =LookUp_atlas("deltaSA_ref",B33,$B$1,$B$2) -> 0.009544805636 | I33: =LookUp_atlas("SAAR_ref",B33,$B$1,$B$2) -> 0.0002689746652 | J33: =IF(is_Baltic($B$1,$B$2)=1,"Baltic",G33*I33) -> 0.00943418299 | K33: =IF(is_Baltic($B$1,$B$2)=1,SA_Baltic(F33),G33+J33) -> 35.08404979 | L33: 2.640366312 | M33: =pt0_from_t(K33,L33,B33) -> 2.343560698 | N33: =CT_from_pt(K33,M33) -> 2.341076448 | O33: =sigma0(K33,N33) -> 27.87912412 | P33: =rho(K33,N33,B33) -> 1043.677475 | Q33: =Sound_Speed(K33,N33,B33) -> 1518.772138
B34: 4000 | C34: 34.9 | E34: 2.5 | F34: =IF(C34 ="",SP_from_C(A34,L34,B34),C34) -> 34.9 | G34: 35.06456846 | H34: =LookUp_atlas("deltaSA_ref",B34,$B$1,$B$2) -> 0.01042508743 | I34: =LookUp_atlas("SAAR_ref",B34,$B$1,$B$2) -> 0.0002951551895 | J34: =IF(is_Baltic($B$1,$B$2)=1,"Baltic",G34*I34) -> 0.01034948935 | K34: =IF(is_Baltic($B$1,$B$2)=1,SA_Baltic(F34),G34+J34) -> 35.07491795 | L34: 2.499400144 | M34: =pt0_from_t(K34,L34,B34) -> 2.150065629 | N34: =CT_from_pt(K34,M34) -> 2.147876697 | O34: =sigma0(K34,N34) -> 27.88795807 | P34: =rho(K34,N34,B34) -> 1045.862219 | Q34: =Sound_Speed(K34,N34,B34) -> 1526.718581
B35: 4500 | C35: 34.9 | E35: 2.51 | F35: =IF(C35 ="",SP_from_C(A35,L35,B35),C35) -> 34.9 | G35: 35.06456846 | H35: =LookUp_atlas("deltaSA_ref",B35,$B$1,$B$2) -> 0.01075006852 | I35: =LookUp_atlas("SAAR_ref",B35,$B$1,$B$2) -> 0.0003050814799 | J35: =IF(is_Baltic($B$1,$B$2)=1,"Baltic",G35*I35) -> 0.01069755044 | K35: =IF(is_Baltic($B$1,$B$2)=1,SA_Baltic(F35),G35+J35) -> 35.07526601 | L35: 2.509397745 | M35: =pt0_from_t(K35,L35,B35) -> 2.100447927 | N35: =CT_from_pt(K35,M35) -> 2.098314168 | O35: =sigma0(K35,N35) -> 27.89228933 | P35: =rho(K35,N35,B35) -> 1048.005155 | Q35: =Sound_Speed(K35,N35,B35) -> 1535.374964

Sheet CTD-020
A1: Longitude | B1: -10.0167
A2: Latitude | B2: 40.083
A3: Conductivity | B3: p | C3: SP | D3: temp ITS-90 | E3: temp IPTS-68 | F3: SP from C | G3: SR | H3: delta SA Atlas | I3: SAAR Atlas | J3: delta SA | K3: Absolute Salinity (SA) | L3: t ITS-90 | M3: Potential t | N3: Conservative Temperature (Θ) | O3: Potential Density ( σΘ ) | P3: In situ Density (ρSA, Θ, p) | Q3: Sound Speed (c)
A4: (mS cm-1) | B4: (dbar) | D4: (ºC) | E4: (ºC) | G4: (g kg-1) | H4: (g kg-1) | I4: (g kg-1) | J4: (g kg-1) | K4: (g kg-1) | L4: (ºC) | M4: (ºC) | N4: (ºC) | O4: (kg m-3 - 1000) | P4: (kg m-3) | Q4: (m s-1)
B5: 2 | C5: 35.6178 | E5: 18.6421 | F5: =IF(C5 ="",SP_from_C(A5,L5,B5),C5) -> 35.6178 | G5: =(35.16504/35)*F5 -> 35.78575319 | H5: =LookUp_atlas("deltaSA_ref",B5,$B$1,$B$2) -> 0.0001988368883 | I5: =LookUp_atlas("SAAR_ref",B5,$B$1,$B$2) -> 5.462297538e-06 | J5: =IF(is_Baltic($B$1,$B$2)=1,"Baltic",G5*I5) -> 0.0001954724315 | K5: =IF(is_Baltic($B$1,$B$2)=1,SA_Baltic(F5),G5+J5) -> 35.78594866 | L5: =IF(D5 ="",E5/1.00024,D5) -> 18.63762697 | M5: =pt0_from_t(K5,L5,B5) -> 18.63727517 | N5: =CT_from_pt(K5,M5) -> 18.61040782 | O5: =sigma0(K5,N5) -> 25.58951713 | P5: =rho(K5,N5,B5) -> 1025.598193 | Q5: =Sound_Speed(K5,N5,B5) -> 1518.305909
B6: 3 | C6: 35.6178 | E6: 18.6309 | F6: =IF(C6 ="",SP_from_C(A6,L6,B6),C6) -> 35.6178 | G6: =(35.16504/35)*F6 -> 35.78575319 | H6: =LookUp_atlas("deltaSA_ref",B6,$B$1,$B$2) -> 0.0001990117001 | I6: =LookUp_atlas("SAAR_ref",B6,$B$1,$B$2) -> 5.469159791e-06 | J6: =IF(is_Baltic($B$1,$B$2)=1,"Baltic",G6*I6) -> 0.0001957180025 | K6: =IF(is_Baltic($B$1,$B$2)=1,SA_Baltic(F6),G6+J6) -> 35.78594891 | L6: =IF(D6 ="",E6/1.00024,D6) -> 18.62642966 | M6: =pt0_from_t(K6,L6,B6) -> 18.62590216 | N6: =CT_from_pt(K6,M6) -> 18.59903383 | O6: =sigma0(K6,N6) -> 25.59239595 | P6: =rho(K6,N6,B6) -> 1025.60541 | Q6: =Sound_Speed(K6,N6,B6) -> 1518.290429
B7: 4 | C7: 35.6216 | E7: 18.6285 | F7: =IF(C7 ="",SP_from_C(A7,L7,B7),C7) -> 35.6216 | G7: 35.78957111 | H7: =LookUp_atlas("deltaSA_ref",B7,$B$1,$B$2) -> 0.000199186512 | I7: =LookUp_atlas("SAAR_ref",B7,$B$1,$B$2) -> 5.476022045e-06 | J7: =IF(is_Baltic($B$1,$B$2)=1,"Baltic",G7*I7) -> 0.0001959844804 | K7: =IF(is_Baltic($B$1,$B$2)=1,SA_Baltic(F7),G7+J7) -> 35.78976709 | L7: 18.62403023 | M7: =pt0_from_t(K7,L7,B7) -> 18.62332694 | N7: =CT_from_pt(K7,M7) -> 18.59634516 | O7: =sigma0(K7,N7) -> 25.5959537 | P7: =rho(K7,N7,B7) -> 1025.613306 | Q7: =Sound_Speed(K7,N7,B7) -> 1518.304321
B8: 5 | C8: 35.6223 | E8: 18.6248 | F8: =IF(C8 ="",SP_from_C(A8,L8,B8),C8) -> 35.6223 | G8: 35.79027441 | H8: =LookUp_atlas("deltaSA_ref",B8,$B$1,$B$2) -> 0.0001993613238 | I8: =LookUp_atlas("SAAR_ref",B8,$B$1,$B$2) -> 5.482884298e-06 | J8: =IF(is_Baltic($B$1,$B$2)=1,"Baltic",G8*I8) -> 0.0001962339336 | K8: =IF(is_Baltic($B$1,$B$2)=1,SA_Baltic(F8),G8+J8) -> 35.79047065 | L8: 18.62033112 | M8: =pt0_from_t(K8,L8,B8) -> 18.61945211 | N8: =CT_from_pt(K8,M8) -> 18.59244916 | O8: =sigma0(K8,N8) -> 25.59746963 | P8: =rho(K8,N8,B8) -> 1025.61916 | Q8: =Sound_Speed(K8,N8,B8) -> 1518.311
B9: 6 | C9: 35.6218 | E9: 18.622 | F9: =IF(C9 ="",SP_from_C(A9,L9,B9),C9) -> 35.6218 | G9: =(35.16504/35)*F9 -> 35.78977205 | H9: =LookUp_atlas("deltaSA_ref",B9,$B$1,$B$2) -> 0.0001995361357 | I9: =LookUp_atlas("SAAR_ref",B9,$B$1,$B$2) -> 5.489746552e-06 | J9: =IF(is_Baltic($B$1,$B$2)=1,"Baltic",G9*I9) -> 0.0001964767777 | K9: =IF(is_Baltic($B$1,$B$2)=1,SA_Baltic(F9),G9+J9) -> 35.78996853 | L9: 18.61753179 | M9: =pt0_from_t(K9,L9,B9) -> 18.61647707 | N9: =CT_from_pt(K9,M9) -> 18.58948877 | O9: =sigma0(K9,N9) -> 25.59784014 | P9: =rho(K9,N9,B9) -> 1025.623869 | Q9: =Sound_Speed(K9,N9,B9) -> 1518.318887
B10: 7 | C10: 35.6243 | E10: 18.6045 | F10: =IF(C10 ="",SP_from_C(A10,L10,B10),C10) -> 35.6243 | G10: 35.79228384 | H10: =LookUp_atlas("deltaSA_ref",B10,$B$1,$B$2) -> 0.0001997109475 | I10: =LookUp_atlas("SAAR_ref",B10,$B$1,$B$2) -> 5.496608806e-06 | J10: =IF(is_Baltic($B$1,$B$2)=1,"Baltic",G10*I10) -> 0.0001967361825 | K10: =IF(is_Baltic($B$1,$B$2)=1,SA_Baltic(F10),G10+J10) -> 35.79248058 | L10: 18.60003599 | M10: =pt0_from_t(K10,L10,B10) -> 18.59880625 | N10: =CT_from_pt(K10,M10) -> 18.57174218 | O10: =sigma0(K10,N10) -> 25.60422134 | P10: =rho(K10,N10,B10) -> 1025.63459 | Q10: =Sound_Speed(K10,N10,B10) -> 1518.28825
B11: 8 | C11: 35.6237 | E11: 18.6167 | F11: =IF(C11 ="",SP_from_C(A11,L11,B11),C11) -> 35.6237 | G11: 35.79168101 | H11: =LookUp_atlas("deltaSA_ref",B11,$B$1,$B$2) -> 0.0001998857594 | I11: =LookUp_atlas("SAAR_ref",B11,$B$1,$B$2) -> 5.503471059e-06 | J11: =IF(is_Baltic($B$1,$B$2)=1,"Baltic",G11*I11) -> 0.0001969784806 | K11: =IF(is_Baltic($B$1,$B$2)=1,SA_Baltic(F11),G11+J11) -> 35.79187799 | L11: 18.61223306 | M11: =pt0_from_t(K11,L11,B11) -> 18.61082697 | N11: =CT_from_pt(K11,M11) -> 18.58378164 | O11: =sigma0(K11,N11) -> 25.60072276 | P11: =rho(K11,N11,B11) -> 1025.635428 | Q11: =Sound_Speed(K11,N11,B11) -> 1518.338793
B12: 9 | C12: 35.6222 | E12: 18.6221 | F12: =IF(C12 ="",SP_from_C(A12,L12,B12),C12) -> 35.6222 | G12: 35.79017394 | H12: =LookUp_atlas("deltaSA_ref",B12,$B$1,$B$2) -> 0.0002000605712 | I12: =LookUp_atlas("SAAR_ref",B12,$B$1,$B$2) -> 5.510333313e-06 | J12: =IF(is_Baltic($B$1,$B$2)=1,"Baltic",G12*I12) -> 0.0001972157877 | K12: =IF(is_Baltic($B$1,$B$2)=1,SA_Baltic(F12),G12+J12) -> 35.79037116 | L12: 18.61763177 | M12: =pt0_from_t(K12,L12,B12) -> 18.61604957 | N12: =CT_from_pt(K12,M12) -> 18.5890493 | O12: =sigma0(K12,N12) -> 25.59825474 | P12: =rho(K12,N12,B12) -> 1025.637297 | Q12: =Sound_Speed(K12,N12,B12) -> 1518.368924
B13: 10 | C13: 35.622 | E13: 18.6171 | F13: =IF(C13 ="",SP_from_C(A13,L13,B13),C13) -> 35.622 | G13: 35.789973 | H13: =LookUp_atlas("deltaSA_ref",B13,$B$1,$B$2) -> 0.0002002353831 | I13: =LookUp_atlas("SAAR_ref",B13,$B$1,$B$2) -> 5.517195566e-06 | J13: =IF(is_Baltic($B$1,$B$2)=1,"Baltic",G13*I13) -> 0.0001974602803 | K13: =IF(is_Baltic($B$1,$B$2)=1,SA_Baltic(F13),G13+J13) -> 35.79017046 | L13: 18.61263297 | M13: =pt0_from_t(K13,L13,B13) -> 18.61087527 | N13: =CT_from_pt(K13,M13) -> 18.58388055 | O13: =sigma0(K13,N13) -> 25.59941088 | P13: =rho(K13,N13,B13) -> 1025.642791 | Q13: =Sound_Speed(K13,N13,B13) -> 1518.370877
B14: 11 | C14: 35.6186 | E14: 18.6188 | F14: =IF(C14 ="",SP_from_C(A14,L14,B14),C14) -> 35.6186 | G14: 35.78655696 | H14: =LookUp_atlas("deltaSA_ref",B14,$B$1,$B$2) -> 0.0002013995351 | I14: =LookUp_atlas("SAAR_ref",B14,$B$1,$B$2) -> 5.552022234e-06 | J14: =IF(is_Baltic($B$1,$B$2)=1,"Baltic",G14*I14) -> 0.0001986877599 | K14: =IF(is_Baltic($B$1,$B$2)=1,SA_Baltic(F14),G14+J14) -> 35.78675565 | L14: 18.61433256 | M14: =pt0_from_t(K14,L14,B14) -> 18.61239897 | N14: =CT_from_pt(K14,M14) -> 18.58550559 | O14: =sigma0(K14,N14) -> 25.59642634 | P14: =rho(K14,N14,B14) -> 1025.644144 | Q14: =Sound_Speed(K14,N14,B14) -> 1518.388311
B15: 12 | C15: 35.6159 | E15: 18.5055 | F15: =IF(C15 ="",SP_from_C(A15,L15,B15),C15) -> 35.6159 | G15: 35.78384423 | H15: =LookUp_atlas("deltaSA_ref",B15,$B$1,$B$2) -> 0.0002025636871 | I15: =LookUp_atlas("SAAR_ref",B15,$B$1,$B$2) -> 5.586848902e-06 | J15: =IF(is_Baltic($B$1,$B$2)=1,"Baltic",G15*I15) -> 0.0001999189309 | K15: =IF(is_Baltic($B$1,$B$2)=1,SA_Baltic(F15),G15+J15) -> 35.78404415 | L15: 18.50105975 | M15: =pt0_from_t(K15,L15,B15) -> 18.49895943 | N15: =CT_from_pt(K15,M15) -> 18.4721378 | O15: =sigma0(K15,N15) -> 25.62300054 | P15: =rho(K15,N15,B15) -> 1025.675078 | Q15: =Sound_Speed(K15,N15,B15) -> 1518.07816
B16: 13 | C16: 35.637 | E16: 18.4172 | F16: =IF(C16 ="",SP_from_C(A16,L16,B16),C16) -> 35.637 | G16: 35.80504373 | H16: =LookUp_atlas("deltaSA_ref",B16,$B$1,$B$2) -> 0.0002037278391 | I16: =LookUp_atlas("SAAR_ref",B16,$B$1,$B$2) -> 5.62167557e-06 | J16: =IF(is_Baltic($B$1,$B$2)=1,"Baltic",G16*I16) -> 0.0002012843396 | K16: =IF(is_Baltic($B$1,$B$2)=1,SA_Baltic(F16),G16+J16) -> 35.80524501 | L16: 18.41278093 | M16: =pt0_from_t(K16,L16,B16) -> 18.41051291 | N16: =CT_from_pt(K16,M16) -> 18.38306283 | O16: =sigma0(K16,N16) -> 25.66139536 | P16: =rho(K16,N16,B16) -> 1025.717829 | Q16: =Sound_Speed(K16,N16,B16) -> 1517.86566
B17: 14 | C17: 35.6348 | E17: 18.3262 | F17: =IF(C17 ="",SP_from_C(A17,L17,B17),C17) -> 35.6348 | G17: 35.80283335 | H17: =LookUp_atlas("deltaSA_ref",B17,$B$1,$B$2) -> 0.0002048919912 | I17: =LookUp_atlas("SAAR_ref",B17,$B$1,$B$2) -> 5.656502238e-06 | J17: =IF(is_Baltic($B$1,$B$2)=1,"Baltic",G17*I17) -> 0.000202518807 | K17: =IF(is_Baltic($B$1,$B$2)=1,SA_Baltic(F17),G17+J17) -> 35.80303587 | L17: 18.32180277 | M17: =pt0_from_t(K17,L17,B17) -> 18.31936877 | N17: =CT_from_pt(K17,M17) -> 18.29198158 | O17: =sigma0(K17,N17) -> 25.68257493 | P17: =rho(K17,N17,B17) -> 1025.74337 | Q17: =Sound_Speed(K17,N17,B17) -> 1517.618395
B18: 15 | C18: 35.6586 | E18: 18.0895 | F18: =IF(C18 ="",SP_from_C(A18,L18,B18),C18) -> 35.6586 | G18: 35.82674558 | H18: =LookUp_atlas("deltaSA_ref",B18,$B$1,$B$2) -> 0.0002060561432 | I18: =LookUp_atlas("SAAR_ref",B18,$B$1,$B$2) -> 5.691328906e-06 | J18: =IF(is_Baltic($B$1,$B$2)=1,"Baltic",G18*I18) -> 0.0002039017927 | K18: =IF(is_Baltic($B$1,$B$2)=1,SA_Baltic(F18),G18+J18) -> 35.82694948 | L18: 18.08515956 | M18: =pt0_from_t(K18,L18,B18) -> 18.08257501 | N18: =CT_from_pt(K18,M18) -> 18.05449556 | O18: =sigma0(K18,N18) -> 25.7598548 | P18: =rho(K18,N18,B18) -> 1025.825048 | Q18: =Sound_Speed(K18,N18,B18) -> 1516.979393
B19: 16 | C19: 35.667 | E19: 17.9771 | F19: =IF(C19 ="",SP_from_C(A19,L19,B19),C19) -> 35.667 | G19: 35.83518519 | H19: =LookUp_atlas("deltaSA_ref",B19,$B$1,$B$2) -> 0.0002072202952 | I19: =LookUp_atlas("SAAR_ref",B19,$B$1,$B$2) -> 5.726155573e-06 | J19: =IF(is_Baltic($B$1,$B$2)=1,"Baltic",G19*I19) -> 0.0002051978454 | K19: =IF(is_Baltic($B$1,$B$2)=1,SA_Baltic(F19),G19+J19) -> 35.83539039 | L19: 17.97278653 | M19: =pt0_from_t(K19,L19,B19) -> 17.97004151 | N19: =CT_from_pt(K19,M19) -> 17.94172546 | O19: =sigma0(K19,N19) -> 25.79418806 | P19: =rho(K19,N19,B19) -> 1025.863756 | Q19: =Sound_Speed(K19,N19,B19) -> 1516.679761
B20: 17 | C20: 35.6636 | E20: 17.8739 | F20: =IF(C20 ="",SP_from_C(A20,L20,B20),C20) -> 35.6636 | G20: 35.83176916 | H20: =LookUp_atlas("deltaSA_ref",B20,$B$1,$B$2) -> 0.0002083844472 | I20: =LookUp_atlas("SAAR_ref",B20,$B$1,$B$2) -> 5.760982241e-06 | J20: =IF(is_Baltic($B$1,$B$2)=1,"Baltic",G20*I20) -> 0.0002064261858 | K20: =IF(is_Baltic($B$1,$B$2)=1,SA_Baltic(F20),G20+J20) -> 35.83197558 | L20: 17.86961129 | M20: =pt0_from_t(K20,L20,B20) -> 17.86670647 | N20: =CT_from_pt(K20,M20) -> 17.83849762 | O20: =sigma0(K20,N20) -> 25.81710807 | P20: =rho(K20,N20,B20) -> 1025.891053 | Q20: =Sound_Speed(K20,N20,B20) -> 1516.392476
B21: 18 | C21: 35.6688 | E21: 17.7289 | F21: =IF(C21 ="",SP_from_C(A21,L21,B21),C21) -> 35.6688 | G21: 35.83699368 | H21: =LookUp_atlas("deltaSA_ref",B21,$B$1,$B$2) -> 0.0002095485992 | I21: =LookUp_atlas("SAAR_ref",B21,$B$1,$B$2) -> 5.795808909e-06 | J21: =IF(is_Baltic($B$1,$B$2)=1,"Baltic",G21*I21) -> 0.0002077043672 | K21: =IF(is_Baltic($B$1,$B$2)=1,SA_Baltic(F21),G21+J21) -> 35.83720138 | L21: 17.72464608 | M21: =pt0_from_t(K21,L21,B21) -> 17.72158772 | N21: =CT_from_pt(K21,M21) -> 17.69324488 | O21: =sigma0(K21,N21) -> 25.85677836 | P21: =rho(K21,N21,B21) -> 1025.935115 | Q21: =Sound_Speed(K21,N21,B21) -> 1515.992105
B22: 19 | C22: 35.6784 | E22: 17.6198 | F22: =IF(C22 ="",SP_from_C(A22,L22,B22),C22) -> 35.6784 | G22: 35.84663895 | H22: =LookUp_atlas("deltaSA_ref",B22,$B$1,$B$2) -> 0.0002107127512 | I22: =LookUp_atlas("SAAR_ref",B22,$B$1,$B$2) -> 5.830635577e-06 | J22: =IF(is_Baltic($B$1,$B$2)=1,"Baltic",G22*I22) -> 0.0002090086884 | K22: =IF(is_Baltic($B$1,$B$2)=1,SA_Baltic(F22),G22+J22) -> 35.84684796 | L22: 17.61557226 | M22: =pt0_from_t(K22,L22,B22) -> 17.61235764 | N22: =CT_from_pt(K22,M22) -> 17.58375517 | O22: =sigma0(K22,N22) -> 25.89087569 | P22: =rho(K22,N22,B22) -> 1025.973597 | Q22: =Sound_Speed(K22,N22,B22) -> 1515.700312
B23: 20 | C23: 35.6672 | E23: 17.4568 | F23: =IF(C23 ="",SP_from_C(A23,L23,B23),C23) -> 35.6672 | G23: 35.83538613 | H23: =LookUp_atlas("deltaSA_ref",B23,$B$1,$B$2) -> 0.0002118769033 | I23: =LookUp_atlas("SAAR_ref",B23,$B$1,$B$2) -> 5.865462245e-06 | J23: =IF(is_Baltic($B$1,$B$2)=1,"Baltic",G23*I23) -> 0.0002101911044 | K23: =IF(is_Baltic($B$1,$B$2)=1,SA_Baltic(F23),G23+J23) -> 35.83559633 | L23: 17.45261137 | M23: =pt0_from_t(K23,L23,B23) -> 17.44924964 | N23: =CT_from_pt(K23,M23) -> 17.42099118 | O23: =sigma0(K23,N23) -> 25.92202599 | P23: =rho(K23,N23,B23) -> 1026.009157 | Q23: =Sound_Speed(K23,N23,B23) -> 1515.225335
B24: 21 | C24: 35.668 | E24: 17.2615 | F24: =IF(C24 ="",SP_from_C(A24,L24,B24),C24) -> 35.668 | G24: 35.83618991 | H24: =LookUp_atlas("deltaSA_ref",B24,$B$1,$B$2) -> 0.0002128348198 | I24: =LookUp_atlas("SAAR_ref",B24,$B$1,$B$2) -> 5.897841497e-06 | J24: =IF(is_Baltic($B$1,$B$2)=1,"Baltic",G24*I24) -> 0.0002113561679 | K24: =IF(is_Baltic($B$1,$B$2)=1,SA_Baltic(F24),G24+J24) -> 35.83640126 | L24: 17.25735823 | M24: =pt0_from_t(K24,L24,B24) -> 17.25385593 | N24: =CT_from_pt(K24,M24) -> 17.22560993 | O24: =sigma0(K24,N24) -> 25.96992929 | P24: =rho(K24,N24,B24) -> 1026.061485 | Q24: =Sound_Speed(K24,N24,B24) -> 1514.666397
B25: 22 | C25: 35.6997 | E25: 17.0617 | F25: =IF(C25 ="",SP_from_C(A25,L25,B25),C25) -> 35.6997 | G25: 35.86803939 | H25: =LookUp_atlas("deltaSA_ref",B25,$B$1,$B$2) -> 0.0002137927363 | I25: =LookUp_atlas("SAAR_ref",B25,$B$1,$B$2) -> 5.930220749e-06 | J25: =IF(is_Baltic($B$1,$B$2)=1,"Baltic",G25*I25) -> 0.0002127053914 | K25: =IF(is_Baltic($B$1,$B$2)=1,SA_Baltic(F25),G25+J25) -> 35.86825209 | L25: 17.05760617 | M25: =pt0_from_t(K25,L25,B25) -> 17.05396586 | N25: =CT_from_pt(K25,M25) -> 17.02488013 | O25: =sigma0(K25,N25) -> 26.04228201 | P25: =rho(K25,N25,B25) -> 1026.138267 | Q25: =Sound_Speed(K25,N25,B25) -> 1514.126422
B26: 23 | C26: 35.7063 | E26: 16.9405 | F26: =IF(C26 ="",SP_from_C(A26,L26,B26),C26) -> 35.7063 | G26: 35.87467051 | H26: =LookUp_atlas("deltaSA_ref",B26,$B$1,$B$2) -> 0.0002147506528 | I26: =LookUp_atlas("SAAR_ref",B26,$B$1,$B$2) -> 5.962600001e-06 | J26: =IF(is_Baltic($B$1,$B$2)=1,"Baltic",G26*I26) -> 0.0002139063104 | K26: =IF(is_Baltic($B$1,$B$2)=1,SA_Baltic(F26),G26+J26) -> 35.87488441 | L26: 16.93643526 | M26: =pt0_from_t(K26,L26,B26) -> 16.93264802 | N26: =CT_from_pt(K26,M26) -> 16.90341328 | O26: =sigma0(K26,N26) -> 26.07633163 | P26: =rho(K26,N26,B26) -> 1026.176726 | Q26: =Sound_Speed(K26,N26,B26) -> 1513.789315
B27: 24 | C27: 35.7117 | E27: 16.7408 | F27: =IF(C27 ="",SP_from_C(A27,L27,B27),C27) -> 35.7117 | G27: 35.88009597 | H27: =LookUp_atlas("deltaSA_ref",B27,$B$1,$B$2) -> 0.0002157085693 | I27: =LookUp_atlas("SAAR_ref",B27,$B$1,$B$2) -> 5.994979254e-06 | J27: =IF(is_Baltic($B$1,$B$2)=1,"Baltic",G27*I27) -> 0.000215100431 | K27: =IF(is_Baltic($B$1,$B$2)=1,SA_Baltic(F27),G27+J27) -> 35.88031107 | L27: 16.73678317 | M27: =pt0_from_t(K27,L27,B27) -> 16.73286343 | N27: =CT_from_pt(K27,M27) -> 16.70354283 | O27: =sigma0(K27,N27) -> 26.12792494 | P27: =rho(K27,N27,B27) -> 1026.232765 | Q27: =Sound_Speed(K27,N27,B27) -> 1513.214389
B28: 25 | C28: 35.7213 | E28: 16.5073 | F28: =IF(C28 ="",SP_from_C(A28,L28,B28),C28) -> 35.7213 | G28: 35.88974124 | H28: =LookUp_atlas("deltaSA_ref",B28,$B$1,$B$2) -> 0.0002166664858 | I28: =LookUp_atlas("SAAR_ref",B28,$B$1,$B$2) -> 6.027358506e-06 | J28: =IF(is_Baltic($B$1,$B$2)=1,"Baltic",G28*I28) -> 0.0002163203371 | K28: =IF(is_Baltic($B$1,$B$2)=1,SA_Baltic(F28),G28+J28) -> 35.88995756 | L28: 16.5033392 | M28: =pt0_from_t(K28,L28,B28) -> 16.49929529 | N28: =CT_from_pt(K28,M28) -> 16.46979676 | O28: =sigma0(K28,N28) -> 26.19032094 | P28: =rho(K28,N28,B28) -> 1026.299628 | Q28: =Sound_Speed(K28,N28,B28) -> 1512.539074
B29: 26 | C29: 35.718 | E29: 16.4239 | F29: =IF(C29 ="",SP_from_C(A29,L29,B29),C29) -> 35.718 | G29: 35.88642568 | H29: =LookUp_atlas("deltaSA_ref",B29,$B$1,$B$2) -> 0.0002176244023 | I29: =LookUp_atlas("SAAR_ref",B29,$B$1,$B$2) -> 6.059737758e-06 | J29: =IF(is_Baltic($B$1,$B$2)=1,"Baltic",G29*I29) -> 0.0002174623287 | K29: =IF(is_Baltic($B$1,$B$2)=1,SA_Baltic(F29),G29+J29) -> 35.88664314 | L29: 16.41995921 | M29: =pt0_from_t(K29,L29,B29) -> 16.41576824 | N29: =CT_from_pt(K29,M29) -> 16.38639147 | O29: =sigma0(K29,N29) -> 26.20734471 | P29: =rho(K29,N29,B29) -> 1026.321061 | Q29: =Sound_Speed(K29,N29,B29) -> 1512.299578
B30: 27 | C30: 35.726 | E30: 16.3046 | F30: =IF(C30 ="",SP_from_C(A30,L30,B30),C30) -> 35.726 | G30: 35.8944634 | H30: =LookUp_atlas("deltaSA_ref",B30,$B$1,$B$2) -> 0.0002185823188 | I30: =LookUp_atlas("SAAR_ref",B30,$B$1,$B$2) -> 6.09211701e-06 | J30: =IF(is_Baltic($B$1,$B$2)=1,"Baltic",G30*I30) -> 0.0002186732711 | K30: =IF(is_Baltic($B$1,$B$2)=1,SA_Baltic(F30),G30+J30) -> 35.89468207 | L30: 16.30068783 | M30: =pt0_from_t(K30,L30,B30) -> 16.29635717 | N30: =CT_from_pt(K30,M30) -> 16.26681358 | O30: =sigma0(K30,N30) -> 26.24134645 | P30: =rho(K30,N30,B30) -> 1026.359491 | Q30: =Sound_Speed(K30,N30,B30) -> 1511.96361
B31: 28 | C31: 35.7233 | E31: 16.2647 | F31: =IF(C31 ="",SP_from_C(A31,L31,B31),C31) -> 35.7233 | G31: 35.89175067 | H31: =LookUp_atlas("deltaSA_ref",B31,$B$1,$B$2) -> 0.0002195402354 | I31: =LookUp_atlas("SAAR_ref",B31,$B$1,$B$2) -> 6.124496262e-06 | J31: =IF(is_Baltic($B$1,$B$2)=1,"Baltic",G31*I31) -> 0.0002198188928 | K31: =IF(is_Baltic($B$1,$B$2)=1,SA_Baltic(F31),G31+J31) -> 35.89197049 | L31: 16.26079741 | M31: =pt0_from_t(K31,L31,B31) -> 16.25631391 | N31: =CT_from_pt(K31,M31) -> 16.22685973 | O31: =sigma0(K31,N31) -> 26.24858356 | P31: =rho(K31,N31,B31) -> 1026.371122 | Q31: =Sound_Speed(K31,N31,B31) -> 1511.855686
B32: 29 | C32: 35.7289 | E32: 16.1132 | F32: =IF(C32 ="",SP_from_C(A32,L32,B32),C32) -> 35.7289 | G32: 35.89737708 | H32: =LookUp_atlas("deltaSA_ref",B32,$B$1,$B$2) -> 0.0002204981519 | I32: =LookUp_atlas("SAAR_ref",B32,$B$1,$B$2) -> 6.156875514e-06 | J32: =IF(is_Baltic($B$1,$B$2)=1,"Baltic",G32*I32) -> 0.0002210156819 | K32: =IF(is_Baltic($B$1,$B$2)=1,SA_Baltic(F32),G32+J32) -> 35.89759809 | L32: 16.10933376 | M32: =pt0_from_t(K32,L32,B32) -> 16.10471968 | N32: =CT_from_pt(K32,M32) -> 16.0751828 | O32: =sigma0(K32,N32) -> 26.28801105 | P32: =rho(K32,N32,B32) -> 1026.415001 | Q32: =Sound_Speed(K32,N32,B32) -> 1511.417189
B33: 30 | C33: 35.7355 | E33: 16.0418 | F33: =IF(C33 ="",SP_from_C(A33,L33,B33),C33) -> 35.7355 | G33: 35.9040082 | H33: =LookUp_atlas("deltaSA_ref",B33,$B$1,$B$2) -> 0.0002214560684 | I33: =LookUp_atlas("SAAR_ref",B33,$B$1,$B$2) -> 6.189254766e-06 | J33: =IF(is_Baltic($B$1,$B$2)=1,"Baltic",G33*I33) -> 0.0002222190539 | K33: =IF(is_Baltic($B$1,$B$2)=1,SA_Baltic(F33),G33+J33) -> 35.90423042 | L33: 16.03795089 | M33: =pt0_from_t(K33,L33,B33) -> 16.03319192 | N33: =CT_from_pt(K33,M33) -> 16.00351305 | O33: =sigma0(K33,N33) -> 26.30958779 | P33: =rho(K33,N33,B33) -> 1026.440992 | Q33: =Sound_Speed(K33,N33,B33) -> 1511.223118
B34: 31 | C34: 35.7403 | E34: 15.9932 | F34: =IF(C34 ="",SP_from_C(A34,L34,B34),C34) -> 35.7403 | G34: 35.90883083 | H34: =LookUp_atlas("deltaSA_ref",B34,$B$1,$B$2) -> 0.00022565831 | I34: =LookUp_atlas("SAAR_ref",B34,$B$1,$B$2) -> 6.294127608e-06 | J34: =IF(is_Baltic($B$1,$B$2)=1,"Baltic",G34*I34) -> 0.0002260147635 | K34: =IF(is_Baltic($B$1,$B$2)=1,SA_Baltic(F34),G34+J34) -> 35.90905685 | L34: 15.98936255 | M34: =pt0_from_t(K34,L34,B34) -> 15.98445489 | N34: =CT_from_pt(K34,M34) -> 15.95467234 | O34: =sigma0(K34,N34) -> 26.32449937 | P34: =rho(K34,N34,B34) -> 1026.460308 | Q34: =Sound_Speed(K34,N34,B34) -> 1511.096371
B35: 32 | C35: 35.7287 | E35: 15.8696 | F35: =IF(C35 ="",SP_from_C(A35,L35,B35),C35) -> 35.7287 | G35: 35.89717613 | H35: =LookUp_atlas("deltaSA_ref",B35,$B$1,$B$2) -> 0.0002298605515 | I35: =LookUp_atlas("SAAR_ref",B35,$B$1,$B$2) -> 6.399000449e-06 | J35: =IF(is_Baltic($B$1,$B$2)=1,"Baltic",G35*I35) -> 0.0002297060462 | K35: =IF(is_Baltic($B$1,$B$2)=1,SA_Baltic(F35),G35+J35) -> 35.89740584 | L35: 15.86579221 | M35: =pt0_from_t(K35,L35,B35) -> 15.86075348 | N35: =CT_from_pt(K35,M35) -> 15.83133801 | O35: =sigma0(K35,N35) -> 26.34395134 | P35: =rho(K35,N35,B35) -> 1026.484212 | Q35: =Sound_Speed(K35,N35,B35) -> 1510.720324
B36: 33 | C36: 35.7332 | E36: 15.6632 | F36: =IF(C36 ="",SP_from_C(A36,L36,B36),C36) -> 35.7332 | G36: 35.90169735 | H36: =LookUp_atlas("deltaSA_ref",B36,$B$1,$B$2) -> 0.0002340627931 | I36: =LookUp_atlas("SAAR_ref",B36,$B$1,$B$2) -> 6.50387329e-06 | J36: =IF(is_Baltic($B$1,$B$2)=1,"Baltic",G36*I36) -> 0.0002335000905 | K36: =IF(is_Baltic($B$1,$B$2)=1,SA_Baltic(F36),G36+J36) -> 35.90193085 | L36: 15.65944173 | M36: =pt0_from_t(K36,L36,B36) -> 15.65429169 | N36: =CT_from_pt(K36,M36) -> 15.62486488 | O36: =sigma0(K36,N36) -> 26.3944622 | P36: =rho(K36,N36,B36) -> 1026.539226 | Q36: =Sound_Speed(K36,N36,B36) -> 1510.106199
B37: 34 | C37: 35.7445 | E37: 15.4555 | F37: =IF(C37 ="",SP_from_C(A37,L37,B37),C37) -> 35.7445 | G37: 35.91305064 | H37: =LookUp_atlas("deltaSA_ref",B37,$B$1,$B$2) -> 0.0002382650347 | I37: =LookUp_atlas("SAAR_ref",B37,$B$1,$B$2) -> 6.608746132e-06 | J37: =IF(is_Baltic($B$1,$B$2)=1,"Baltic",G37*I37) -> 0.0002373402345 | K37: =IF(is_Baltic($B$1,$B$2)=1,SA_Baltic(F37),G37+J37) -> 35.91328798 | L37: 15.45179157 | M37: =pt0_from_t(K37,L37,B37) -> 15.44653312 | N37: =CT_from_pt(K37,M37) -> 15.4169297 | O37: =sigma0(K37,N37) -> 26.45011749 | P37: =rho(K37,N37,B37) -> 1026.599391 | Q37: =Sound_Speed(K37,N37,B37) -> 1509.492418
B38: 35 | C38: 35.7627 | E38: 15.3057 | F38: =IF(C38 ="",SP_from_C(A38,L38,B38),C38) -> 35.7627 | G38: 35.93133646 | H38: =LookUp_atlas("deltaSA_ref",B38,$B$1,$B$2) -> 0.0002424672763 | I38: =LookUp_atlas("SAAR_ref",B38,$B$1,$B$2) -> 6.713618973e-06 | J38: =IF(is_Baltic($B$1,$B$2)=1,"Baltic",G38*I38) -> 0.0002412293022 | K38: =IF(is_Baltic($B$1,$B$2)=1,SA_Baltic(F38),G38+J38) -> 35.93157769 | L38: 15.30202751 | M38: =pt0_from_t(K38,L38,B38) -> 15.29664937 | N38: =CT_from_pt(K38,M38) -> 15.26666947 | O38: =sigma0(K38,N38) -> 26.49777143 | P38: =rho(K38,N38,B38) -> 1026.651524 | Q38: =Sound_Speed(K38,N38,B38) -> 1509.063792
B39: 36 | C39: 35.7662 | E39: 15.2766 | F39: =IF(C39 ="",SP_from_C(A39,L39,B39),C39) -> 35.7662 | G39: 35.93485296 | H39: =LookUp_atlas("deltaSA_ref",B39,$B$1,$B$2) -> 0.0002466695179 | I39: =LookUp_atlas("SAAR_ref",B39,$B$1,$B$2) -> 6.818491814e-06 | J39: =IF(is_Baltic($B$1,$B$2)=1,"Baltic",G39*I39) -> 0.0002450215008 | K39: =IF(is_Baltic($B$1,$B$2)=1,SA_Baltic(F39),G39+J39) -> 35.93509798 | L39: 15.2729345 | M39: =pt0_from_t(K39,L39,B39) -> 15.26740955 | N39: =CT_from_pt(K39,M39) -> 15.23735866 | O39: =sigma0(K39,N39) -> 26.50700853 | P39: =rho(K39,N39,B39) -> 1026.665171 | Q39: =Sound_Speed(K39,N39,B39) -> 1508.993457
B40: 37 | C40: 35.765 | E40: 15.264 | F40: =IF(C40 ="",SP_from_C(A40,L40,B40),C40) -> 35.765 | G40: 35.9336473 | H40: =LookUp_atlas("deltaSA_ref",B40,$B$1,$B$2) -> 0.0002508717595 | I40: =LookUp_atlas("SAAR_ref",B40,$B$1,$B$2) -> 6.923364655e-06 | J40: =IF(is_Baltic($B$1,$B$2)=1,"Baltic",G40*I40) -> 0.0002487817437 | K40: =IF(is_Baltic($B$1,$B$2)=1,SA_Baltic(F40),G40+J40) -> 35.93389608 | L40: 15.26033752 | M40: =pt0_from_t(K40,L40,B40) -> 15.25466218 | N40: =CT_from_pt(K40,M40) -> 15.22465002 | O40: =sigma0(K40,N40) -> 26.50893459 | P40: =rho(K40,N40,B40) -> 1026.671497 | Q40: =Sound_Speed(K40,N40,B40) -> 1508.969096
B41: 38 | C41: 35.7669 | E41: 15.2366 | F41: =IF(C41 ="",SP_from_C(A41,L41,B41),C41) -> 35.7669 | G41: 35.93555626 | H41: =LookUp_atlas("deltaSA_ref",B41,$B$1,$B$2) -> 0.000255074001 | I41: =LookUp_atlas("SAAR_ref",B41,$B$1,$B$2) -> 7.028237497e-06 | J41: =IF(is_Baltic($B$1,$B$2)=1,"Baltic",G41*I41) -> 0.000252563624 | K41: =IF(is_Baltic($B$1,$B$2)=1,SA_Baltic(F41),G41+J41) -> 35.93580883 | L41: 15.23294409 | M41: =pt0_from_t(K41,L41,B41) -> 15.22712224 | N41: =CT_from_pt(K41,M41) -> 15.19707925 | O41: =sigma0(K41,N41) -> 26.51654876 | P41: =rho(K41,N41,B41) -> 1026.683522 | Q41: =Sound_Speed(K41,N41,B41) -> 1508.902108
B42: 39 | C42: 35.761 | E42: 15.1677 | F42: =IF(C42 ="",SP_from_C(A42,L42,B42),C42) -> 35.761 | G42: 35.92962844 | H42: =LookUp_atlas("deltaSA_ref",B42,$B$1,$B$2) -> 0.0002592762426 | I42: =LookUp_atlas("SAAR_ref",B42,$B$1,$B$2) -> 7.133110338e-06 | J42: =IF(is_Baltic($B$1,$B$2)=1,"Baltic",G42*I42) -> 0.0002562900041 | K42: =IF(is_Baltic($B$1,$B$2)=1,SA_Baltic(F42),G42+J42) -> 35.92988473 | L42: 15.16406063 | M42: =pt0_from_t(K42,L42,B42) -> 15.15810409 | N42: =CT_from_pt(K42,M42) -> 15.12825604 | O42: =sigma0(K42,N42) -> 26.52738017 | P42: =rho(K42,N42,B42) -> 1026.698796 | Q42: =Sound_Speed(K42,N42,B42) -> 1508.696166
B43: 40 | C43: 35.774 | E43: 15.1121 | F43: =IF(C43 ="",SP_from_C(A43,L43,B43),C43) -> 35.774 | G43: 35.94268974 | H43: =LookUp_atlas("deltaSA_ref",B43,$B$1,$B$2) -> 0.0002634784842 | I43: =LookUp_atlas("SAAR_ref",B43,$B$1,$B$2) -> 7.237983179e-06 | J43: =IF(is_Baltic($B$1,$B$2)=1,"Baltic",G43*I43) -> 0.0002601525838 | K43: =IF(is_Baltic($B$1,$B$2)=1,SA_Baltic(F43),G43+J43) -> 35.94294989 | L43: 15.10847397 | M43: =pt0_from_t(K43,L43,B43) -> 15.10237914 | N43: =CT_from_pt(K43,M43) -> 15.07223815 | O43: =sigma0(K43,N43) -> 26.54978455 | P43: =rho(K43,N43,B43) -> 1026.725631 | Q43: =Sound_Speed(K43,N43,B43) -> 1508.553538
B44: 41 | C44: 35.7673 | E44: 15.0882 | F44: =IF(C44 ="",SP_from_C(A44,L44,B44),C44) -> 35.7673 | G44: 35.93595815 | H44: =LookUp_atlas("deltaSA_ref",B44,$B$1,$B$2) -> 0.0002685741222 | I44: =LookUp_atlas("SAAR_ref",B44,$B$1,$B$2) -> 7.365549138e-06 | J44: =IF(is_Baltic($B$1,$B$2)=1,"Baltic",G44*I44) -> 0.0002646880655 | K44: =IF(is_Baltic($B$1,$B$2)=1,SA_Baltic(F44),G44+J44) -> 35.93622284 | L44: 15.0845797 | M44: =pt0_from_t(K44,L44,B44) -> 15.07833937 | N44: =CT_from_pt(K44,M44) -> 15.04838417 | O44: =sigma0(K44,N44) -> 26.54995683 | P44: =rho(K44,N44,B44) -> 1026.730217 | Q44: =Sound_Speed(K44,N44,B44) -> 1508.487154
B45: 42 | C45: 35.7684 | E45: 15.0178 | F45: =IF(C45 ="",SP_from_C(A45,L45,B45),C45) -> 35.7684 | G45: 35.93706334 | H45: =LookUp_atlas("deltaSA_ref",B45,$B$1,$B$2) -> 0.0002736697602 | I45: =LookUp_atlas("SAAR_ref",B45,$B$1,$B$2) -> 7.493115096e-06 | J45: =IF(is_Baltic($B$1,$B$2)=1,"Baltic",G45*I45) -> 0.0002692805518 | K45: =IF(is_Baltic($B$1,$B$2)=1,SA_Baltic(F45),G45+J45) -> 35.93733262 | L45: 15.01419659 | M45: =pt0_from_t(K45,L45,B45) -> 15.0078241 | N45: =CT_from_pt(K45,M45) -> 14.9778889 | O45: =sigma0(K45,N45) -> 26.56642054 | P45: =rho(K45,N45,B45) -> 1026.751129 | Q45: =Sound_Speed(K45,N45,B45) -> 1508.283793
B46: 43 | C46: 35.7764 | E46: 14.9617 | F46: =IF(C46 ="",SP_from_C(A46,L46,B46),C46) -> 35.7764 | G46: 35.94510106 | H46: =LookUp_atlas("deltaSA_ref",B46,$B$1,$B$2) -> 0.0002787653981 | I46: =LookUp_atlas("SAAR_ref",B46,$B$1,$B$2) -> 7.620681055e-06 | J46: =IF(is_Baltic($B$1,$B$2)=1,"Baltic",G46*I46) -> 0.0002739261506 | K46: =IF(is_Baltic($B$1,$B$2)=1,SA_Baltic(F46),G46+J46) -> 35.94537498 | L46: 14.95811005 | M46: =pt0_from_t(K46,L46,B46) -> 14.95160179 | N46: =CT_from_pt(K46,M46) -> 14.9215041 | O46: =sigma0(K46,N46) -> 26.58500741 | P46: =rho(K46,N46,B46) -> 1026.774154 | Q46: =Sound_Speed(K46,N46,B46) -> 1508.133077
B47: 44 | C47: 35.7741 | E47: 14.9512 | F47: =IF(C47 ="",SP_from_C(A47,L47,B47),C47) -> 35.7741 | G47: 35.94279021 | H47: =LookUp_atlas("deltaSA_ref",B47,$B$1,$B$2) -> 0.0002838610361 | I47: =LookUp_atlas("SAAR_ref",B47,$B$1,$B$2) -> 7.748247013e-06 | J47: =IF(is_Baltic($B$1,$B$2)=1,"Baltic",G47*I47) -> 0.0002784936169 | K47: =IF(is_Baltic($B$1,$B$2)=1,SA_Baltic(F47),G47+J47) -> 35.94306871 | L47: 14.94761257 | M47: =pt0_from_t(K47,L47,B47) -> 14.94095604 | N47: =CT_from_pt(K47,M47) -> 14.91092356 | O47: =sigma0(K47,N47) -> 26.58558516 | P47: =rho(K47,N47,B47) -> 1026.779137 | Q47: =Sound_Speed(K47,N47,B47) -> 1508.113701
B48: 45 | C48: 35.768 | E48: 14.9428 | F48: =IF(C48 ="",SP_from_C(A48,L48,B48),C48) -> 35.768 | G48: 35.93666145 | H48: =LookUp_atlas("deltaSA_ref",B48,$B$1,$B$2) -> 0.0002889566741 | I48: =LookUp_atlas("SAAR_ref",B48,$B$1,$B$2) -> 7.875812972e-06 | J48: =IF(is_Baltic($B$1,$B$2)=1,"Baltic",G48*I48) -> 0.0002830304244 | K48: =IF(is_Baltic($B$1,$B$2)=1,SA_Baltic(F48),G48+J48) -> 35.93694448 | L48: 14.93921459 | M48: =pt0_from_t(K48,L48,B48) -> 14.9324095 | N48: =CT_from_pt(K48,M48) -> 14.90253616 | O48: =sigma0(K48,N48) -> 26.58276908 | P48: =rho(K48,N48,B48) -> 1026.780727 | Q48: =Sound_Speed(K48,N48,B48) -> 1508.096491
B49: 46 | C49: 35.7699 | E49: 14.9022 | F49: =IF(C49 ="",SP_from_C(A49,L49,B49),C49) -> 35.7699 | G49: 35.93857041 | H49: =LookUp_atlas("deltaSA_ref",B49,$B$1,$B$2) -> 0.0002940523121 | I49: =LookUp_atlas("SAAR_ref",B49,$B$1,$B$2) -> 8.00337893e-06 | J49: =IF(is_Baltic($B$1,$B$2)=1,"Baltic",G49*I49) -> 0.0002876299972 | K49: =IF(is_Baltic($B$1,$B$2)=1,SA_Baltic(F49),G49+J49) -> 35.93885804 | L49: 14.89862433 | M49: =pt0_from_t(K49,L49,B49) -> 14.89168053 | N49: =CT_from_pt(K49,M49) -> 14.86178799 | O49: =sigma0(K49,N49) -> 26.59320615 | P49: =rho(K49,N49,B49) -> 1026.795594 | Q49: =Sound_Speed(K49,N49,B49) -> 1507.987164
B50: 47 | C50: 35.7737 | E50: 14.8774 | F50: =IF(C50 ="",SP_from_C(A50,L50,B50),C50) -> 35.7737 | G50: 35.94238833 | H50: =LookUp_atlas("deltaSA_ref",B50,$B$1,$B$2) -> 0.00029914795 | I50: =LookUp_atlas("SAAR_ref",B50,$B$1,$B$2) -> 8.130944889e-06 | J50: =IF(is_Baltic($B$1,$B$2)=1,"Baltic",G50*I50) -> 0.0002922455787 | K50: =IF(is_Baltic($B$1,$B$2)=1,SA_Baltic(F50),G50+J50) -> 35.94268057 | L50: 14.87383028 | M50: =pt0_from_t(K50,L50,B50) -> 14.8667431 | N50: =CT_from_pt(K50,M50) -> 14.83677297 | O50: =sigma0(K50,N50) -> 26.60162388 | P50: =rho(K50,N50,B50) -> 1026.80843 | Q50: =Sound_Speed(K50,N50,B50) -> 1507.929761
B51: 48 | C51: 35.7757 | E51: 14.8652 | F51: =IF(C51 ="",SP_from_C(A51,L51,B51),C51) -> 35.7757 | G51: 35.94439776 | H51: =LookUp_atlas("deltaSA_ref",B51,$B$1,$B$2) -> 0.000304243588 | I51: =LookUp_atlas("SAAR_ref",B51,$B$1,$B$2) -> 8.258510847e-06 | J51: =IF(is_Baltic($B$1,$B$2)=1,"Baltic",G51*I51) -> 0.0002968471988 | K51: =IF(is_Baltic($B$1,$B$2)=1,SA_Baltic(F51),G51+J51) -> 35.94469461 | L51: 14.86163321 | M51: =pt0_from_t(K51,L51,B51) -> 14.85439892 | N51: =CT_from_pt(K51,M51) -> 14.82438748 | O51: =sigma0(K51,N51) -> 26.60588225 | P51: =rho(K51,N51,B51) -> 1026.817096 | Q51: =Sound_Speed(K51,N51,B51) -> 1507.909964
B52: 49 | C52: 35.7744 | E52: 14.8586 | F52: =IF(C52 ="",SP_from_C(A52,L52,B52),C52) -> 35.7744 | G52: 35.94309163 | H52: =LookUp_atlas("deltaSA_ref",B52,$B$1,$B$2) -> 0.000309339226 | I52: =LookUp_atlas("SAAR_ref",B52,$B$1,$B$2) -> 8.386076806e-06 | J52: =IF(is_Baltic($B$1,$B$2)=1,"Baltic",G52*I52) -> 0.000301421527 | K52: =IF(is_Baltic($B$1,$B$2)=1,SA_Baltic(F52),G52+J52) -> 35.94339305 | L52: 14.85503479 | M52: =pt0_from_t(K52,L52,B52) -> 14.84765186 | N52: =CT_from_pt(K52,M52) -> 14.81767769 | O52: =sigma0(K52,N52) -> 26.60636514 | P52: =rho(K52,N52,B52) -> 1026.821984 | Q52: =Sound_Speed(K52,N52,B52) -> 1507.903974
B53: 50 | C53: 35.7728 | E53: 14.8476 | F53: =IF(C53 ="",SP_from_C(A53,L53,B53),C53) -> 35.7728 | G53: 35.94148408 | H53: =LookUp_atlas("deltaSA_ref",B53,$B$1,$B$2) -> 0.000314434864 | I53: =LookUp_atlas("SAAR_ref",B53,$B$1,$B$2) -> 8.513642764e-06 | J53: =IF(is_Baltic($B$1,$B$2)=1,"Baltic",G53*I53) -> 0.0003059929559 | K53: =IF(is_Baltic($B$1,$B$2)=1,SA_Baltic(F53),G53+J53) -> 35.94179008 | L53: 14.84403743 | M53: =pt0_from_t(K53,L53,B53) -> 14.83650748 | N53: =CT_from_pt(K53,M53) -> 14.80658121 | O53: =sigma0(K53,N53) -> 26.60758155 | P53: =rho(K53,N53,B53) -> 1026.827609 | Q53: =Sound_Speed(K53,N53,B53) -> 1507.88374
B54: 51 | C54: 35.7716 | E54: 14.8311 | F54: =IF(C54 ="",SP_from_C(A54,L54,B54),C54) -> 35.7716 | G54: 35.94027842 | H54: =LookUp_atlas("deltaSA_ref",B54,$B$1,$B$2) -> 0.0003187099861 | I54: =LookUp_atlas("SAAR_ref",B54,$B$1,$B$2) -> 8.597657594e-06 | J54: =IF(is_Baltic($B$1,$B$2)=1,"Baltic",G54*I54) -> 0.0003090022077 | K54: =IF(is_Baltic($B$1,$B$2)=1,SA_Baltic(F54),G54+J54) -> 35.94058743 | L54: 14.82754139 | M54: =pt0_from_t(K54,L54,B54) -> 14.81986646 | N54: =CT_from_pt(K54,M54) -> 14.78998208 | O54: =sigma0(K54,N54) -> 26.61030989 | P54: =rho(K54,N54,B54) -> 1026.834751 | Q54: =Sound_Speed(K54,N54,B54) -> 1507.846594
B55: 52 | C55: 35.771 | E55: 14.8119 | F55: =IF(C55 ="",SP_from_C(A55,L55,B55),C55) -> 35.771 | G55: 35.9396756 | H55: =LookUp_atlas("deltaSA_ref",B55,$B$1,$B$2) -> 0.0003229851083 | I55: =LookUp_atlas("SAAR_ref",B55,$B$1,$B$2) -> 8.681672424e-06 | J55: =IF(is_Baltic($B$1,$B$2)=1,"Baltic",G55*I55) -> 0.0003120164905 | K55: =IF(is_Baltic($B$1,$B$2)=1,SA_Baltic(F55),G55+J55) -> 35.93998761 | L55: 14.808346 | M55: =pt0_from_t(K55,L55,B55) -> 14.80052724 | N55: =CT_from_pt(K55,M55) -> 14.77067172 | O55: =sigma0(K55,N55) -> 26.6140898 | P55: =rho(K55,N55,B55) -> 1026.842948 | Q55: =Sound_Speed(K55,N55,B55) -> 1507.801594
B56: 53 | C56: 35.7695 | E56: 14.7865 | F56: =IF(C56 ="",SP_from_C(A56,L56,B56),C56) -> 35.7695 | G56: 35.93816852 | H56: =LookUp_atlas("deltaSA_ref",B56,$B$1,$B$2) -> 0.0003272602305 | I56: =LookUp_atlas("SAAR_ref",B56,$B$1,$B$2) -> 8.765687254e-06 | J56: =IF(is_Baltic($B$1,$B$2)=1,"Baltic",G56*I56) -> 0.0003150227457 | K56: =IF(is_Baltic($B$1,$B$2)=1,SA_Baltic(F56),G56+J56) -> 35.93848355 | L56: 14.78295209 | M56: =pt0_from_t(K56,L56,B56) -> 14.77499208 | N56: =CT_from_pt(K56,M56) -> 14.74519237 | O56: =sigma0(K56,N56) -> 26.61852867 | P56: =rho(K56,N56,B56) -> 1026.851811 | Q56: =Sound_Speed(K56,N56,B56) -> 1507.735908
B57: 54 | C57: 35.77 | E57: 14.7457 | F57: =IF(C57 ="",SP_from_C(A57,L57,B57),C57) -> 35.77 | G57: 35.93867088 | H57: =LookUp_atlas("deltaSA_ref",B57,$B$1,$B$2) -> 0.0003315353527 | I57: =LookUp_atlas("SAAR_ref",B57,$B$1,$B$2) -> 8.849702083e-06 | J57: =IF(is_Baltic($B$1,$B$2)=1,"Baltic",G57*I57) -> 0.0003180465306 | K57: =IF(is_Baltic($B$1,$B$2)=1,SA_Baltic(F57),G57+J57) -> 35.93898893 | L57: 14.74216188 | M57: =pt0_from_t(K57,L57,B57) -> 14.73406656 | N57: =CT_from_pt(K57,M57) -> 14.70428414 | O57: =sigma0(K57,N57) -> 26.62786896 | P57: =rho(K57,N57,B57) -> 1026.865591 | Q57: =Sound_Speed(K57,N57,B57) -> 1507.623768
B58: 55 | C58: 35.7664 | E58: 14.6327 | F58: =IF(C58 ="",SP_from_C(A58,L58,B58),C58) -> 35.7664 | G58: 35.9350539 | H58: =LookUp_atlas("deltaSA_ref",B58,$B$1,$B$2) -> 0.0003358104748 | I58: =LookUp_atlas("SAAR_ref",B58,$B$1,$B$2) -> 8.933716913e-06 | J58: =IF(is_Baltic($B$1,$B$2)=1,"Baltic",G58*I58) -> 0.0003210335988 | K58: =IF(is_Baltic($B$1,$B$2)=1,SA_Baltic(F58),G58+J58) -> 35.93537494 | L58: 14.62918899 | M58: =pt0_from_t(K58,L58,B58) -> 14.62098653 | N58: =CT_from_pt(K58,M58) -> 14.59137687 | O58: =sigma0(K58,N58) -> 26.64974858 | P58: =rho(K58,N58,B58) -> 1026.891987 | Q58: =Sound_Speed(K58,N58,B58) -> 1507.277686
B59: 56 | C59: 35.7984 | E59: 14.4363 | F59: =IF(C59 ="",SP_from_C(A59,L59,B59),C59) -> 35.7984 | G59: 35.9672048 | H59: =LookUp_atlas("deltaSA_ref",B59,$B$1,$B$2) -> 0.000340085597 | I59: =LookUp_atlas("SAAR_ref",B59,$B$1,$B$2) -> 9.017731743e-06 | J59: =IF(is_Baltic($B$1,$B$2)=1,"Baltic",G59*I59) -> 0.0003243426044 | K59: =IF(is_Baltic($B$1,$B$2)=1,SA_Baltic(F59),G59+J59) -> 35.96752914 | L59: 14.43283612 | M59: =pt0_from_t(K59,L59,B59) -> 14.42455787 | N59: =CT_from_pt(K59,M59) -> 14.3943148 | O59: =sigma0(K59,N59) -> 26.71700026 | P59: =rho(K59,N59,B59) -> 1026.963833 | Q59: =Sound_Speed(K59,N59,B59) -> 1506.706365
B60: 57 | C60: 35.8368 | E60: 14.2805 | F60: =IF(C60 ="",SP_from_C(A60,L60,B60),C60) -> 35.8368 | G60: 36.00578587 | H60: =LookUp_atlas("deltaSA_ref",B60,$B$1,$B$2) -> 0.0003443607192 | I60: =LookUp_atlas("SAAR_ref",B60,$B$1,$B$2) -> 9.101746573e-06 | J60: =IF(is_Baltic($B$1,$B$2)=1,"Baltic",G60*I60) -> 0.0003277155382 | K60: =IF(is_Baltic($B$1,$B$2)=1,SA_Baltic(F60),G60+J60) -> 36.00611359 | L60: 14.2770735 | M60: =pt0_from_t(K60,L60,B60) -> 14.26870574 | N60: =CT_from_pt(K60,M60) -> 14.23766023 | O60: =sigma0(K60,N60) -> 26.78016991 | P60: =rho(K60,N60,B60) -> 1027.031559 | Q60: =Sound_Speed(K60,N60,B60) -> 1506.269566
B61: 58 | C61: 35.8944 | E61: 14.1376 | F61: =IF(C61 ="",SP_from_C(A61,L61,B61),C61) -> 35.8944 | G61: 36.06365748 | H61: =LookUp_atlas("deltaSA_ref",B61,$B$1,$B$2) -> 0.0003486358414 | I61: =LookUp_atlas("SAAR_ref",B61,$B$1,$B$2) -> 9.185761403e-06 | J61: =IF(is_Baltic($B$1,$B$2)=1,"Baltic",G61*I61) -> 0.0003312721529 | K61: =IF(is_Baltic($B$1,$B$2)=1,SA_Baltic(F61),G61+J61) -> 36.06398875 | L61: 14.13420779 | M61: =pt0_from_t(K61,L61,B61) -> 14.12574606 | N61: =CT_from_pt(K61,M61) -> 14.09344223 | O61: =sigma0(K61,N61) -> 26.85522339 | P61: =rho(K61,N61,B61) -> 1027.111153 | Q61: =Sound_Speed(K61,N61,B61) -> 1505.894882
B62: 59 | C62: 35.8742 | E62: 14.1526 | F62: =IF(C62 ="",SP_from_C(A62,L62,B62),C62) -> 35.8742 | G62: 36.04336223 | H62: =LookUp_atlas("deltaSA_ref",B62,$B$1,$B$2) -> 0.0003529109636 | I62: =LookUp_atlas("SAAR_ref",B62,$B$1,$B$2) -> 9.269776233e-06 | J62: =IF(is_Baltic($B$1,$B$2)=1,"Baltic",G62*I62) -> 0.0003341139025 | K62: =IF(is_Baltic($B$1,$B$2)=1,SA_Baltic(F62),G62+J62) -> 36.04369634 | L62: 14.14920419 | M62: =pt0_from_t(K62,L62,B62) -> 14.14059166 | N62: =CT_from_pt(K62,M62) -> 14.10876015 | O62: =sigma0(K62,N62) -> 26.83645452 | P62: =rho(K62,N62,B62) -> 1027.096785 | Q62: =Sound_Speed(K62,N62,B62) -> 1505.935701
B63: 60 | C63: 35.8689 | E63: 14.1414 | F63: =IF(C63 ="",SP_from_C(A63,L63,B63),C63) -> 35.8689 | G63: 36.03803724 | H63: =LookUp_atlas("deltaSA_ref",B63,$B$1,$B$2) -> 0.0003571860857 | I63: =LookUp_atlas("SAAR_ref",B63,$B$1,$B$2) -> 9.353791062e-06 | J63: =IF(is_Baltic($B$1,$B$2)=1,"Baltic",G63*I63) -> 0.0003370922706 | K63: =IF(is_Baltic($B$1,$B$2)=1,SA_Baltic(F63),G63+J63) -> 36.03837433 | L63: 14.13800688 | M63: =pt0_from_t(K63,L63,B63) -> 14.12925313 | N63: =CT_from_pt(K63,M63) -> 14.0975602 | O63: =sigma0(K63,N63) -> 26.83477923 | P63: =rho(K63,N63,B63) -> 1027.099534 | Q63: =Sound_Speed(K63,N63,B63) -> 1505.909798
B64: 61 | C64: 35.8637 | E64: 14.1211 | F64: =IF(C64 ="",SP_from_C(A64,L64,B64),C64) -> 35.8637 | G64: 36.03281272 | H64: =LookUp_atlas("deltaSA_ref",B64,$B$1,$B$2) -> 0.0003614612079 | I64: =LookUp_atlas("SAAR_ref",B64,$B$1,$B$2) -> 9.437805892e-06 | J64: =IF(is_Baltic($B$1,$B$2)=1,"Baltic",G64*I64) -> 0.0003400706922 | K64: =IF(is_Baltic($B$1,$B$2)=1,SA_Baltic(F64),G64+J64) -> 36.03315279 | L64: 14.11771175 | M64: =pt0_from_t(K64,L64,B64) -> 14.10882077 | N64: =CT_from_pt(K64,M64) -> 14.07727256 | O64: =sigma0(K64,N64) -> 26.8351164 | P64: =rho(K64,N64,B64) -> 1027.104307 | Q64: =Sound_Speed(K64,N64,B64) -> 1505.854726
B65: 62 | C65: 35.873 | E65: 14.1074 | F65: =IF(C65 ="",SP_from_C(A65,L65,B65),C65) -> 35.873 | G65: 36.04215657 | H65: =LookUp_atlas("deltaSA_ref",B65,$B$1,$B$2) -> 0.0003657363301 | I65: =LookUp_atlas("SAAR_ref",B65,$B$1,$B$2) -> 9.521820722e-06 | J65: =IF(is_Baltic($B$1,$B$2)=1,"Baltic",G65*I65) -> 0.0003431869533 | K65: =IF(is_Baltic($B$1,$B$2)=1,SA_Baltic(F65),G65+J65) -> 36.04249976 | L65: 14.10401504 | M65: =pt0_from_t(K65,L65,B65) -> 14.09498316 | N65: =CT_from_pt(K65,M65) -> 14.06322441 | O65: =sigma0(K65,N65) -> 26.84524983 | P65: =rho(K65,N65,B65) -> 1027.118862 | Q65: =Sound_Speed(K65,N65,B65) -> 1505.837909
B66: 63 | C66: 35.8787 | E66: 14.1057 | F66: =IF(C66 ="",SP_from_C(A66,L66,B66),C66) -> 35.8787 | G66: 36.04788345 | H66: =LookUp_atlas("deltaSA_ref",B66,$B$1,$B$2) -> 0.0003700114523 | I66: =LookUp_atlas("SAAR_ref",B66,$B$1,$B$2) -> 9.605835552e-06 | J66: =IF(is_Baltic($B$1,$B$2)=1,"Baltic",G66*I66) -> 0.0003462700404 | K66: =IF(is_Baltic($B$1,$B$2)=1,SA_Baltic(F66),G66+J66) -> 36.04822972 | L66: 14.10231544 | M66: =pt0_from_t(K66,L66,B66) -> 14.09313788 | N66: =CT_from_pt(K66,M66) -> 14.06124375 | O66: =sigma0(K66,N66) -> 26.85004903 | P66: =rho(K66,N66,B66) -> 1027.128071 | Q66: =Sound_Speed(K66,N66,B66) -> 1505.855475
B67: 64 | C67: 35.8803 | E67: 14.1079 | F67: =IF(C67 ="",SP_from_C(A67,L67,B67),C67) -> 35.8803 | G67: 36.04949099 | H67: =LookUp_atlas("deltaSA_ref",B67,$B$1,$B$2) -> 0.0003742865744 | I67: =LookUp_atlas("SAAR_ref",B67,$B$1,$B$2) -> 9.689850382e-06 | J67: =IF(is_Baltic($B$1,$B$2)=1,"Baltic",G67*I67) -> 0.000349314174 | K67: =IF(is_Baltic($B$1,$B$2)=1,SA_Baltic(F67),G67+J67) -> 36.04984031 | L67: 14.10451492 | M67: =pt0_from_t(K67,L67,B67) -> 14.09519026 | N67: =CT_from_pt(K67,M67) -> 14.06325557 | O67: =sigma0(K67,N67) -> 26.85085086 | P67: =rho(K67,N67,B67) -> 1027.13328 | Q67: =Sound_Speed(K67,N67,B67) -> 1505.880772
B68: 65 | C68: 35.8817 | E68: 14.1068 | F68: =IF(C68 ="",SP_from_C(A68,L68,B68),C68) -> 35.8817 | G68: 36.05089759 | H68: =LookUp_atlas("deltaSA_ref",B68,$B$1,$B$2) -> 0.0003785616966 | I68: =LookUp_atlas("SAAR_ref",B68,$B$1,$B$2) -> 9.773865212e-06 | J68: =IF(is_Baltic($B$1,$B$2)=1,"Baltic",G68*I68) -> 0.0003523566138 | K68: =IF(is_Baltic($B$1,$B$2)=1,SA_Baltic(F68),G68+J68) -> 36.05124995 | L68: 14.10341518 | M68: =pt0_from_t(K68,L68,B68) -> 14.09394489 | N68: =CT_from_pt(K68,M68) -> 14.06197767 | O68: =sigma0(K68,N68) -> 26.85219995 | P68: =rho(K68,N68,B68) -> 1027.139039 | Q68: =Sound_Speed(K68,N68,B68) -> 1505.895213
B69: 66 | C69: 35.8884 | E69: 14.1003 | F69: =IF(C69 ="",SP_from_C(A69,L69,B69),C69) -> 35.8884 | G69: 36.05762919 | H69: =LookUp_atlas("deltaSA_ref",B69,$B$1,$B$2) -> 0.0003828368188 | I69: =LookUp_atlas("SAAR_ref",B69,$B$1,$B$2) -> 9.857880041e-06 | J69: =IF(is_Baltic($B$1,$B$2)=1,"Baltic",G69*I69) -> 0.0003554517831 | K69: =IF(is_Baltic($B$1,$B$2)=1,SA_Baltic(F69),G69+J69) -> 36.05798464 | L69: 14.09691674 | M69: =pt0_from_t(K69,L69,B69) -> 14.08730285 | N69: =CT_from_pt(K69,M69) -> 14.05518097 | O69: =sigma0(K69,N69) -> 26.85879253 | P69: =rho(K69,N69,B69) -> 1027.150047 | Q69: =Sound_Speed(K69,N69,B69) -> 1505.898505
B70: 67 | C70: 35.888 | E70: 14.0947 | F70: =IF(C70 ="",SP_from_C(A70,L70,B70),C70) -> 35.888 | G70: 36.0572273 | H70: =LookUp_atlas("deltaSA_ref",B70,$B$1,$B$2) -> 0.000387111941 | I70: =LookUp_atlas("SAAR_ref",B70,$B$1,$B$2) -> 9.941894871e-06 | J70: =IF(is_Baltic($B$1,$B$2)=1,"Baltic",G70*I70) -> 0.0003584771632 | K70: =IF(is_Baltic($B$1,$B$2)=1,SA_Baltic(F70),G70+J70) -> 36.05758578 | L70: =IF(D70 ="",E70/1.00024,D70) -> 14.09131808 | M70: =pt0_from_t(K70,L70,B70) -> 14.08156083 | N70: =CT_from_pt(K70,M70) -> 14.04945419 | O70: =sigma0(K70,N70) -> 26.85970731 | P70: =rho(K70,N70,B70) -> 1027.155379 | Q70: =Sound_Speed(K70,N70,B70) -> 1505.896341
B71: 68 | C71: 35.8893 | E71: 14.0504 | F71: =IF(C71 ="",SP_from_C(A71,L71,B71),C71) -> 35.8893 | G71: 36.05853343 | H71: =LookUp_atlas("deltaSA_ref",B71,$B$1,$B$2) -> 0.0003913870632 | I71: =LookUp_atlas("SAAR_ref",B71,$B$1,$B$2) -> 1.00259097e-05 | J71: =IF(is_Baltic($B$1,$B$2)=1,"Baltic",G71*I71) -> 0.0003615196001 | K71: =IF(is_Baltic($B$1,$B$2)=1,SA_Baltic(F71),G71+J71) -> 36.05889495 | L71: 14.04702871 | M71: =pt0_from_t(K71,L71,B71) -> 14.03714623 | N71: =CT_from_pt(K71,M71) -> 14.00505251 | O71: =sigma0(K71,N71) -> 26.87015233 | P71: =rho(K71,N71,B71) -> 1027.17029 | Q71: =Sound_Speed(K71,N71,B71) -> 1505.771495
B72: 69 | C72: 35.8926 | E72: 14.0048 | F72: =IF(C72 ="",SP_from_C(A72,L72,B72),C72) -> 35.8926 | G72: 36.06184899 | H72: =LookUp_atlas("deltaSA_ref",B72,$B$1,$B$2) -> 0.0003956621853 | I72: =LookUp_atlas("SAAR_ref",B72,$B$1,$B$2) -> 1.010992453e-05 | J72: =IF(is_Baltic($B$1,$B$2)=1,"Baltic",G72*I72) -> 0.0003645825717 | K72: =IF(is_Baltic($B$1,$B$2)=1,SA_Baltic(F72),G72+J72) -> 36.06221357 | L72: 14.00143965 | M72: =pt0_from_t(K72,L72,B72) -> 13.991433 | N72: =CT_from_pt(K72,M72) -> 13.95930614 | O72: =sigma0(K72,N72) -> 26.88239997 | P72: =rho(K72,N72,B72) -> 1027.187006 | Q72: =Sound_Speed(K72,N72,B72) -> 1505.644639
B73: 70 | C73: 35.8906 | E73: 13.9511 | F73: =IF(C73 ="",SP_from_C(A73,L73,B73),C73) -> 35.8906 | G73: =(35.16504/35)*F73 -> 36.05983956 | H73: =LookUp_atlas("deltaSA_ref",B73,$B$1,$B$2) -> 0.0003999373075 | I73: =LookUp_atlas("SAAR_ref",B73,$B$1,$B$2) -> 1.019393936e-05 | J73: =IF(is_Baltic($B$1,$B$2)=1,"Baltic",G73*I73) -> 0.0003675918178 | K73: =IF(is_Baltic($B$1,$B$2)=1,SA_Baltic(F73),G73+J73) -> 36.06020715 | L73: 13.94775254 | M73: =pt0_from_t(K73,L73,B73) -> 13.93762673 | N73: =CT_from_pt(K73,M73) -> 13.90560217 | O73: =sigma0(K73,N73) -> 26.89224284 | P73: =rho(K73,N73,B73) -> 1027.201332 | Q73: =Sound_Speed(K73,N73,B73) -> 1505.485192
B74: 71 | C74: 35.893 | E74: 13.9055 | F74: =IF(C74 ="",SP_from_C(A74,L74,B74),C74) -> 35.893 | G74: 36.06225088 | H74: =LookUp_atlas("deltaSA_ref",B74,$B$1,$B$2) -> 0.0004042124297 | I74: =LookUp_atlas("SAAR_ref",B74,$B$1,$B$2) -> 1.027795419e-05 | J74: =IF(is_Baltic($B$1,$B$2)=1,"Baltic",G74*I74) -> 0.0003706461625 | K74: =IF(is_Baltic($B$1,$B$2)=1,SA_Baltic(F74),G74+J74) -> 36.06262152 | L74: 13.90216348 | M74: =pt0_from_t(K74,L74,B74) -> 13.89191488 | N74: =CT_from_pt(K74,M74) -> 13.85987985 | O74: =sigma0(K74,N74) -> 26.90375252 | P74: =rho(K74,N74,B74) -> 1027.217315 | Q74: =Sound_Speed(K74,N74,B74) -> 1505.356889
B75: 72 | C75: 35.8935 | E75: 13.8841 | F75: =IF(C75 ="",SP_from_C(A75,L75,B75),C75) -> 35.8935 | G75: 36.06275324 | H75: =LookUp_atlas("deltaSA_ref",B75,$B$1,$B$2) -> 0.0004084875519 | I75: =LookUp_atlas("SAAR_ref",B75,$B$1,$B$2) -> 1.036196902e-05 | J75: =IF(is_Baltic($B$1,$B$2)=1,"Baltic",G75*I75) -> 0.0003736811318 | K75: =IF(is_Baltic($B$1,$B$2)=1,SA_Baltic(F75),G75+J75) -> 36.06312692 | L75: 13.88076862 | M75: =pt0_from_t(K75,L75,B75) -> 13.87038595 | N75: =CT_from_pt(K75,M75) -> 13.83836114 | O75: =sigma0(K75,N75) -> 26.90868052 | P75: =rho(K75,N75,B75) -> 1027.226685 | Q75: =Sound_Speed(K75,N75,B75) -> 1505.304544
B76: 73 | C76: 35.893 | E76: 13.8646 | F76: =IF(C76 ="",SP_from_C(A76,L76,B76),C76) -> 35.893 | G76: 36.06225088 | H76: =LookUp_atlas("deltaSA_ref",B76,$B$1,$B$2) -> 0.000412762674 | I76: =LookUp_atlas("SAAR_ref",B76,$B$1,$B$2) -> 1.044598385e-05 | J76: =IF(is_Baltic($B$1,$B$2)=1,"Baltic",G76*I76) -> 0.0003767056903 | K76: =IF(is_Baltic($B$1,$B$2)=1,SA_Baltic(F76),G76+J76) -> 36.06262758 | L76: 13.86127329 | M76: =pt0_from_t(K76,L76,B76) -> 13.85075598 | N76: =CT_from_pt(K76,M76) -> 13.81876327 | O76: =sigma0(K76,N76) -> 26.91243126 | P76: =rho(K76,N76,B76) -> 1027.234876 | Q76: =Sound_Speed(K76,N76,B76) -> 1505.257137
B77: 74 | C77: 35.8914 | E77: 13.8529 | F77: =IF(C77 ="",SP_from_C(A77,L77,B77),C77) -> 35.8914 | G77: 36.06064333 | H77: =LookUp_atlas("deltaSA_ref",B77,$B$1,$B$2) -> 0.0004170377962 | I77: =LookUp_atlas("SAAR_ref",B77,$B$1,$B$2) -> 1.052999868e-05 | J77: =IF(is_Baltic($B$1,$B$2)=1,"Baltic",G77*I77) -> 0.0003797185267 | K77: =IF(is_Baltic($B$1,$B$2)=1,SA_Baltic(F77),G77+J77) -> 36.06102305 | L77: 13.8495761 | M77: =pt0_from_t(K77,L77,B77) -> 13.8389205 | N77: =CT_from_pt(K77,M77) -> 13.80697795 | O77: =sigma0(K77,N77) -> 26.91368787 | P77: =rho(K77,N77,B77) -> 1027.240563 | Q77: =Sound_Speed(K77,N77,B77) -> 1505.233676
B78: 75 | C78: 35.9013 | E78: 13.8444 | F78: =IF(C78 ="",SP_from_C(A78,L78,B78),C78) -> 35.9013 | G78: 36.07059002 | H78: =LookUp_atlas("deltaSA_ref",B78,$B$1,$B$2) -> 0.0004213129184 | I78: =LookUp_atlas("SAAR_ref",B78,$B$1,$B$2) -> 1.061401351e-05 | J78: =IF(is_Baltic($B$1,$B$2)=1,"Baltic",G78*I78) -> 0.0003828537297 | K78: =IF(is_Baltic($B$1,$B$2)=1,SA_Baltic(F78),G78+J78) -> 36.07097287 | L78: 13.84107814 | M78: =pt0_from_t(K78,L78,B78) -> 13.83028166 | N78: =CT_from_pt(K78,M78) -> 13.79811321 | O78: =sigma0(K78,N78) -> 26.92316219 | P78: =rho(K78,N78,B78) -> 1027.254459 | Q78: =Sound_Speed(K78,N78,B78) -> 1505.234128
B79: 76 | C79: 35.8996 | E79: 13.8391 | F79: =IF(C79 ="",SP_from_C(A79,L79,B79),C79) -> 35.8996 | G79: 36.068882 | H79: =LookUp_atlas("deltaSA_ref",B79,$B$1,$B$2) -> 0.0004255880406 | I79: =LookUp_atlas("SAAR_ref",B79,$B$1,$B$2) -> 1.069802834e-05 | J79: =IF(is_Baltic($B$1,$B$2)=1,"Baltic",G79*I79) -> 0.0003858659218 | K79: =IF(is_Baltic($B$1,$B$2)=1,SA_Baltic(F79),G79+J79) -> 36.06926787 | L79: 13.83577941 | M79: =pt0_from_t(K79,L79,B79) -> 13.82484156 | N79: =CT_from_pt(K79,M79) -> 13.79271906 | O79: =sigma0(K79,N79) -> 26.92299444 | P79: =rho(K79,N79,B79) -> 1027.258713 | Q79: =Sound_Speed(K79,N79,B79) -> 1505.231277
B80: 77 | C80: 35.8979 | E80: 13.8353 | F80: =IF(C80 ="",SP_from_C(A80,L80,B80),C80) -> 35.8979 | G80: 36.06717398 | H80: =LookUp_atlas("deltaSA_ref",B80,$B$1,$B$2) -> 0.0004301367721 | I80: =LookUp_atlas("SAAR_ref",B80,$B$1,$B$2) -> 1.078913602e-05 | J80: =IF(is_Baltic($B$1,$B$2)=1,"Baltic",G80*I80) -> 0.0003891336461 | K80: =IF(is_Baltic($B$1,$B$2)=1,SA_Baltic(F80),G80+J80) -> 36.06756312 | L80: 13.83198032 | M80: =pt0_from_t(K80,L80,B80) -> 13.82090037 | N80: =CT_from_pt(K80,M80) -> 13.78882221 | O80: =sigma0(K80,N80) -> 26.92251139 | P80: =rho(K80,N80,B80) -> 1027.26265 | Q80: =Sound_Speed(K80,N80,B80) -> 1505.233286
B81: 78 | C81: 35.8956 | E81: 13.828 | F81: =IF(C81 ="",SP_from_C(A81,L81,B81),C81) -> 35.8956 | G81: 36.06486314 | H81: =LookUp_atlas("deltaSA_ref",B81,$B$1,$B$2) -> 0.0004346855037 | I81: =LookUp_atlas("SAAR_ref",B81,$B$1,$B$2) -> 1.088024371e-05 | J81: =IF(is_Baltic($B$1,$B$2)=1,"Baltic",G81*I81) -> 0.0003923945002 | K81: =IF(is_Baltic($B$1,$B$2)=1,SA_Baltic(F81),G81+J81) -> 36.06525553 | L81: 13.82468208 | M81: =pt0_from_t(K81,L81,B81) -> 13.81346202 | N81: =CT_from_pt(K81,M81) -> 13.78144606 | O81: =sigma0(K81,N81) -> 26.92229944 | P81: =rho(K81,N81,B81) -> 1027.266864 | Q81: =Sound_Speed(K81,N81,B81) -> 1505.223238
B82: 79 | C82: 35.8921 | E82: 13.8211 | F82: =IF(C82 ="",SP_from_C(A82,L82,B82),C82) -> 35.8921 | G82: 36.06134663 | H82: =LookUp_atlas("deltaSA_ref",B82,$B$1,$B$2) -> 0.0004392342352 | I82: =LookUp_atlas("SAAR_ref",B82,$B$1,$B$2) -> 1.097135139e-05 | J82: =IF(is_Baltic($B$1,$B$2)=1,"Baltic",G82*I82) -> 0.0003956417056 | K82: =IF(is_Baltic($B$1,$B$2)=1,SA_Baltic(F82),G82+J82) -> 36.06174228 | L82: 13.81778373 | M82: =pt0_from_t(K82,L82,B82) -> 13.80642357 | N82: =CT_from_pt(K82,M82) -> 13.77449778 | O82: =sigma0(K82,N82) -> 26.92107501 | P82: =rho(K82,N82,B82) -> 1027.270066 | Q82: =Sound_Speed(K82,N82,B82) -> 1505.213068
B83: 80 | C83: 35.8913 | E83: 13.819 | F83: =IF(C83 ="",SP_from_C(A83,L83,B83),C83) -> 35.8913 | G83: 36.06054286 | H83: =LookUp_atlas("deltaSA_ref",B83,$B$1,$B$2) -> 0.0004437829668 | I83: =LookUp_atlas("SAAR_ref",B83,$B$1,$B$2) -> 1.106245908e-05 | J83: =IF(is_Baltic($B$1,$B$2)=1,"Baltic",G83*I83) -> 0.0003989182797 | K83: =IF(is_Baltic($B$1,$B$2)=1,SA_Baltic(F83),G83+J83) -> 36.06094178 | L83: 13.81568424 | M83: =pt0_from_t(K83,L83,B83) -> 13.80418113 | N83: =CT_from_pt(K83,M83) -> 13.77227654 | O83: =sigma0(K83,N83) -> 26.92093015 | P83: =rho(K83,N83,B83) -> 1027.274339 | Q83: =Sound_Speed(K83,N83,B83) -> 1505.221645
B84: 81 | C84: 35.8911 | E84: 13.8152 | F84: =IF(C84 ="",SP_from_C(A84,L84,B84),C84) -> 35.8911 | G84: 36.06034192 | H84: =LookUp_atlas("deltaSA_ref",B84,$B$1,$B$2) -> 0.0004483316983 | I84: =LookUp_atlas("SAAR_ref",B84,$B$1,$B$2) -> 1.115356676e-05 | J84: =IF(is_Baltic($B$1,$B$2)=1,"Baltic",G84*I84) -> 0.000402201431 | K84: =IF(is_Baltic($B$1,$B$2)=1,SA_Baltic(F84),G84+J84) -> 36.06074412 | L84: 13.81188515 | M84: =pt0_from_t(K84,L84,B84) -> 13.80024001 | N84: =CT_from_pt(K84,M84) -> 13.76834418 | O84: =sigma0(K84,N84) -> 26.92160604 | P84: =rho(K84,N84,B84) -> 1027.279434 | Q84: =Sound_Speed(K84,N84,B84) -> 1505.225415
B85: 82 | C85: 35.8893 | E85: 13.8046 | F85: =IF(C85 ="",SP_from_C(A85,L85,B85),C85) -> 35.8893 | G85: 36.05853343 | H85: =LookUp_atlas("deltaSA_ref",B85,$B$1,$B$2) -> 0.0004528804299 | I85: =LookUp_atlas("SAAR_ref",B85,$B$1,$B$2) -> 1.124467444e-05 | J85: =IF(is_Baltic($B$1,$B$2)=1,"Baltic",G85*I85) -> 0.0004054664694 | K85: =IF(is_Baltic($B$1,$B$2)=1,SA_Baltic(F85),G85+J85) -> 36.0589389 | L85: 13.80128769 | M85: =pt0_from_t(K85,L85,B85) -> 13.78950459 | N85: =CT_from_pt(K85,M85) -> 13.75766247 | O85: =sigma0(K85,N85) -> 26.92247141 | P85: =rho(K85,N85,B85) -> 1027.284731 | Q85: =Sound_Speed(K85,N85,B85) -> 1505.205236
B86: 83 | C86: 35.8883 | E86: 13.7684 | F86: =IF(C86 ="",SP_from_C(A86,L86,B86),C86) -> 35.8883 | G86: 36.05752872 | H86: =LookUp_atlas("deltaSA_ref",B86,$B$1,$B$2) -> 0.0004574291614 | I86: =LookUp_atlas("SAAR_ref",B86,$B$1,$B$2) -> 1.133578213e-05 | J86: =IF(is_Baltic($B$1,$B$2)=1,"Baltic",G86*I86) -> 0.0004087402896 | K86: =IF(is_Baltic($B$1,$B$2)=1,SA_Baltic(F86),G86+J86) -> 36.05793746 | L86: 13.76509638 | M86: =pt0_from_t(K86,L86,B86) -> 13.75319012 | N86: =CT_from_pt(K86,M86) -> 13.72140942 | O86: =sigma0(K86,N86) -> 26.92931936 | P86: =rho(K86,N86,B86) -> 1027.296051 | Q86: =Sound_Speed(K86,N86,B86) -> 1505.102874
B87: 84 | C87: 35.8962 | E87: 13.7322 | F87: =IF(C87 ="",SP_from_C(A87,L87,B87),C87) -> 35.8962 | G87: 36.06546597 | H87: =LookUp_atlas("deltaSA_ref",B87,$B$1,$B$2) -> 0.000461977893 | I87: =LookUp_atlas("SAAR_ref",B87,$B$1,$B$2) -> 1.142688981e-05 | J87: =IF(is_Baltic($B$1,$B$2)=1,"Baltic",G87*I87) -> 0.0004121161057 | K87: =IF(is_Baltic($B$1,$B$2)=1,SA_Baltic(F87),G87+J87) -> 36.06587808 | L87: 13.72890506 | M87: =pt0_from_t(K87,L87,B87) -> 13.71687519 | N87: =CT_from_pt(K87,M87) -> 13.6849463 | O87: =sigma0(K87,N87) -> 26.94303798 | P87: =rho(K87,N87,B87) -> 1027.314237 | Q87: =Sound_Speed(K87,N87,B87) -> 1505.010895
B88: 85 | C88: 35.8849 | E88: 13.6705 | F88: =IF(C88 ="",SP_from_C(A88,L88,B88),C88) -> 35.8849 | G88: 36.05411268 | H88: =LookUp_atlas("deltaSA_ref",B88,$B$1,$B$2) -> 0.0004665266246 | I88: =LookUp_atlas("SAAR_ref",B88,$B$1,$B$2) -> 1.15179975e-05 | J88: =IF(is_Baltic($B$1,$B$2)=1,"Baltic",G88*I88) -> 0.0004152711797 | K88: =IF(is_Baltic($B$1,$B$2)=1,SA_Baltic(F88),G88+J88) -> 36.05452795 | L88: 13.66721987 | M88: =pt0_from_t(K88,L88,B88) -> 13.65508398 | N88: =CT_from_pt(K88,M88) -> 13.62348629 | O88: =sigma0(K88,N88) -> 26.94721476 | P88: =rho(K88,N88,B88) -> 1027.322936 | Q88: =Sound_Speed(K88,N88,B88) -> 1504.813146
B89: 86 | C89: 35.8821 | E89: 13.6324 | F89: =IF(C89 ="",SP_from_C(A89,L89,B89),C89) -> 35.8821 | G89: 36.05129948 | H89: =LookUp_atlas("deltaSA_ref",B89,$B$1,$B$2) -> 0.0004710753561 | I89: =LookUp_atlas("SAAR_ref",B89,$B$1,$B$2) -> 1.160910518e-05 | J89: =IF(is_Baltic($B$1,$B$2)=1,"Baltic",G89*I89) -> 0.0004185233276 | K89: =IF(is_Baltic($B$1,$B$2)=1,SA_Baltic(F89),G89+J89) -> 36.051718 | L89: 13.62912901 | M89: =pt0_from_t(K89,L89,B89) -> 13.61687298 | N89: =CT_from_pt(K89,M89) -> 13.58538133 | O89: =sigma0(K89,N89) -> 26.95301882 | P89: =rho(K89,N89,B89) -> 1027.333221 | Q89: =Sound_Speed(K89,N89,B89) -> 1504.702041
B90: 87 | C90: 35.8701 | E90: 13.5968 | F90: =IF(C90 ="",SP_from_C(A90,L90,B90),C90) -> 35.8701 | G90: 36.03924289 | H90: =LookUp_atlas("deltaSA_ref",B90,$B$1,$B$2) -> 0.0004756240877 | I90: =LookUp_atlas("SAAR_ref",B90,$B$1,$B$2) -> 1.170021287e-05 | J90: =IF(is_Baltic($B$1,$B$2)=1,"Baltic",G90*I90) -> 0.0004216668134 | K90: =IF(is_Baltic($B$1,$B$2)=1,SA_Baltic(F90),G90+J90) -> 36.03966456 | L90: 13.59353755 | M90: =pt0_from_t(K90,L90,B90) -> 13.58116143 | N90: =CT_from_pt(K90,M90) -> 13.54998829 | O90: =sigma0(K90,N90) -> 26.95117137 | P90: =rho(K90,N90,B90) -> 1027.335857 | Q90: =Sound_Speed(K90,N90,B90) -> 1504.5881
B91: 88 | C91: 35.8665 | E91: 13.5786 | F91: =IF(C91 ="",SP_from_C(A91,L91,B91),C91) -> 35.8665 | G91: 36.03562592 | H91: =LookUp_atlas("deltaSA_ref",B91,$B$1,$B$2) -> 0.0004801728192 | I91: =LookUp_atlas("SAAR_ref",B91,$B$1,$B$2) -> 1.179132055e-05 | J91: =IF(is_Baltic($B$1,$B$2)=1,"Baltic",G91*I91) -> 0.0004249076164 | K91: =IF(is_Baltic($B$1,$B$2)=1,SA_Baltic(F91),G91+J91) -> 36.03605083 | L91: 13.57534192 | M91: =pt0_from_t(K91,L91,B91) -> 13.56283464 | N91: =CT_from_pt(K91,M91) -> 13.53176479 | O91: =sigma0(K91,N91) -> 26.95219847 | P91: =rho(K91,N91,B91) -> 1027.341334 | Q91: =Sound_Speed(K91,N91,B91) -> 1504.540777
B92: 89 | C92: 35.8723 | E92: 13.5539 | F92: =IF(C92 ="",SP_from_C(A92,L92,B92),C92) -> 35.8723 | G92: 36.04145327 | H92: =LookUp_atlas("deltaSA_ref",B92,$B$1,$B$2) -> 0.0004847215508 | I92: =LookUp_atlas("SAAR_ref",B92,$B$1,$B$2) -> 1.188242823e-05 | J92: =IF(is_Baltic($B$1,$B$2)=1,"Baltic",G92*I92) -> 0.0004282599819 | K92: =IF(is_Baltic($B$1,$B$2)=1,SA_Baltic(F92),G92+J92) -> 36.04188153 | L92: 13.55064784 | M92: =pt0_from_t(K92,L92,B92) -> 13.53801261 | N92: =CT_from_pt(K92,M92) -> 13.50683343 | O92: =sigma0(K92,N92) -> 26.96184342 | P92: =rho(K92,N92,B92) -> 1027.355436 | Q92: =Sound_Speed(K92,N92,B92) -> 1504.483297
B93: 90 | C93: 35.8722 | E93: 13.5401 | F93: =IF(C93 ="",SP_from_C(A93,L93,B93),C93) -> 35.8722 | G93: 36.0413528 | H93: =LookUp_atlas("deltaSA_ref",B93,$B$1,$B$2) -> 0.0004892702823 | I93: =LookUp_atlas("SAAR_ref",B93,$B$1,$B$2) -> 1.197353592e-05 | J93: =IF(is_Baltic($B$1,$B$2)=1,"Baltic",G93*I93) -> 0.0004315424323 | K93: =IF(is_Baltic($B$1,$B$2)=1,SA_Baltic(F93),G93+J93) -> 36.04178434 | L93: 13.53685116 | M93: =pt0_from_t(K93,L93,B93) -> 13.52408215 | N93: =CT_from_pt(K93,M93) -> 13.49292 | O93: =sigma0(K93,N93) -> 26.96465913 | P93: =rho(K93,N93,B93) -> 1027.362694 | Q93: =Sound_Speed(K93,N93,B93) -> 1504.454419
B94: 91 | C94: 35.8701 | E94: 13.5357 | F94: =IF(C94 ="",SP_from_C(A94,L94,B94),C94) -> 35.8701 | G94: 36.03924289 | H94: =LookUp_atlas("deltaSA_ref",B94,$B$1,$B$2) -> 0.0004938190139 | I94: =LookUp_atlas("SAAR_ref",B94,$B$1,$B$2) -> 1.20646436e-05 | J94: =IF(is_Baltic($B$1,$B$2)=1,"Baltic",G94*I94) -> 0.0004348006212 | K94: =IF(is_Baltic($B$1,$B$2)=1,SA_Baltic(F94),G94+J94) -> 36.0396777 | L94: 13.53245221 | M94: =pt0_from_t(K94,L94,B94) -> 13.5195439 | N94: =CT_from_pt(K94,M94) -> 13.48843544 | O94: =sigma0(K94,N94) -> 26.96397805 | P94: =rho(K94,N94,B94) -> 1027.36644 | Q94: =Sound_Speed(K94,N94,B94) -> 1504.453885
B95: 92 | C95: 35.8687 | E95: 13.53 | F95: =IF(C95 ="",SP_from_C(A95,L95,B95),C95) -> 35.8687 | G95: 36.03783629 | H95: =LookUp_atlas("deltaSA_ref",B95,$B$1,$B$2) -> 0.0004983677454 | I95: =LookUp_atlas("SAAR_ref",B95,$B$1,$B$2) -> 1.215575129e-05 | J95: =IF(is_Baltic($B$1,$B$2)=1,"Baltic",G95*I95) -> 0.0004380669749 | K95: =IF(is_Baltic($B$1,$B$2)=1,SA_Baltic(F95),G95+J95) -> 36.03827436 | L95: 13.52675358 | M95: =pt0_from_t(K95,L95,B95) -> 13.51370677 | N95: =CT_from_pt(K95,M95) -> 13.48263704 | O95: =sigma0(K95,N95) -> 26.96410767 | P95: =rho(K95,N95,B95) -> 1027.370999 | Q95: =Sound_Speed(K95,N95,B95) -> 1504.449927
B96: 93 | C96: 35.8675 | E96: 13.5209 | F96: =IF(C96 ="",SP_from_C(A96,L96,B96),C96) -> 35.8675 | G96: 36.03663063 | H96: =LookUp_atlas("deltaSA_ref",B96,$B$1,$B$2) -> 0.000502916477 | I96: =LookUp_atlas("SAAR_ref",B96,$B$1,$B$2) -> 1.224685897e-05 | J96: =IF(is_Baltic($B$1,$B$2)=1,"Baltic",G96*I96) -> 0.0004413355332 | K96: =IF(is_Baltic($B$1,$B$2)=1,SA_Baltic(F96),G96+J96) -> 36.03707197 | L96: 13.51765576 | M96: =pt0_from_t(K96,L96,B96) -> 13.50447271 | N96: =CT_from_pt(K96,M96) -> 13.47344063 | O96: =sigma0(K96,N96) -> 26.96509574 | P96: =rho(K96,N96,B96) -> 1027.376422 | Q96: =Sound_Speed(K96,N96,B96) -> 1504.435086
B97: 94 | C97: 35.8666 | E97: 13.5091 | F97: =IF(C97 ="",SP_from_C(A97,L97,B97),C97) -> 35.8666 | G97: 36.03572639 | H97: =LookUp_atlas("deltaSA_ref",B97,$B$1,$B$2) -> 0.0005074652085 | I97: =LookUp_atlas("SAAR_ref",B97,$B$1,$B$2) -> 1.233796666e-05 | J97: =IF(is_Baltic($B$1,$B$2)=1,"Baltic",G97*I97) -> 0.0004446075906 | K97: =IF(is_Baltic($B$1,$B$2)=1,SA_Baltic(F97),G97+J97) -> 36.036171 | L97: 13.50585859 | M97: =pt0_from_t(K97,L97,B97) -> 13.49254114 | N97: =CT_from_pt(K97,M97) -> 13.46154257 | O97: =sigma0(K97,N97) -> 26.96687384 | P97: =rho(K97,N97,B97) -> 1027.382641 | Q97: =Sound_Speed(K97,N97,B97) -> 1504.411762
B98: 95 | C98: 35.8669 | E98: 13.5058 | F98: =IF(C98 ="",SP_from_C(A98,L98,B98),C98) -> 35.8669 | G98: 36.03602781 | H98: =LookUp_atlas("deltaSA_ref",B98,$B$1,$B$2) -> 0.0005120139401 | I98: =LookUp_atlas("SAAR_ref",B98,$B$1,$B$2) -> 1.242907434e-05 | J98: =IF(is_Baltic($B$1,$B$2)=1,"Baltic",G98*I98) -> 0.0004478944685 | K98: =IF(is_Baltic($B$1,$B$2)=1,SA_Baltic(F98),G98+J98) -> 36.0364757 | L98: 13.50255939 | M98: =pt0_from_t(K98,L98,B98) -> 13.48910192 | N98: =CT_from_pt(K98,M98) -> 13.45809994 | O98: =sigma0(K98,N98) -> 26.9678208 | P98: =rho(K98,N98,B98) -> 1027.388012 | Q98: =Sound_Speed(K98,N98,B98) -> 1504.417649
B99: 96 | C99: 35.8655 | E99: 13.4959 | F99: =IF(C99 ="",SP_from_C(A99,L99,B99),C99) -> 35.8655 | G99: 36.0346212 | H99: =LookUp_atlas("deltaSA_ref",B99,$B$1,$B$2) -> 0.0005165626716 | I99: =LookUp_atlas("SAAR_ref",B99,$B$1,$B$2) -> 1.252018202e-05 | J99: =IF(is_Baltic($B$1,$B$2)=1,"Baltic",G99*I99) -> 0.0004511600166 | K99: =IF(is_Baltic($B$1,$B$2)=1,SA_Baltic(F99),G99+J99) -> 36.03507236 | L99: 13.49266176 | M99: =pt0_from_t(K99,L99,B99) -> 13.47906894 | N99: =CT_from_pt(K99,M99) -> 13.44811009 | O99: =sigma0(K99,N99) -> 26.96881723 | P99: =rho(K99,N99,B99) -> 1027.393447 | Q99: =Sound_Speed(K99,N99,B99) -> 1504.399935
B100: 97 | C100: 35.8636 | E100: 13.4903 | F100: =IF(C100 ="",SP_from_C(A100,L100,B100),C100) -> 35.8636 | G100: 36.03271224 | H100: =LookUp_atlas("deltaSA_ref",B100,$B$1,$B$2) -> 0.0005211114032 | I100: =LookUp_atlas("SAAR_ref",B100,$B$1,$B$2) -> 1.261128971e-05 | J100: =IF(is_Baltic($B$1,$B$2)=1,"Baltic",G100*I100) -> 0.0004544189731 | K100: =IF(is_Baltic($B$1,$B$2)=1,SA_Baltic(F100),G100+J100) -> 36.03316666 | L100: 13.4870631 | M100: =pt0_from_t(K100,L100,B100) -> 13.47333223 | N100: =CT_from_pt(K100,M100) -> 13.44242355 | O100: =sigma0(K100,N100) -> 26.96853676 | P100: =rho(K100,N100,B100) -> 1027.397597 | Q100: =Sound_Speed(K100,N100,B100) -> 1504.395692
B101: 98 | C101: 35.8618 | E101: 13.4819 | F101: =IF(C101 ="",SP_from_C(A101,L101,B101),C101) -> 35.8618 | G101: 36.03090376 | H101: =LookUp_atlas("deltaSA_ref",B101,$B$1,$B$2) -> 0.0005256601347 | I101: =LookUp_atlas("SAAR_ref",B101,$B$1,$B$2) -> 1.270239739e-05 | J101: =IF(is_Baltic($B$1,$B$2)=1,"Baltic",G101*I101) -> 0.0004576788579 | K101: =IF(is_Baltic($B$1,$B$2)=1,SA_Baltic(F101),G101+J101) -> 36.03136144 | L101: 13.47866512 | M101: =pt0_from_t(K101,L101,B101) -> 13.46479815 | N101: =CT_from_pt(K101,M101) -> 13.43394026 | O101: =sigma0(K101,N101) -> 26.968912 | P101: =rho(K101,N101,B101) -> 1027.402408 | Q101: =Sound_Speed(K101,N101,B101) -> 1504.382399
B102: 99 | C102: 35.8609 | E102: 13.4732 | F102: =IF(C102 ="",SP_from_C(A102,L102,B102),C102) -> 35.8609 | G102: 36.02999951 | H102: =LookUp_atlas("deltaSA_ref",B102,$B$1,$B$2) -> 0.0005302088663 | I102: =LookUp_atlas("SAAR_ref",B102,$B$1,$B$2) -> 1.279350508e-05 | J102: =IF(is_Baltic($B$1,$B$2)=1,"Baltic",G102*I102) -> 0.0004609499817 | K102: =IF(is_Baltic($B$1,$B$2)=1,SA_Baltic(F102),G102+J102) -> 36.03046046 | L102: 13.46996721 | M102: =pt0_from_t(K102,L102,B102) -> 13.45596434 | N102: =CT_from_pt(K102,M102) -> 13.42513663 | O102: =sigma0(K102,N102) -> 26.97004496 | P102: =rho(K102,N102,B102) -> 1027.407977 | Q102: =Sound_Speed(K102,N102,B102) -> 1504.369183
B103: 100 | C103: 35.8598 | E103: 13.4666 | F103: =IF(C103 ="",SP_from_C(A103,L103,B103),C103) -> 35.8598 | G103: 36.02889433 | H103: =LookUp_atlas("deltaSA_ref",B103,$B$1,$B$2) -> 0.0005347575978 | I103: =LookUp_atlas("SAAR_ref",B103,$B$1,$B$2) -> 1.288461276e-05 | J103: =IF(is_Baltic($B$1,$B$2)=1,"Baltic",G103*I103) -> 0.0004642183516 | K103: =IF(is_Baltic($B$1,$B$2)=1,SA_Baltic(F103),G103+J103) -> 36.02935854 | L103: 13.46336879 | M103: =pt0_from_t(K103,L103,B103) -> 13.44922872 | N103: =CT_from_pt(K103,M103) -> 13.41843359 | O103: =sigma0(K103,N103) -> 26.97058869 | P103: =rho(K103,N103,B103) -> 1027.412953 | Q103: =Sound_Speed(K103,N103,B103) -> 1504.362599
B104: 101 | C104: 35.8595 | E104: 13.462 | F104: =IF(C104 ="",SP_from_C(A104,L104,B104),C104) -> 35.8595 | G104: 36.02859291 | H104: =LookUp_atlas("deltaSA_ref",B104,$B$1,$B$2) -> 0.0005393063294 | I104: =LookUp_atlas("SAAR_ref",B104,$B$1,$B$2) -> 1.297572044e-05 | J104: =IF(is_Baltic($B$1,$B$2)=1,"Baltic",G104*I104) -> 0.0004674969496 | K104: =IF(is_Baltic($B$1,$B$2)=1,SA_Baltic(F104),G104+J104) -> 36.02906041 | L104: 13.4587699 | M104: =pt0_from_t(K104,L104,B104) -> 13.44449119 | N104: =CT_from_pt(K104,M104) -> 13.41370796 | O104: =sigma0(K104,N104) -> 26.97133819 | P104: =rho(K104,N104,B104) -> 1027.41813 | Q104: =Sound_Speed(K104,N104,B104) -> 1504.363506
B105: 102 | C105: 35.8538 | E105: 13.4568 | F105: =IF(C105 ="",SP_from_C(A105,L105,B105),C105) -> 35.8538 | G105: 36.02286603 | H105: =LookUp_atlas("deltaSA_ref",B105,$B$1,$B$2) -> 0.0005417931955 | I105: =LookUp_atlas("SAAR_ref",B105,$B$1,$B$2) -> 1.304490101e-05 | J105: =IF(is_Baltic($B$1,$B$2)=1,"Baltic",G105*I105) -> 0.0004699147216 | K105: =IF(is_Baltic($B$1,$B$2)=1,SA_Baltic(F105),G105+J105) -> 36.02333595 | L105: 13.45357114 | M105: =pt0_from_t(K105,L105,B105) -> 13.43915499 | N105: =CT_from_pt(K105,M105) -> 13.4085096 | O105: =sigma0(K105,N105) -> 26.96803143 | P105: =rho(K105,N105,B105) -> 1027.419257 | Q105: =Sound_Speed(K105,N105,B105) -> 1504.356062
B106: 103 | C106: 35.8502 | E106: 13.446 | F106: =IF(C106 ="",SP_from_C(A106,L106,B106),C106) -> 35.8502 | G106: 36.01924906 | H106: =LookUp_atlas("deltaSA_ref",B106,$B$1,$B$2) -> 0.0005442800616 | I106: =LookUp_atlas("SAAR_ref",B106,$B$1,$B$2) -> 1.311408158e-05 | J106: =IF(is_Baltic($B$1,$B$2)=1,"Baltic",G106*I106) -> 0.0004723593707 | K106: =IF(is_Baltic($B$1,$B$2)=1,SA_Baltic(F106),G106+J106) -> 36.01972142 | L106: 13.44277373 | M106: =pt0_from_t(K106,L106,B106) -> 13.42822394 | N106: =CT_from_pt(K106,M106) -> 13.39767347 | O106: =sigma0(K106,N106) -> 26.96750492 | P106: =rho(K106,N106,B106) -> 1027.423173 | Q106: =Sound_Speed(K106,N106,B106) -> 1504.332751
B107: 104 | C107: 35.8515 | E107: 13.4435 | F107: =IF(C107 ="",SP_from_C(A107,L107,B107),C107) -> 35.8515 | G107: 36.02055519 | H107: =LookUp_atlas("deltaSA_ref",B107,$B$1,$B$2) -> 0.0005467669277 | I107: =LookUp_atlas("SAAR_ref",B107,$B$1,$B$2) -> 1.318326215e-05 | J107: =IF(is_Baltic($B$1,$B$2)=1,"Baltic",G107*I107) -> 0.0004748684219 | K107: =IF(is_Baltic($B$1,$B$2)=1,SA_Baltic(F107),G107+J107) -> 36.02103006 | L107: 13.44027433 | M107: =pt0_from_t(K107,L107,B107) -> 13.4255844 | N107: =CT_from_pt(K107,M107) -> 13.3950065 | O107: =sigma0(K107,N107) -> 26.96905794 | P107: =rho(K107,N107,B107) -> 1027.429149 | Q107: =Sound_Speed(K107,N107,B107) -> 1504.342421
B108: 105 | C108: 35.8496 | E108: 13.4447 | F108: =IF(C108 ="",SP_from_C(A108,L108,B108),C108) -> 35.8496 | G108: 36.01864623 | H108: =LookUp_atlas("deltaSA_ref",B108,$B$1,$B$2) -> 0.0005492537938 | I108: =LookUp_atlas("SAAR_ref",B108,$B$1,$B$2) -> 1.325244272e-05 | J108: =IF(is_Baltic($B$1,$B$2)=1,"Baltic",G108*I108) -> 0.000477335046 | K108: =IF(is_Baltic($B$1,$B$2)=1,SA_Baltic(F108),G108+J108) -> 36.01912356 | L108: 13.44147405 | M108: =pt0_from_t(K108,L108,B108) -> 13.42664171 | N108: =CT_from_pt(K108,M108) -> 13.3961067 | O108: =sigma0(K108,N108) -> 26.96737109 | P108: =rho(K108,N108,B108) -> 1027.43188 | Q108: =Sound_Speed(K108,N108,B108) -> 1504.360432
B109: 106 | C109: 35.8478 | E109: 13.4332 | F109: =IF(C109 ="",SP_from_C(A109,L109,B109),C109) -> 35.8478 | G109: 36.01683774 | H109: =LookUp_atlas("deltaSA_ref",B109,$B$1,$B$2) -> 0.0005517406599 | I109: =LookUp_atlas("SAAR_ref",B109,$B$1,$B$2) -> 1.332162329e-05 | J109: =IF(is_Baltic($B$1,$B$2)=1,"Baltic",G109*I109) -> 0.0004798027445 | K109: =IF(is_Baltic($B$1,$B$2)=1,SA_Baltic(F109),G109+J109) -> 36.01731754 | L109: 13.42997681 | M109: =pt0_from_t(K109,L109,B109) -> 13.41501141 | N109: =CT_from_pt(K109,M109) -> 13.38453024 | O109: =sigma0(K109,N109) -> 26.96838052 | P109: =rho(K109,N109,B109) -> 1027.437334 | Q109: =Sound_Speed(K109,N109,B109) -> 1504.336942
B110: 107 | C110: 35.8454 | E110: 13.4266 | F110: =IF(C110 ="",SP_from_C(A110,L110,B110),C110) -> 35.8454 | G110: 36.01442642 | H110: =LookUp_atlas("deltaSA_ref",B110,$B$1,$B$2) -> 0.000554227526 | I110: =LookUp_atlas("SAAR_ref",B110,$B$1,$B$2) -> 1.339080386e-05 | J110: =IF(is_Baltic($B$1,$B$2)=1,"Baltic",G110*I110) -> 0.0004822621203 | K110: =IF(is_Baltic($B$1,$B$2)=1,SA_Baltic(F110),G110+J110) -> 36.01490869 | L110: 13.42337839 | M110: =pt0_from_t(K110,L110,B110) -> 13.40827651 | N110: =CT_from_pt(K110,M110) -> 13.37785793 | O110: =sigma0(K110,N110) -> 26.96791446 | P110: =rho(K110,N110,B110) -> 1027.441302 | Q110: =Sound_Speed(K110,N110,B110) -> 1504.328795
B111: 108 | C111: 35.842 | E111: 13.4111 | F111: =IF(C111 ="",SP_from_C(A111,L111,B111),C111) -> 35.842 | G111: 36.01101039 | H111: =LookUp_atlas("deltaSA_ref",B111,$B$1,$B$2) -> 0.0005567143921 | I111: =LookUp_atlas("SAAR_ref",B111,$B$1,$B$2) -> 1.345998443e-05 | J111: =IF(is_Baltic($B$1,$B$2)=1,"Baltic",G111*I111) -> 0.0004847076391 | K111: =IF(is_Baltic($B$1,$B$2)=1,SA_Baltic(F111),G111+J111) -> 36.0114951 | L111: 13.40788211 | M111: =pt0_from_t(K111,L111,B111) -> 13.39265067 | N111: =CT_from_pt(K111,M111) -> 13.36232706 | O111: =sigma0(K111,N111) -> 26.968507 | P111: =rho(K111,N111,B111) -> 1027.446349 | Q111: =Sound_Speed(K111,N111,B111) -> 1504.290276
B112: 109 | C112: 35.84 | E112: 13.3939 | F112: =IF(C112 ="",SP_from_C(A112,L112,B112),C112) -> 35.84 | G112: 36.00900096 | H112: =LookUp_atlas("deltaSA_ref",B112,$B$1,$B$2) -> 0.0005592012581 | I112: =LookUp_atlas("SAAR_ref",B112,$B$1,$B$2) -> 1.3529165e-05 | J112: =IF(is_Baltic($B$1,$B$2)=1,"Baltic",G112*I112) -> 0.0004871717154 | K112: =IF(is_Baltic($B$1,$B$2)=1,SA_Baltic(F112),G112+J112) -> 36.00948813 | L112: 13.39068624 | M112: =pt0_from_t(K112,L112,B112) -> 13.37532654 | N112: =CT_from_pt(K112,M112) -> 13.34506722 | O112: =sigma0(K112,N112) -> 26.97053046 | P112: =rho(K112,N112,B112) -> 1027.452829 | Q112: =Sound_Speed(K112,N112,B112) -> 1504.247813
B113: 110 | C113: 35.8367 | E113: 13.3801 | F113: =IF(C113 ="",SP_from_C(A113,L113,B113),C113) -> 35.8367 | G113: 36.0056854 | H113: =LookUp_atlas("deltaSA_ref",B113,$B$1,$B$2) -> 0.0005616881242 | I113: =LookUp_atlas("SAAR_ref",B113,$B$1,$B$2) -> 1.359834557e-05 | J113: =IF(is_Baltic($B$1,$B$2)=1,"Baltic",G113*I113) -> 0.0004896177524 | K113: =IF(is_Baltic($B$1,$B$2)=1,SA_Baltic(F113),G113+J113) -> 36.00617502 | L113: 13.37688955 | M113: =pt0_from_t(K113,L113,B113) -> 13.36139942 | N113: =CT_from_pt(K113,M113) -> 13.33123081 | O113: =sigma0(K113,N113) -> 26.97084552 | P113: =rho(K113,N113,B113) -> 1027.457596 | Q113: =Sound_Speed(K113,N113,B113) -> 1504.214946
B114: 111 | C114: 35.85 | E114: 13.3781 | F114: =IF(C114 ="",SP_from_C(A114,L114,B114),C114) -> 35.85 | G114: 36.01904811 | H114: =LookUp_atlas("deltaSA_ref",B114,$B$1,$B$2) -> 0.0005641749903 | I114: =LookUp_atlas("SAAR_ref",B114,$B$1,$B$2) -> 1.366752613e-05 | J114: =IF(is_Baltic($B$1,$B$2)=1,"Baltic",G114*I114) -> 0.0004922912814 | K114: =IF(is_Baltic($B$1,$B$2)=1,SA_Baltic(F114),G114+J114) -> 36.01954041 | L114: 13.37489003 | M114: =pt0_from_t(K114,L114,B114) -> 13.35925817 | N114: =CT_from_pt(K114,M114) -> 13.32878457 | O114: =sigma0(K114,N114) -> 26.98158317 | P114: =rho(K114,N114,B114) -> 1027.472747 | Q114: =Sound_Speed(K114,N114,B114) -> 1504.24044
B115: 112 | C115: 35.8525 | E115: 13.3772 | F115: =IF(C115 ="",SP_from_C(A115,L115,B115),C115) -> 35.8525 | G115: 36.0215599 | H115: =LookUp_atlas("deltaSA_ref",B115,$B$1,$B$2) -> 0.0005666618564 | I115: =LookUp_atlas("SAAR_ref",B115,$B$1,$B$2) -> 1.37367067e-05 | J115: =IF(is_Baltic($B$1,$B$2)=1,"Baltic",G115*I115) -> 0.0004948176034 | K115: =IF(is_Baltic($B$1,$B$2)=1,SA_Baltic(F115),G115+J115) -> 36.02205472 | L115: 13.37399024 | M115: =pt0_from_t(K115,L115,B115) -> 13.35821734 | N115: =CT_from_pt(K115,M115) -> 13.32768704 | O115: =sigma0(K115,N115) -> 26.98373449 | P115: =rho(K115,N115,B115) -> 1027.479318 | Q115: =Sound_Speed(K115,N115,B115) -> 1504.256768
B116: 114 | C116: 35.8405 | E116: 13.3433 | F116: =IF(C116 ="",SP_from_C(A116,L116,B116),C116) -> 35.8405 | G116: 36.00950332 | H116: =LookUp_atlas("deltaSA_ref",B116,$B$1,$B$2) -> 0.0005716355886 | I116: =LookUp_atlas("SAAR_ref",B116,$B$1,$B$2) -> 1.387506784e-05 | J116: =IF(is_Baltic($B$1,$B$2)=1,"Baltic",G116*I116) -> 0.0004996343015 | K116: =IF(is_Baltic($B$1,$B$2)=1,SA_Baltic(F116),G116+J116) -> 36.01000295 | L116: 13.34009838 | M116: =pt0_from_t(K116,L116,B116) -> 13.32407133 | N116: =CT_from_pt(K116,M116) -> 13.29385391 | O116: =sigma0(K116,N116) -> 26.98147126 | P116: =rho(K116,N116,B116) -> 1027.485978 | Q116: =Sound_Speed(K116,N116,B116) -> 1504.163889
B117: 115 | C117: 35.8392 | E117: 13.3157 | F117: =IF(C117 ="",SP_from_C(A117,L117,B117),C117) -> 35.8392 | G117: 36.00819719 | H117: =LookUp_atlas("deltaSA_ref",B117,$B$1,$B$2) -> 0.0005741224547 | I117: =LookUp_atlas("SAAR_ref",B117,$B$1,$B$2) -> 1.394424841e-05 | J117: =IF(is_Baltic($B$1,$B$2)=1,"Baltic",G117*I117) -> 0.0005021072464 | K117: =IF(is_Baltic($B$1,$B$2)=1,SA_Baltic(F117),G117+J117) -> 36.00869929 | L117: 13.312505 | M117: =pt0_from_t(K117,L117,B117) -> 13.29635907 | N117: =CT_from_pt(K117,M117) -> 13.26620076 | O117: =sigma0(K117,N117) -> 26.9861573 | P117: =rho(K117,N117,B117) -> 1027.495147 | Q117: =Sound_Speed(K117,N117,B117) -> 1504.087959
B118: 116 | C118: 35.8322 | E118: 13.2988 | F118: =IF(C118 ="",SP_from_C(A118,L118,B118),C118) -> 35.8322 | G118: 36.00116418 | H118: =LookUp_atlas("deltaSA_ref",B118,$B$1,$B$2) -> 0.0005766093208 | I118: =LookUp_atlas("SAAR_ref",B118,$B$1,$B$2) -> 1.401342898e-05 | J118: =IF(is_Baltic($B$1,$B$2)=1,"Baltic",G118*I118) -> 0.0005044997574 | K118: =IF(is_Baltic($B$1,$B$2)=1,SA_Baltic(F118),G118+J118) -> 36.00166868 | L118: 13.29560905 | M118: =pt0_from_t(K118,L118,B118) -> 13.27933684 | N118: =CT_from_pt(K118,M118) -> 13.2493574 | O118: =sigma0(K118,N118) -> 26.98423147 | P118: =rho(K118,N118,B118) -> 1027.497685 | Q118: =Sound_Speed(K118,N118,B118) -> 1504.040416
B119: 117 | C119: 35.8288 | E119: 13.2892 | F119: =IF(C119 ="",SP_from_C(A119,L119,B119),C119) -> 35.8288 | G119: 35.99774815 | H119: =LookUp_atlas("deltaSA_ref",B119,$B$1,$B$2) -> 0.0005790961869 | I119: =LookUp_atlas("SAAR_ref",B119,$B$1,$B$2) -> 1.408260955e-05 | J119: =IF(is_Baltic($B$1,$B$2)=1,"Baltic",G119*I119) -> 0.0005069422318 | K119: =IF(is_Baltic($B$1,$B$2)=1,SA_Baltic(F119),G119+J119) -> 35.99825509 | L119: 13.28601136 | M119: =pt0_from_t(K119,L119,B119) -> 13.26960662 | N119: =CT_from_pt(K119,M119) -> 13.23971546 | O119: =sigma0(K119,N119) -> 26.98359558 | P119: =rho(K119,N119,B119) -> 1027.501495 | Q119: =Sound_Speed(K119,N119,B119) -> 1504.02113
B120: 118 | C120: 35.8249 | E120: 13.2772 | F120: =IF(C120 ="",SP_from_C(A120,L120,B120),C120) -> 35.8249 | G120: 35.99382976 | H120: =LookUp_atlas("deltaSA_ref",B120,$B$1,$B$2) -> 0.000581583053 | I120: =LookUp_atlas("SAAR_ref",B120,$B$1,$B$2) -> 1.415179012e-05 | J120: =IF(is_Baltic($B$1,$B$2)=1,"Baltic",G120*I120) -> 0.0005093771242 | K120: =IF(is_Baltic($B$1,$B$2)=1,SA_Baltic(F120),G120+J120) -> 35.99433913 | L120: 13.27401424 | M120: =pt0_from_t(K120,L120,B120) -> 13.25747914 | N120: =CT_from_pt(K120,M120) -> 13.22769018 | O120: =sigma0(K120,N120) -> 26.98306255 | P120: =rho(K120,N120,B120) -> 1027.505413 | Q120: =Sound_Speed(K120,N120,B120) -> 1503.993344
B121: 119 | C121: 35.8173 | E121: 13.2616 | F121: =IF(C121 ="",SP_from_C(A121,L121,B121),C121) -> 35.8173 | G121: 35.98619392 | H121: =LookUp_atlas("deltaSA_ref",B121,$B$1,$B$2) -> 0.0005840699191 | I121: =LookUp_atlas("SAAR_ref",B121,$B$1,$B$2) -> 1.422097069e-05 | J121: =IF(is_Baltic($B$1,$B$2)=1,"Baltic",G121*I121) -> 0.0005117586088 | K121: =IF(is_Baltic($B$1,$B$2)=1,SA_Baltic(F121),G121+J121) -> 35.98670568 | L121: 13.25841798 | M121: =pt0_from_t(K121,L121,B121) -> 13.24175626 | N121: =CT_from_pt(K121,M121) -> 13.21215801 | O121: =sigma0(K121,N121) -> 26.98039898 | P121: =rho(K121,N121,B121) -> 1027.507213 | Q121: =Sound_Speed(K121,N121,B121) -> 1503.949309
B122: 120 | C122: 35.8169 | E122: 13.2383 | F122: =IF(C122 ="",SP_from_C(A122,L122,B122),C122) -> 35.8169 | G122: 35.98579203 | H122: =LookUp_atlas("deltaSA_ref",B122,$B$1,$B$2) -> 0.0005865567852 | I122: =LookUp_atlas("SAAR_ref",B122,$B$1,$B$2) -> 1.429015126e-05 | J122: =IF(is_Baltic($B$1,$B$2)=1,"Baltic",G122*I122) -> 0.0005142424112 | K122: =IF(is_Baltic($B$1,$B$2)=1,SA_Baltic(F122),G122+J122) -> 35.98630628 | L122: 13.23512357 | M122: =pt0_from_t(K122,L122,B122) -> 13.21834077 | N122: =CT_from_pt(K122,M122) -> 13.18877593 | O122: =sigma0(K122,N122) -> 26.9848805 | P122: =rho(K122,N122,B122) -> 1027.516171 | Q122: =Sound_Speed(K122,N122,B122) -> 1503.888407
B123: 121 | C123: 35.8172 | E123: 13.2291 | F123: =IF(C123 ="",SP_from_C(A123,L123,B123),C123) -> 35.8172 | G123: 35.98609345 | H123: =LookUp_atlas("deltaSA_ref",B123,$B$1,$B$2) -> 0.0005890436513 | I123: =LookUp_atlas("SAAR_ref",B123,$B$1,$B$2) -> 1.435933182e-05 | J123: =IF(is_Baltic($B$1,$B$2)=1,"Baltic",G123*I123) -> 0.0005167362569 | K123: =IF(is_Baltic($B$1,$B$2)=1,SA_Baltic(F123),G123+J123) -> 35.98661018 | L123: 13.22592578 | M123: =pt0_from_t(K123,L123,B123) -> 13.20901022 | N123: =CT_from_pt(K123,M123) -> 13.17944816 | O123: =sigma0(K123,N123) -> 26.9870217 | P123: =rho(K123,N123,B123) -> 1027.522755 | Q123: =Sound_Speed(K123,N123,B123) -> 1503.874767
B124: 122 | C124: 35.8087 | E124: 13.2126 | F124: =IF(C124 ="",SP_from_C(A124,L124,B124),C124) -> 35.8087 | G124: 35.97755337 | H124: =LookUp_atlas("deltaSA_ref",B124,$B$1,$B$2) -> 0.0005915305174 | I124: =LookUp_atlas("SAAR_ref",B124,$B$1,$B$2) -> 1.442851239e-05 | J124: =IF(is_Baltic($B$1,$B$2)=1,"Baltic",G124*I124) -> 0.0005191025746 | K124: =IF(is_Baltic($B$1,$B$2)=1,SA_Baltic(F124),G124+J124) -> 35.97807247 | L124: 13.20942974 | M124: =pt0_from_t(K124,L124,B124) -> 13.19238914 | N124: =CT_from_pt(K124,M124) -> 13.16303878 | O124: =sigma0(K124,N124) -> 26.98383638 | P124: =rho(K124,N124,B124) -> 1027.524038 | Q124: =Sound_Speed(K124,N124,B124) -> 1503.826626
B125: 123 | C125: 35.8087 | E125: 13.1811 | F125: =IF(C125 ="",SP_from_C(A125,L125,B125),C125) -> 35.8087 | G125: 35.97755337 | H125: =LookUp_atlas("deltaSA_ref",B125,$B$1,$B$2) -> 0.0005940173835 | I125: =LookUp_atlas("SAAR_ref",B125,$B$1,$B$2) -> 1.449769296e-05 | J125: =IF(is_Baltic($B$1,$B$2)=1,"Baltic",G125*I125) -> 0.0005215915223 | K125: =IF(is_Baltic($B$1,$B$2)=1,SA_Baltic(F125),G125+J125) -> 35.97807496 | L125: 13.1779373 | M125: =pt0_from_t(K125,L125,B125) -> 13.1607834 | N125: =CT_from_pt(K125,M125) -> 13.13146572 | O125: =sigma0(K125,N125) -> 26.99028622 | P125: =rho(K125,N125,B125) -> 1027.534985 | Q125: =Sound_Speed(K125,N125,B125) -> 1503.739038
B126: 124 | C126: 35.8057 | E126: 13.1757 | F126: =IF(C126 ="",SP_from_C(A126,L126,B126),C126) -> 35.8057 | G126: 35.97453922 | H126: =LookUp_atlas("deltaSA_ref",B126,$B$1,$B$2) -> 0.0005965042496 | I126: =LookUp_atlas("SAAR_ref",B126,$B$1,$B$2) -> 1.456687353e-05 | J126: =IF(is_Baltic($B$1,$B$2)=1,"Baltic",G126*I126) -> 0.0005240365632 | K126: =IF(is_Baltic($B$1,$B$2)=1,SA_Baltic(F126),G126+J126) -> 35.97506326 | L126: 13.17253859 | M126: =pt0_from_t(K126,L126,B126) -> 13.15524976 | N126: =CT_from_pt(K126,M126) -> 13.12600624 | O126: =sigma0(K126,N126) -> 26.98909273 | P126: =rho(K126,N126,B126) -> 1027.53823 | Q126: =Sound_Speed(K126,N126,B126) -> 1503.733982
B127: 125 | C127: 35.8004 | E127: 13.147 | F127: =IF(C127 ="",SP_from_C(A127,L127,B127),C127) -> 35.8004 | G127: 35.96921423 | H127: =LookUp_atlas("deltaSA_ref",B127,$B$1,$B$2) -> 0.0005989911156 | I127: =LookUp_atlas("SAAR_ref",B127,$B$1,$B$2) -> 1.46360541e-05 | J127: =IF(is_Baltic($B$1,$B$2)=1,"Baltic",G127*I127) -> 0.0005264473654 | K127: =IF(is_Baltic($B$1,$B$2)=1,SA_Baltic(F127),G127+J127) -> 35.96974068 | L127: 13.14384548 | M127: =pt0_from_t(K127,L127,B127) -> 13.12644246 | N127: =CT_from_pt(K127,M127) -> 13.09734954 | O127: =sigma0(K127,N127) -> 26.9908568 | P127: =rho(K127,N127,B127) -> 1027.544491 | Q127: =Sound_Speed(K127,N127,B127) -> 1503.649257
B128: 126 | C128: 35.7969 | E128: 13.1312 | F128: =IF(C128 ="",SP_from_C(A128,L128,B128),C128) -> 35.7969 | G128: 35.96569773 | H128: =LookUp_atlas("deltaSA_ref",B128,$B$1,$B$2) -> 0.0006014779817 | I128: =LookUp_atlas("SAAR_ref",B128,$B$1,$B$2) -> 1.470523467e-05 | J128: =IF(is_Baltic($B$1,$B$2)=1,"Baltic",G128*I128) -> 0.0005288840251 | K128: =IF(is_Baltic($B$1,$B$2)=1,SA_Baltic(F128),G128+J128) -> 35.96622661 | L128: 13.12804927 | M128: =pt0_from_t(K128,L128,B128) -> 13.11052085 | N128: =CT_from_pt(K128,M128) -> 13.08152401 | O128: =sigma0(K128,N128) -> 26.99138696 | P128: =rho(K128,N128,B128) -> 1027.549486 | Q128: =Sound_Speed(K128,N128,B128) -> 1503.609227
B129: 127 | C129: 35.7907 | E129: 13.117 | F129: =IF(C129 ="",SP_from_C(A129,L129,B129),C129) -> 35.7907 | G129: 35.95946849 | H129: =LookUp_atlas("deltaSA_ref",B129,$B$1,$B$2) -> 0.000603640545 | I129: =LookUp_atlas("SAAR_ref",B129,$B$1,$B$2) -> 1.482955468e-05 | J129: =IF(is_Baltic($B$1,$B$2)=1,"Baltic",G129*I129) -> 0.0005332629043 | K129: =IF(is_Baltic($B$1,$B$2)=1,SA_Baltic(F129),G129+J129) -> 35.96000175 | L129: 13.11385268 | M129: =pt0_from_t(K129,L129,B129) -> 13.0961981 | N129: =CT_from_pt(K129,M129) -> 13.06735697 | O129: =sigma0(K129,N129) -> 26.98949979 | P129: =rho(K129,N129,B129) -> 1027.552063 | Q129: =Sound_Speed(K129,N129,B129) -> 1503.571265
B130: 128 | C130: 35.7904 | E130: 13.088 | F130: =IF(C130 ="",SP_from_C(A130,L130,B130),C130) -> 35.7904 | G130: 35.95916707 | H130: =LookUp_atlas("deltaSA_ref",B130,$B$1,$B$2) -> 0.0006058031083 | I130: =LookUp_atlas("SAAR_ref",B130,$B$1,$B$2) -> 1.495387469e-05 | J130: =IF(is_Baltic($B$1,$B$2)=1,"Baltic",G130*I130) -> 0.0005377288785 | K130: =IF(is_Baltic($B$1,$B$2)=1,SA_Baltic(F130),G130+J130) -> 35.9597048 | L130: 13.08485963 | M130: =pt0_from_t(K130,L130,B130) -> 13.06709134 | N130: =CT_from_pt(K130,M130) -> 13.03828683 | O130: =sigma0(K130,N130) -> 26.99518158 | P130: =rho(K130,N130,B130) -> 1027.562241 | Q130: =Sound_Speed(K130,N130,B130) -> 1503.491323
B131: 129 | C131: 35.7905 | E131: 13.086 | F131: =IF(C131 ="",SP_from_C(A131,L131,B131),C131) -> 35.7905 | G131: 35.95926755 | H131: =LookUp_atlas("deltaSA_ref",B131,$B$1,$B$2) -> 0.0006079656715 | I131: =LookUp_atlas("SAAR_ref",B131,$B$1,$B$2) -> 1.50781947e-05 | J131: =IF(is_Baltic($B$1,$B$2)=1,"Baltic",G131*I131) -> 0.0005422008375 | K131: =IF(is_Baltic($B$1,$B$2)=1,SA_Baltic(F131),G131+J131) -> 35.95980975 | L131: 13.08286011 | M131: =pt0_from_t(K131,L131,B131) -> 13.06495413 | N131: =CT_from_pt(K131,M131) -> 13.03614945 | O131: =sigma0(K131,N131) -> 26.99569617 | P131: =rho(K131,N131,B131) -> 1027.567185 | Q131: =Sound_Speed(K131,N131,B131) -> 1503.501147
B132: 130 | C132: 35.79 | E132: 13.0856 | F132: =IF(C132 ="",SP_from_C(A132,L132,B132),C132) -> 35.79 | G132: 35.95876519 | H132: =LookUp_atlas("deltaSA_ref",B132,$B$1,$B$2) -> 0.0006101282348 | I132: =LookUp_atlas("SAAR_ref",B132,$B$1,$B$2) -> 1.520251472e-05 | J132: =IF(is_Baltic($B$1,$B$2)=1,"Baltic",G132*I132) -> 0.0005466636569 | K132: =IF(is_Baltic($B$1,$B$2)=1,SA_Baltic(F132),G132+J132) -> 35.95931185 | L132: 13.08246021 | M132: =pt0_from_t(K132,L132,B132) -> 13.06441521 | N132: =CT_from_pt(K132,M132) -> 13.03562233 | O132: =sigma0(K132,N132) -> 26.99542166 | P132: =rho(K132,N132,B132) -> 1027.571336 | Q132: =Sound_Speed(K132,N132,B132) -> 1503.515553
B133: 131 | C133: 35.7873 | E133: 13.0785 | F133: =IF(C133 ="",SP_from_C(A133,L133,B133),C133) -> 35.7873 | G133: 35.95605246 | H133: =LookUp_atlas("deltaSA_ref",B133,$B$1,$B$2) -> 0.0006122907981 | I133: =LookUp_atlas("SAAR_ref",B133,$B$1,$B$2) -> 1.532683473e-05 | J133: =IF(is_Baltic($B$1,$B$2)=1,"Baltic",G133*I133) -> 0.0005510924734 | K133: =IF(is_Baltic($B$1,$B$2)=1,SA_Baltic(F133),G133+J133) -> 35.95660355 | L133: 13.07536191 | M133: =pt0_from_t(K133,L133,B133) -> 13.05718439 | N133: =CT_from_pt(K133,M133) -> 13.02846013 | O133: =sigma0(K133,N133) -> 26.9948005 | P133: =rho(K133,N133,B133) -> 1027.575159 | Q133: =Sound_Speed(K133,N133,B133) -> 1503.505179
B134: 132 | C134: 35.786 | E134: 13.0656 | F134: =IF(C134 ="",SP_from_C(A134,L134,B134),C134) -> 35.786 | G134: 35.95474633 | H134: =LookUp_atlas("deltaSA_ref",B134,$B$1,$B$2) -> 0.0006144533613 | I134: =LookUp_atlas("SAAR_ref",B134,$B$1,$B$2) -> 1.545115474e-05 | J134: =IF(is_Baltic($B$1,$B$2)=1,"Baltic",G134*I134) -> 0.0005555423491 | K134: =IF(is_Baltic($B$1,$B$2)=1,SA_Baltic(F134),G134+J134) -> 35.95530187 | L134: =IF(D134 ="",E134/1.00024,D134) -> 13.06246501 | M134: =pt0_from_t(K134,L134,B134) -> 13.04416016 | N134: =CT_from_pt(K134,M134) -> 13.01547867 | O134: =sigma0(K134,N134) -> 26.99643778 | P134: =rho(K134,N134,B134) -> 1027.581255 | Q134: =Sound_Speed(K134,N134,B134) -> 1503.477261
B135: 133 | C135: 35.7881 | E135: 13.0567 | F135: =IF(C135 ="",SP_from_C(A135,L135,B135),C135) -> 35.7881 | G135: 35.95685623 | H135: =LookUp_atlas("deltaSA_ref",B135,$B$1,$B$2) -> 0.0006166159246 | I135: =LookUp_atlas("SAAR_ref",B135,$B$1,$B$2) -> 1.557547475e-05 | J135: =IF(is_Baltic($B$1,$B$2)=1,"Baltic",G135*I135) -> 0.0005600451063 | K135: =IF(is_Baltic($B$1,$B$2)=1,SA_Baltic(F135),G135+J135) -> 35.95741627 | L135: 13.05356714 | M135: =pt0_from_t(K135,L135,B135) -> 13.03513084 | N135: =CT_from_pt(K135,M135) -> 13.00641094 | O135: =sigma0(K135,N135) -> 26.99989794 | P135: =rho(K135,N135,B135) -> 1027.589161 | Q135: =Sound_Speed(K135,N135,B135) -> 1503.466607
B136: 134 | C136: 35.7882 | E136: 13.0541 | F136: =IF(C136 ="",SP_from_C(A136,L136,B136),C136) -> 35.7882 | G136: 35.9569567 | H136: =LookUp_atlas("deltaSA_ref",B136,$B$1,$B$2) -> 0.0006187784879 | I136: =LookUp_atlas("SAAR_ref",B136,$B$1,$B$2) -> 1.569979476e-05 | J136: =IF(is_Baltic($B$1,$B$2)=1,"Baltic",G136*I136) -> 0.0005645168404 | K136: =IF(is_Baltic($B$1,$B$2)=1,SA_Baltic(F136),G136+J136) -> 35.95752122 | L136: 13.05096777 | M136: =pt0_from_t(K136,L136,B136) -> 13.03239458 | N136: =CT_from_pt(K136,M136) -> 13.00367513 | O136: =sigma0(K136,N136) -> 27.00053324 | P136: =rho(K136,N136,B136) -> 1027.594227 | Q136: =Sound_Speed(K136,N136,B136) -> 1503.474439
B137: 135 | C137: 35.7865 | E137: 13.0526 | F137: =IF(C137 ="",SP_from_C(A137,L137,B137),C137) -> 35.7865 | G137: =(35.16504/35)*F137 -> 35.95524868 | H137: =LookUp_atlas("deltaSA_ref",B137,$B$1,$B$2) -> 0.0006209410511 | I137: =LookUp_atlas("SAAR_ref",B137,$B$1,$B$2) -> 1.582411477e-05 | J137: =IF(is_Baltic($B$1,$B$2)=1,"Baltic",G137*I137) -> 0.0005689599819 | K137: =IF(is_Baltic($B$1,$B$2)=1,SA_Baltic(F137),G137+J137) -> 35.95581764 | L137: 13.04946813 | M137: =pt0_from_t(K137,L137,B137) -> 13.03075736 | N137: =CT_from_pt(K137,M137) -> 13.00207802 | O137: =sigma0(K137,N137) -> 26.9995514 | P137: =rho(K137,N137,B137) -> 1027.597675 | Q137: =Sound_Speed(K137,N137,B137) -> 1503.483777
B138: 136 | C138: 35.7849 | E138: 13.0471 | F138: =IF(C138 ="",SP_from_C(A138,L138,B138),C138) -> 35.7849 | G138: 35.95364114 | H138: =LookUp_atlas("deltaSA_ref",B138,$B$1,$B$2) -> 0.0006231036144 | I138: =LookUp_atlas("SAAR_ref",B138,$B$1,$B$2) -> 1.594843478e-05 | J138: =IF(is_Baltic($B$1,$B$2)=1,"Baltic",G138*I138) -> 0.000573404301 | K138: =IF(is_Baltic($B$1,$B$2)=1,SA_Baltic(F138),G138+J138) -> 35.95421454 | L138: 13.04396945 | M138: =pt0_from_t(K138,L138,B138) -> 13.02512489 | N138: =CT_from_pt(K138,M138) -> 12.9964875 | O138: =sigma0(K138,N138) -> 26.99945618 | P138: =rho(K138,N138,B138) -> 1027.60202 | Q138: =Sound_Speed(K138,N138,B138) -> 1503.479986
B139: 137 | C139: 35.7852 | E139: 13.0439 | F139: =IF(C139 ="",SP_from_C(A139,L139,B139),C139) -> 35.7852 | G139: 35.95394255 | H139: =LookUp_atlas("deltaSA_ref",B139,$B$1,$B$2) -> 0.0006252661777 | I139: =LookUp_atlas("SAAR_ref",B139,$B$1,$B$2) -> 1.60727548e-05 | J139: =IF(is_Baltic($B$1,$B$2)=1,"Baltic",G139*I139) -> 0.0005778789026 | K139: =IF(is_Baltic($B$1,$B$2)=1,SA_Baltic(F139),G139+J139) -> 35.95452043 | L139: 13.04077022 | M139: =pt0_from_t(K139,L139,B139) -> 13.0217894 | N139: =CT_from_pt(K139,M139) -> 12.99314855 | O139: =sigma0(K139,N139) -> 27.00036749 | P139: =rho(K139,N139,B139) -> 1027.607364 | Q139: =Sound_Speed(K139,N139,B139) -> 1503.486065
B140: 138 | C140: 35.7838 | E140: 13.0414 | F140: =IF(C140 ="",SP_from_C(A140,L140,B140),C140) -> 35.7838 | G140: 35.95253595 | H140: =LookUp_atlas("deltaSA_ref",B140,$B$1,$B$2) -> 0.0006274287409 | I140: =LookUp_atlas("SAAR_ref",B140,$B$1,$B$2) -> 1.619707481e-05 | J140: =IF(is_Baltic($B$1,$B$2)=1,"Baltic",G140*I140) -> 0.0005823259143 | K140: =IF(is_Baltic($B$1,$B$2)=1,SA_Baltic(F140),G140+J140) -> 35.95311828 | L140: 13.03827082 | M140: =pt0_from_t(K140,L140,B140) -> 13.01915341 | N140: =CT_from_pt(K140,M140) -> 12.99054688 | O140: =sigma0(K140,N140) -> 26.99982006 | P140: =rho(K140,N140,B140) -> 1027.611249 | Q140: =Sound_Speed(K140,N140,B140) -> 1503.492445
B141: 139 | C141: 35.7815 | E141: 13.0367 | F141: =IF(C141 ="",SP_from_C(A141,L141,B141),C141) -> 35.7815 | G141: 35.95022511 | H141: =LookUp_atlas("deltaSA_ref",B141,$B$1,$B$2) -> 0.0006295913042 | I141: =LookUp_atlas("SAAR_ref",B141,$B$1,$B$2) -> 1.632139482e-05 | J141: =IF(is_Baltic($B$1,$B$2)=1,"Baltic",G141*I141) -> 0.0005867578178 | K141: =IF(is_Baltic($B$1,$B$2)=1,SA_Baltic(F141),G141+J141) -> 35.95081187 | L141: 13.03357194 | M141: =pt0_from_t(K141,L141,B141) -> 13.01432027 | N141: =CT_from_pt(K141,M141) -> 12.98577068 | O141: =sigma0(K141,N141) -> 26.99902006 | P141: =rho(K141,N141,B141) -> 1027.614888 | Q141: =Sound_Speed(K141,N141,B141) -> 1503.490468
B142: 140 | C142: 35.7815 | E142: 13.0285 | F142: =IF(C142 ="",SP_from_C(A142,L142,B142),C142) -> 35.7815 | G142: 35.95022511 | H142: =LookUp_atlas("deltaSA_ref",B142,$B$1,$B$2) -> 0.0006317538675 | I142: =LookUp_atlas("SAAR_ref",B142,$B$1,$B$2) -> 1.644571483e-05 | J142: =IF(is_Baltic($B$1,$B$2)=1,"Baltic",G142*I142) -> 0.0005912271502 | K142: =IF(is_Baltic($B$1,$B$2)=1,SA_Baltic(F142),G142+J142) -> 35.95081633 | L142: 13.02537391 | M142: =pt0_from_t(K142,L142,B142) -> 13.00599104 | N142: =CT_from_pt(K142,M142) -> 12.9774499 | O142: =sigma0(K142,N142) -> 27.00070908 | P142: =rho(K142,N142,B142) -> 1027.621023 | Q142: =Sound_Speed(K142,N142,B142) -> 1503.479619
B143: 141 | C143: 35.7828 | E143: 13.0178 | F143: =IF(C143 ="",SP_from_C(A143,L143,B143),C143) -> 35.7828 | G143: 35.95153124 | H143: =LookUp_atlas("deltaSA_ref",B143,$B$1,$B$2) -> 0.0006339164307 | I143: =LookUp_atlas("SAAR_ref",B143,$B$1,$B$2) -> 1.657003484e-05 | J143: =IF(is_Baltic($B$1,$B$2)=1,"Baltic",G143*I143) -> 0.0005957181252 | K143: =IF(is_Baltic($B$1,$B$2)=1,SA_Baltic(F143),G143+J143) -> 35.95212696 | L143: 13.01467648 | M143: =pt0_from_t(K143,L143,B143) -> 12.99516473 | N143: =CT_from_pt(K143,M143) -> 12.96660523 | O143: =sigma0(K143,N143) -> 27.00390964 | P143: =rho(K143,N143,B143) -> 1027.628676 | Q143: =Sound_Speed(K143,N143,B143) -> 1503.46202
B144: 142 | C144: 35.7779 | E144: 13.0147 | F144: =IF(C144 ="",SP_from_C(A144,L144,B144),C144) -> 35.7779 | G144: 35.94660813 | H144: =LookUp_atlas("deltaSA_ref",B144,$B$1,$B$2) -> 0.000636078994 | I144: =LookUp_atlas("SAAR_ref",B144,$B$1,$B$2) -> 1.669435485e-05 | J144: =IF(is_Baltic($B$1,$B$2)=1,"Baltic",G144*I144) -> 0.0006001054319 | K144: =IF(is_Baltic($B$1,$B$2)=1,SA_Baltic(F144),G144+J144) -> 35.94720824 | L144: 13.01157722 | M144: =pt0_from_t(K144,L144,B144) -> 12.99193035 | N144: =CT_from_pt(K144,M144) -> 12.96348486 | O144: =sigma0(K144,N144) -> 27.00077078 | P144: =rho(K144,N144,B144) -> 1027.629975 | Q144: =Sound_Speed(K144,N144,B144) -> 1503.462251
B145: 143 | C145: 35.7706 | E145: 13.0021 | F145: =IF(C145 ="",SP_from_C(A145,L145,B145),C145) -> 35.7706 | G145: 35.93927371 | H145: =LookUp_atlas("deltaSA_ref",B145,$B$1,$B$2) -> 0.0006382415573 | I145: =LookUp_atlas("SAAR_ref",B145,$B$1,$B$2) -> 1.681867486e-05 | J145: =IF(is_Baltic($B$1,$B$2)=1,"Baltic",G145*I145) -> 0.0006044509594 | K145: =IF(is_Baltic($B$1,$B$2)=1,SA_Baltic(F145),G145+J145) -> 35.93987816 | L145: 12.99898024 | M145: =pt0_from_t(K145,L145,B145) -> 12.97920822 | N145: =CT_from_pt(K145,M145) -> 12.9509406 | O145: =sigma0(K145,N145) -> 26.99768977 | P145: =rho(K145,N145,B145) -> 1027.631361 | Q145: =Sound_Speed(K145,N145,B145) -> 1503.428131
B146: 145 | C146: 35.7702 | E146: 12.9742 | F146: =IF(C146 ="",SP_from_C(A146,L146,B146),C146) -> 35.7702 | G146: 35.93887182 | H146: =LookUp_atlas("deltaSA_ref",B146,$B$1,$B$2) -> 0.0006425666838 | I146: =LookUp_atlas("SAAR_ref",B146,$B$1,$B$2) -> 1.706731489e-05 | J146: =IF(is_Baltic($B$1,$B$2)=1,"Baltic",G146*I146) -> 0.0006133800421 | K146: =IF(is_Baltic($B$1,$B$2)=1,SA_Baltic(F146),G146+J146) -> 35.9394852 | L146: 12.97108694 | M146: =pt0_from_t(K146,L146,B146) -> 12.95106522 | N146: =CT_from_pt(K146,M146) -> 12.92283514 | O146: =sigma0(K146,N146) -> 27.00306928 | P146: =rho(K146,N146,B146) -> 1027.645669 | Q146: =Sound_Speed(K146,N146,B146) -> 1503.367738
B147: 146 | C147: 35.769 | E147: 12.9693 | F147: =IF(C147 ="",SP_from_C(A147,L147,B147),C147) -> 35.769 | G147: 35.93766616 | H147: =LookUp_atlas("deltaSA_ref",B147,$B$1,$B$2) -> 0.0006447292471 | I147: =LookUp_atlas("SAAR_ref",B147,$B$1,$B$2) -> 1.71916349e-05 | J147: =IF(is_Baltic($B$1,$B$2)=1,"Baltic",G147*I147) -> 0.0006178272358 | K147: =IF(is_Baltic($B$1,$B$2)=1,SA_Baltic(F147),G147+J147) -> 35.93828399 | L147: 12.96618811 | M147: =pt0_from_t(K147,L147,B147) -> 12.9460328 | N147: =CT_from_pt(K147,M147) -> 12.91783481 | O147: =sigma0(K147,N147) -> 27.00315824 | P147: =rho(K147,N147,B147) -> 1027.650198 | Q147: =Sound_Speed(K147,N147,B147) -> 1503.366372
B148: 147 | C148: 35.7682 | E148: 12.9739 | F148: =IF(C148 ="",SP_from_C(A148,L148,B148),C148) -> 35.7682 | G148: 35.93686239 | H148: =LookUp_atlas("deltaSA_ref",B148,$B$1,$B$2) -> 0.0006468918103 | I148: =LookUp_atlas("SAAR_ref",B148,$B$1,$B$2) -> 1.731595491e-05 | J148: =IF(is_Baltic($B$1,$B$2)=1,"Baltic",G148*I148) -> 0.0006222810888 | K148: =IF(is_Baltic($B$1,$B$2)=1,SA_Baltic(F148),G148+J148) -> 35.93748467 | L148: 12.97078701 | M148: =pt0_from_t(K148,L148,B148) -> 12.95048832 | N148: =CT_from_pt(K148,M148) -> 12.92230373 | O148: =sigma0(K148,N148) -> 27.0016429 | P148: =rho(K148,N148,B148) -> 1027.653095 | Q148: =Sound_Speed(K148,N148,B148) -> 1503.397013
B149: 148 | C149: 35.7678 | E149: 12.9752 | F149: =IF(C149 ="",SP_from_C(A149,L149,B149),C149) -> 35.7678 | G149: 35.93646051 | H149: =LookUp_atlas("deltaSA_ref",B149,$B$1,$B$2) -> 0.0006490543736 | I149: =LookUp_atlas("SAAR_ref",B149,$B$1,$B$2) -> 1.744027492e-05 | J149: =IF(is_Baltic($B$1,$B$2)=1,"Baltic",G149*I149) -> 0.000626741751 | K149: =IF(is_Baltic($B$1,$B$2)=1,SA_Baltic(F149),G149+J149) -> 35.93708725 | L149: 12.9720867 | M149: =pt0_from_t(K149,L149,B149) -> 12.9516479 | N149: =CT_from_pt(K149,M149) -> 12.92347105 | O149: =sigma0(K149,N149) -> 27.00110243 | P149: =rho(K149,N149,B149) -> 1027.656976 | Q149: =Sound_Speed(K149,N149,B149) -> 1503.417176
B150: 149 | C150: 35.7675 | E150: 12.9717 | F150: =IF(C150 ="",SP_from_C(A150,L150,B150),C150) -> 35.7675 | G150: 35.93615909 | H150: =LookUp_atlas("deltaSA_ref",B150,$B$1,$B$2) -> 0.0006512169369 | I150: =LookUp_atlas("SAAR_ref",B150,$B$1,$B$2) -> 1.756459493e-05 | J150: =IF(is_Baltic($B$1,$B$2)=1,"Baltic",G150*I150) -> 0.0006312040779 | K150: =IF(is_Baltic($B$1,$B$2)=1,SA_Baltic(F150),G150+J150) -> 35.9367903 | L150: 12.96858754 | M150: =pt0_from_t(K150,L150,B150) -> 12.94801358 | N150: =CT_from_pt(K150,M150) -> 12.91984709 | O150: =sigma0(K150,N150) -> 27.0016067 | P150: =rho(K150,N150,B150) -> 1027.661916 | Q150: =Sound_Speed(K150,N150,B150) -> 1503.421525
B151: 150 | C151: 35.7704 | E151: 12.9656 | F151: =IF(C151 ="",SP_from_C(A151,L151,B151),C151) -> 35.7704 | G151: 35.93907277 | H151: =LookUp_atlas("deltaSA_ref",B151,$B$1,$B$2) -> 0.0006533795002 | I151: =LookUp_atlas("SAAR_ref",B151,$B$1,$B$2) -> 1.768891495e-05 | J151: =IF(is_Baltic($B$1,$B$2)=1,"Baltic",G151*I151) -> 0.0006357232014 | K151: =IF(is_Baltic($B$1,$B$2)=1,SA_Baltic(F151),G151+J151) -> 35.93970849 | L151: 12.962489 | M151: =pt0_from_t(K151,L151,B151) -> 12.94178202 | N151: =CT_from_pt(K151,M151) -> 12.91355641 | O151: =sigma0(K151,N151) -> 27.00511426 | P151: =rho(K151,N151,B151) -> 1027.669863 | Q151: =Sound_Speed(K151,N151,B151) -> 1503.421042
B152: 151 | C152: 35.7679 | E152: 12.9634 | F152: =IF(C152 ="",SP_from_C(A152,L152,B152),C152) -> 35.7679 | G152: 35.93656098 | H152: =LookUp_atlas("deltaSA_ref",B152,$B$1,$B$2) -> 0.0006555420634 | I152: =LookUp_atlas("SAAR_ref",B152,$B$1,$B$2) -> 1.781323496e-05 | J152: =IF(is_Baltic($B$1,$B$2)=1,"Baltic",G152*I152) -> 0.0006401464042 | K152: =IF(is_Baltic($B$1,$B$2)=1,SA_Baltic(F152),G152+J152) -> 35.93720112 | L152: 12.96028953 | M152: =pt0_from_t(K152,L152,B152) -> 12.93944654 | N152: =CT_from_pt(K152,M152) -> 12.91127957 | O152: =sigma0(K152,N152) -> 27.00365157 | P152: =rho(K152,N152,B152) -> 1027.672834 | Q152: =Sound_Speed(K152,N152,B152) -> 1503.427093
B153: 152 | C153: 35.7664 | E153: 12.9645 | F153: =IF(C153 ="",SP_from_C(A153,L153,B153),C153) -> 35.7664 | G153: 35.9350539 | H153: =LookUp_atlas("deltaSA_ref",B153,$B$1,$B$2) -> 0.0006577017307 | I153: =LookUp_atlas("SAAR_ref",B153,$B$1,$B$2) -> 1.788059591e-05 | J153: =IF(is_Baltic($B$1,$B$2)=1,"Baltic",G153*I153) -> 0.0006425401778 | K153: =IF(is_Baltic($B$1,$B$2)=1,SA_Baltic(F153),G153+J153) -> 35.93569644 | L153: 12.96138927 | M153: =pt0_from_t(K153,L153,B153) -> 12.94040659 | N153: =CT_from_pt(K153,M153) -> 12.9122724 | O153: =sigma0(K153,N153) -> 27.00229752 | P153: =rho(K153,N153,B153) -> 1027.675903 | Q153: =Sound_Speed(K153,N153,B153) -> 1503.445285
B154: 153 | C154: 35.7652 | E154: 12.9642 | F154: =IF(C154 ="",SP_from_C(A154,L154,B154),C154) -> 35.7652 | G154: 35.93384825 | H154: =LookUp_atlas("deltaSA_ref",B154,$B$1,$B$2) -> 0.0006598613979 | I154: =LookUp_atlas("SAAR_ref",B154,$B$1,$B$2) -> 1.794795686e-05 | J154: =IF(is_Baltic($B$1,$B$2)=1,"Baltic",G154*I154) -> 0.000644939158 | K154: =IF(is_Baltic($B$1,$B$2)=1,SA_Baltic(F154),G154+J154) -> 35.93449319 | L154: 12.96108934 | M154: =pt0_from_t(K154,L154,B154) -> 12.9399684 | N154: =CT_from_pt(K154,M154) -> 12.91186165 | O154: =sigma0(K154,N154) -> 27.00145793 | P154: =rho(K154,N154,B154) -> 1027.67949 | Q154: =Sound_Speed(K154,N154,B154) -> 1503.459185
B155: 155 | C155: 35.7646 | E155: 12.9612 | F155: =IF(C155 ="",SP_from_C(A155,L155,B155),C155) -> 35.7646 | G155: 35.93324542 | H155: =LookUp_atlas("deltaSA_ref",B155,$B$1,$B$2) -> 0.0006641807323 | I155: =LookUp_atlas("SAAR_ref",B155,$B$1,$B$2) -> 1.808267876e-05 | J155: =IF(is_Baltic($B$1,$B$2)=1,"Baltic",G155*I155) -> 0.0006497693336 | K155: =IF(is_Baltic($B$1,$B$2)=1,SA_Baltic(F155),G155+J155) -> 35.93389519 | L155: 12.95809006 | M155: =pt0_from_t(K155,L155,B155) -> 12.93669481 | N155: =CT_from_pt(K155,M155) -> 12.9086048 | O155: =sigma0(K155,N155) -> 27.00165686 | P155: =rho(K155,N155,B155) -> 1027.688547 | Q155: =Sound_Speed(K155,N155,B155) -> 1503.481154
B156: 156 | C156: 35.7629 | E156: 12.9545 | F156: =IF(C156 ="",SP_from_C(A156,L156,B156),C156) -> 35.7629 | G156: 35.9315374 | H156: =LookUp_atlas("deltaSA_ref",B156,$B$1,$B$2) -> 0.0006663403996 | I156: =LookUp_atlas("SAAR_ref",B156,$B$1,$B$2) -> 1.815003971e-05 | J156: =IF(is_Baltic($B$1,$B$2)=1,"Baltic",G156*I156) -> 0.0006521588306 | K156: =IF(is_Baltic($B$1,$B$2)=1,SA_Baltic(F156),G156+J156) -> 35.93218956 | L156: 12.95139167 | M156: =pt0_from_t(K156,L156,B156) -> 12.92986523 | N156: =CT_from_pt(K156,M156) -> 12.90182041 | O156: =sigma0(K156,N156) -> 27.00171827 | P156: =rho(K156,N156,B156) -> 1027.693055 | Q156: =Sound_Speed(K156,N156,B156) -> 1503.473208
B157: 157 | C157: 35.7637 | E157: 12.9515 | F157: =IF(C157 ="",SP_from_C(A157,L157,B157),C157) -> 35.7637 | G157: 35.93234117 | H157: =LookUp_atlas("deltaSA_ref",B157,$B$1,$B$2) -> 0.0006685000668 | I157: =LookUp_atlas("SAAR_ref",B157,$B$1,$B$2) -> 1.821740066e-05 | J157: =IF(is_Baltic($B$1,$B$2)=1,"Baltic",G157*I157) -> 0.0006545938558 | K157: =IF(is_Baltic($B$1,$B$2)=1,SA_Baltic(F157),G157+J157) -> 35.93299577 | L157: 12.94839239 | M157: =pt0_from_t(K157,L157,B157) -> 12.92673028 | N157: =CT_from_pt(K157,M157) -> 12.89867057 | O157: =sigma0(K157,N157) -> 27.0029719 | P157: =rho(K157,N157,B157) -> 1027.698741 | Q157: =Sound_Speed(K157,N157,B157) -> 1503.480516
B158: 158 | C158: 35.7705 | E158: 12.9526 | F158: =IF(C158 ="",SP_from_C(A158,L158,B158),C158) -> 35.7705 | G158: 35.93917324 | H158: =LookUp_atlas("deltaSA_ref",B158,$B$1,$B$2) -> 0.000670659734 | I158: =LookUp_atlas("SAAR_ref",B158,$B$1,$B$2) -> 1.828476161e-05 | J158: =IF(is_Baltic($B$1,$B$2)=1,"Baltic",G158*I158) -> 0.0006571392151 | K158: =IF(is_Baltic($B$1,$B$2)=1,SA_Baltic(F158),G158+J158) -> 35.93983038 | L158: 12.94949212 | M158: =pt0_from_t(K158,L158,B158) -> 12.92768862 | N158: =CT_from_pt(K158,M158) -> 12.89947473 | O158: =sigma0(K158,N158) -> 27.00804986 | P158: =rho(K158,N158,B158) -> 1027.708233 | Q158: =Sound_Speed(K158,N158,B158) -> 1503.508563
B159: 159 | C159: 35.7814 | E159: 12.9553 | F159: =IF(C159 ="",SP_from_C(A159,L159,B159),C159) -> 35.7814 | G159: 35.95012464 | H159: =LookUp_atlas("deltaSA_ref",B159,$B$1,$B$2) -> 0.0006728194013 | I159: =LookUp_atlas("SAAR_ref",B159,$B$1,$B$2) -> 1.835212256e-05 | J159: =IF(is_Baltic($B$1,$B$2)=1,"Baltic",G159*I159) -> 0.0006597610934 | K159: =IF(is_Baltic($B$1,$B$2)=1,SA_Baltic(F159),G159+J159) -> 35.9507844 | L159: 12.95219147 | M159: =pt0_from_t(K159,L159,B159) -> 12.93024391 | N159: =CT_from_pt(K159,M159) -> 12.90178179 | O159: =sigma0(K159,N159) -> 27.0159829 | P159: =rho(K159,N159,B159) -> 1027.720569 | Q159: =Sound_Speed(K159,N159,B159) -> 1503.546791
B160: 160 | C160: 35.7775 | E160: 12.9453 | F160: =IF(C160 ="",SP_from_C(A160,L160,B160),C160) -> 35.7775 | G160: 35.94620625 | H160: =LookUp_atlas("deltaSA_ref",B160,$B$1,$B$2) -> 0.0006749790685 | I160: =LookUp_atlas("SAAR_ref",B160,$B$1,$B$2) -> 1.841948351e-05 | J160: =IF(is_Baltic($B$1,$B$2)=1,"Baltic",G160*I160) -> 0.0006621105532 | K160: =IF(is_Baltic($B$1,$B$2)=1,SA_Baltic(F160),G160+J160) -> 35.94686836 | L160: 12.94219387 | M160: =pt0_from_t(K160,L160,B160) -> 12.92011944 | N160: =CT_from_pt(K160,M160) -> 12.89175561 | O160: =sigma0(K160,N160) -> 27.01500328 | P160: =rho(K160,N160,B160) -> 1027.724049 | Q160: =Sound_Speed(K160,N160,B160) -> 1503.525269
B161: 161 | C161: 35.7706 | E161: 12.9348 | F161: =IF(C161 ="",SP_from_C(A161,L161,B161),C161) -> 35.7706 | G161: 35.93927371 | H161: =LookUp_atlas("deltaSA_ref",B161,$B$1,$B$2) -> 0.0006771387357 | I161: =LookUp_atlas("SAAR_ref",B161,$B$1,$B$2) -> 1.848684446e-05 | J161: =IF(is_Baltic($B$1,$B$2)=1,"Baltic",G161*I161) -> 0.0006644037631 | K161: =IF(is_Baltic($B$1,$B$2)=1,SA_Baltic(F161),G161+J161) -> 35.93993811 | L161: 12.93169639 | M161: =pt0_from_t(K161,L161,B161) -> 12.90949642 | N161: =CT_from_pt(K161,M161) -> 12.8812988 | O161: =sigma0(K161,N161) -> 27.01179816 | P161: =rho(K161,N161,B161) -> 1027.725309 | Q161: =Sound_Speed(K161,N161,B161) -> 1503.498515
B162: 162 | C162: 35.7657 | E162: 12.9231 | F162: =IF(C162 ="",SP_from_C(A162,L162,B162),C162) -> 35.7657 | G162: 35.9343506 | H162: =LookUp_atlas("deltaSA_ref",B162,$B$1,$B$2) -> 0.000679298403 | I162: =LookUp_atlas("SAAR_ref",B162,$B$1,$B$2) -> 1.855420541e-05 | J162: =IF(is_Baltic($B$1,$B$2)=1,"Baltic",G162*I162) -> 0.0006667333224 | K162: =IF(is_Baltic($B$1,$B$2)=1,SA_Baltic(F162),G162+J162) -> 35.93501734 | L162: 12.9199992 | M162: =pt0_from_t(K162,L162,B162) -> 12.89767478 | N162: =CT_from_pt(K162,M162) -> 12.86959946 | O162: =sigma0(K162,N162) -> 27.01038282 | P162: =rho(K162,N162,B162) -> 1027.72836 | Q162: =Sound_Speed(K162,N162,B162) -> 1503.470136
B163: 163 | C163: 35.7634 | E163: 12.9103 | F163: =IF(C163 ="",SP_from_C(A163,L163,B163),C163) -> 35.7634 | G163: 35.93203976 | H163: =LookUp_atlas("deltaSA_ref",B163,$B$1,$B$2) -> 0.0006814580702 | I163: =LookUp_atlas("SAAR_ref",B163,$B$1,$B$2) -> 1.862156636e-05 | J163: =IF(is_Baltic($B$1,$B$2)=1,"Baltic",G163*I163) -> 0.0006691108629 | K163: =IF(is_Baltic($B$1,$B$2)=1,SA_Baltic(F163),G163+J163) -> 35.93270887 | L163: 12.90720227 | M163: =pt0_from_t(K163,L163,B163) -> 12.88475427 | N163: =CT_from_pt(K163,M163) -> 12.85674382 | O163: =sigma0(K163,N163) -> 27.01120185 | P163: =rho(K163,N163,B163) -> 1027.733647 | Q163: =Sound_Speed(K163,N163,B163) -> 1503.441174
B164: 164 | C164: 35.7588 | E164: 12.8872 | F164: =IF(C164 ="",SP_from_C(A164,L164,B164),C164) -> 35.7588 | G164: 35.92741807 | H164: =LookUp_atlas("deltaSA_ref",B164,$B$1,$B$2) -> 0.0006836177374 | I164: =LookUp_atlas("SAAR_ref",B164,$B$1,$B$2) -> 1.868892731e-05 | J164: =IF(is_Baltic($B$1,$B$2)=1,"Baltic",G164*I164) -> 0.0006714449048 | K164: =IF(is_Baltic($B$1,$B$2)=1,SA_Baltic(F164),G164+J164) -> 35.92808951 | L164: 12.88410781 | M164: =pt0_from_t(K164,L164,B164) -> 12.8615487 | N164: =CT_from_pt(K164,M164) -> 12.8336652 | O164: =sigma0(K164,N164) -> 27.01230348 | P164: =rho(K164,N164,B164) -> 1027.739253 | Q164: =Sound_Speed(K164,N164,B164) -> 1503.375201
B165: 165 | C165: 35.7589 | E165: 12.8708 | F165: =IF(C165 ="",SP_from_C(A165,L165,B165),C165) -> 35.7589 | G165: 35.92751854 | H165: =LookUp_atlas("deltaSA_ref",B165,$B$1,$B$2) -> 0.0006857774047 | I165: =LookUp_atlas("SAAR_ref",B165,$B$1,$B$2) -> 1.875628826e-05 | J165: =IF(is_Baltic($B$1,$B$2)=1,"Baltic",G165*I165) -> 0.0006738668943 | K165: =IF(is_Baltic($B$1,$B$2)=1,SA_Baltic(F165),G165+J165) -> 35.92819241 | L165: 12.86771175 | M165: =pt0_from_t(K165,L165,B165) -> 12.84503311 | N165: =CT_from_pt(K165,M165) -> 12.81716421 | O165: =sigma0(K165,N165) -> 27.01569955 | P165: =rho(K165,N165,B165) -> 1027.747127 | Q165: =Sound_Speed(K165,N165,B165) -> 1503.337065
B166: 166 | C166: 35.757 | E166: 12.8654 | F166: =IF(C166 ="",SP_from_C(A166,L166,B166),C166) -> 35.757 | G166: 35.92560958 | H166: =LookUp_atlas("deltaSA_ref",B166,$B$1,$B$2) -> 0.0006879370719 | I166: =LookUp_atlas("SAAR_ref",B166,$B$1,$B$2) -> 1.882364921e-05 | J166: =IF(is_Baltic($B$1,$B$2)=1,"Baltic",G166*I166) -> 0.0006762510725 | K166: =IF(is_Baltic($B$1,$B$2)=1,SA_Baltic(F166),G166+J166) -> 35.92628583 | L166: 12.86231304 | M166: =pt0_from_t(K166,L166,B166) -> 12.83950279 | N166: =CT_from_pt(K166,M166) -> 12.81168207 | O166: =sigma0(K166,N166) -> 27.01533884 | P166: =rho(K166,N166,B166) -> 1027.751211 | Q166: =Sound_Speed(K166,N166,B166) -> 1503.333153
B167: 167 | C167: 35.7557 | E167: 12.8635 | F167: =IF(C167 ="",SP_from_C(A167,L167,B167),C167) -> 35.7557 | G167: 35.92430345 | H167: =LookUp_atlas("deltaSA_ref",B167,$B$1,$B$2) -> 0.0006900967391 | I167: =LookUp_atlas("SAAR_ref",B167,$B$1,$B$2) -> 1.889101016e-05 | J167: =IF(is_Baltic($B$1,$B$2)=1,"Baltic",G167*I167) -> 0.0006786463816 | K167: =IF(is_Baltic($B$1,$B$2)=1,SA_Baltic(F167),G167+J167) -> 35.9249821 | L167: 12.8604135 | M167: =pt0_from_t(K167,L167,B167) -> 12.83746747 | N167: =CT_from_pt(K167,M167) -> 12.80967791 | O167: =sigma0(K167,N167) -> 27.01474156 | P167: =rho(K167,N167,B167) -> 1027.755047 | Q167: =Sound_Speed(K167,N167,B167) -> 1503.341604
B168: 168 | C168: 35.7542 | E168: 12.8593 | F168: =IF(C168 ="",SP_from_C(A168,L168,B168),C168) -> 35.7542 | G168: 35.92279638 | H168: =LookUp_atlas("deltaSA_ref",B168,$B$1,$B$2) -> 0.0006922564064 | I168: =LookUp_atlas("SAAR_ref",B168,$B$1,$B$2) -> 1.895837111e-05 | J168: =IF(is_Baltic($B$1,$B$2)=1,"Baltic",G168*I168) -> 0.0006810377052 | K168: =IF(is_Baltic($B$1,$B$2)=1,SA_Baltic(F168),G168+J168) -> 35.92347741 | L168: 12.85621451 | M168: =pt0_from_t(K168,L168,B168) -> 12.83313548 | N168: =CT_from_pt(K168,M168) -> 12.80538388 | O168: =sigma0(K168,N168) -> 27.01445001 | P168: =rho(K168,N168,B168) -> 1027.759196 | Q168: =Sound_Speed(K168,N168,B168) -> 1503.342158
B169: 169 | C169: 35.7512 | E169: 12.8485 | F169: =IF(C169 ="",SP_from_C(A169,L169,B169),C169) -> 35.7512 | G169: 35.91978223 | H169: =LookUp_atlas("deltaSA_ref",B169,$B$1,$B$2) -> 0.0006944160736 | I169: =LookUp_atlas("SAAR_ref",B169,$B$1,$B$2) -> 1.902573206e-05 | J169: =IF(is_Baltic($B$1,$B$2)=1,"Baltic",G169*I169) -> 0.0006834001525 | K169: =IF(is_Baltic($B$1,$B$2)=1,SA_Baltic(F169),G169+J169) -> 35.92046563 | L169: 12.8454171 | M169: =pt0_from_t(K169,L169,B169) -> 12.82221324 | N169: =CT_from_pt(K169,M169) -> 12.79453989 | O169: =sigma0(K169,N169) -> 27.01431725 | P169: =rho(K169,N169,B169) -> 1027.763528 | Q169: =Sound_Speed(K169,N169,B169) -> 1503.31895
B170: 170 | C170: 35.7512 | E170: 12.8286 | F170: =IF(C170 ="",SP_from_C(A170,L170,B170),C170) -> 35.7512 | G170: 35.91978223 | H170: =LookUp_atlas("deltaSA_ref",B170,$B$1,$B$2) -> 0.0006965757408 | I170: =LookUp_atlas("SAAR_ref",B170,$B$1,$B$2) -> 1.909309302e-05 | J170: =IF(is_Baltic($B$1,$B$2)=1,"Baltic",G170*I170) -> 0.0006858197432 | K170: =IF(is_Baltic($B$1,$B$2)=1,SA_Baltic(F170),G170+J170) -> 35.92046805 | L170: 12.82552187 | M170: =pt0_from_t(K170,L170,B170) -> 12.80220348 | N170: =CT_from_pt(K170,M170) -> 12.77455047 | O170: =sigma0(K170,N170) -> 27.01832934 | P170: =rho(K170,N170,B170) -> 1027.772032 | Q170: =Sound_Speed(K170,N170,B170) -> 1503.268974
B171: 171 | C171: 35.7502 | E171: 12.8219 | F171: =IF(C171 ="",SP_from_C(A171,L171,B171),C171) -> 35.7502 | G171: 35.91877751 | H171: =LookUp_atlas("deltaSA_ref",B171,$B$1,$B$2) -> 0.0006987354081 | I171: =LookUp_atlas("SAAR_ref",B171,$B$1,$B$2) -> 1.916045397e-05 | J171: =IF(is_Baltic($B$1,$B$2)=1,"Baltic",G171*I171) -> 0.0006882200831 | K171: =IF(is_Baltic($B$1,$B$2)=1,SA_Baltic(F171),G171+J171) -> 35.91946573 | L171: 12.81882348 | M171: =pt0_from_t(K171,L171,B171) -> 12.79537527 | N171: =CT_from_pt(K171,M171) -> 12.76775154 | O171: =sigma0(K171,N171) -> 27.01892365 | P171: =rho(K171,N171,B171) -> 1027.777075 | Q171: =Sound_Speed(K171,N171,B171) -> 1503.261777
B172: 172 | C172: 35.7461 | E172: 12.8027 | F172: =IF(C172 ="",SP_from_C(A172,L172,B172),C172) -> 35.7461 | G172: 35.91465818 | H172: =LookUp_atlas("deltaSA_ref",B172,$B$1,$B$2) -> 0.0007008950753 | I172: =LookUp_atlas("SAAR_ref",B172,$B$1,$B$2) -> 1.922781492e-05 | J172: =IF(is_Baltic($B$1,$B$2)=1,"Baltic",G172*I172) -> 0.0006905604003 | K172: =IF(is_Baltic($B$1,$B$2)=1,SA_Baltic(F172),G172+J172) -> 35.91534874 | L172: 12.79962809 | M172: =pt0_from_t(K172,L172,B172) -> 12.77606588 | N172: =CT_from_pt(K172,M172) -> 12.74855335 | O172: =sigma0(K172,N172) -> 27.01961218 | P172: =rho(K172,N172,B172) -> 1027.782259 | Q172: =Sound_Speed(K172,N172,B172) -> 1503.209215
B173: 173 | C173: 35.7356 | E173: 12.7541 | F173: =IF(C173 ="",SP_from_C(A173,L173,B173),C173) -> 35.7356 | G173: 35.90410867 | H173: =LookUp_atlas("deltaSA_ref",B173,$B$1,$B$2) -> 0.0007030547425 | I173: =LookUp_atlas("SAAR_ref",B173,$B$1,$B$2) -> 1.929517587e-05 | J173: =IF(is_Baltic($B$1,$B$2)=1,"Baltic",G173*I173) -> 0.0006927760911 | K173: =IF(is_Baltic($B$1,$B$2)=1,SA_Baltic(F173),G173+J173) -> 35.90480145 | L173: 12.75103975 | M173: =pt0_from_t(K173,L173,B173) -> 12.72740083 | N173: =CT_from_pt(K173,M173) -> 12.70017171 | O173: =sigma0(K173,N173) -> 27.02119799 | P173: =rho(K173,N173,B173) -> 1027.788449 | Q173: =Sound_Speed(K173,N173,B173) -> 1503.050879
B174: 174 | C174: 35.7354 | E174: 12.7213 | F174: =IF(C174 ="",SP_from_C(A174,L174,B174),C174) -> 35.7354 | G174: 35.90390773 | H174: =LookUp_atlas("deltaSA_ref",B174,$B$1,$B$2) -> 0.0007052144098 | I174: =LookUp_atlas("SAAR_ref",B174,$B$1,$B$2) -> 1.936253682e-05 | J174: =IF(is_Baltic($B$1,$B$2)=1,"Baltic",G174*I174) -> 0.0006951907352 | K174: =IF(is_Baltic($B$1,$B$2)=1,SA_Baltic(F174),G174+J174) -> 35.90460292 | L174: 12.71824762 | M174: =pt0_from_t(K174,L174,B174) -> 12.69451113 | N174: =CT_from_pt(K174,M174) -> 12.6673198 | O174: =sigma0(K174,N174) -> 27.0276033 | P174: =rho(K174,N174,B174) -> 1027.799394 | Q174: =Sound_Speed(K174,N174,B174) -> 1502.957391
B175: 175 | C175: 35.7351 | E175: 12.7146 | F175: =IF(C175 ="",SP_from_C(A175,L175,B175),C175) -> 35.7351 | G175: 35.90360631 | H175: =LookUp_atlas("deltaSA_ref",B175,$B$1,$B$2) -> 0.000707374077 | I175: =LookUp_atlas("SAAR_ref",B175,$B$1,$B$2) -> 1.942989777e-05 | J175: =IF(is_Baltic($B$1,$B$2)=1,"Baltic",G175*I175) -> 0.0006976034001 | K175: =IF(is_Baltic($B$1,$B$2)=1,SA_Baltic(F175),G175+J175) -> 35.90430391 | L175: 12.71154923 | M175: =pt0_from_t(K175,L175,B175) -> 12.68768369 | N175: =CT_from_pt(K175,M175) -> 12.66050592 | O175: =sigma0(K175,N175) -> 27.02873271 | P175: =rho(K175,N175,B175) -> 1027.804975 | Q175: =Sound_Speed(K175,N175,B175) -> 1502.95096
B176: 176 | C176: 35.7321 | E176: 12.71 | F176: =IF(C176 ="",SP_from_C(A176,L176,B176),C176) -> 35.7321 | G176: 35.90059217 | H176: =LookUp_atlas("deltaSA_ref",B176,$B$1,$B$2) -> 0.0007095337442 | I176: =LookUp_atlas("SAAR_ref",B176,$B$1,$B$2) -> 1.949725872e-05 | J176: =IF(is_Baltic($B$1,$B$2)=1,"Baltic",G176*I176) -> 0.0006999631336 | K176: =IF(is_Baltic($B$1,$B$2)=1,SA_Baltic(F176),G176+J176) -> 35.90129213 | L176: 12.70695033 | M176: =pt0_from_t(K176,L176,B176) -> 12.68295387 | N176: =CT_from_pt(K176,M176) -> 12.65584745 | O176: =sigma0(K176,N176) -> 27.02735048 | P176: =rho(K176,N176,B176) -> 1027.808039 | Q176: =Sound_Speed(K176,N176,B176) -> 1502.948333
B177: 177 | C177: 35.7273 | E177: 12.6856 | F177: =IF(C177 ="",SP_from_C(A177,L177,B177),C177) -> 35.7273 | G177: 35.89576953 | H177: =LookUp_atlas("deltaSA_ref",B177,$B$1,$B$2) -> 0.0007114749774 | I177: =LookUp_atlas("SAAR_ref",B177,$B$1,$B$2) -> 1.95567414e-05 | J177: =IF(is_Baltic($B$1,$B$2)=1,"Baltic",G177*I177) -> 0.0007020042822 | K177: =IF(is_Baltic($B$1,$B$2)=1,SA_Baltic(F177),G177+J177) -> 35.89647154 | L177: 12.68255619 | M177: =pt0_from_t(K177,L177,B177) -> 12.6584538 | N177: =CT_from_pt(K177,M177) -> 12.63147866 | O177: =sigma0(K177,N177) -> 27.02850603 | P177: =rho(K177,N177,B177) -> 1027.813714 | Q177: =Sound_Speed(K177,N177,B177) -> 1502.877344
B178: 178 | C178: 35.7217 | E178: 12.6653 | F178: =IF(C178 ="",SP_from_C(A178,L178,B178),C178) -> 35.7217 | G178: 35.89014312 | H178: =LookUp_atlas("deltaSA_ref",B178,$B$1,$B$2) -> 0.0007134162106 | I178: =LookUp_atlas("SAAR_ref",B178,$B$1,$B$2) -> 1.961622409e-05 | J178: =IF(is_Baltic($B$1,$B$2)=1,"Baltic",G178*I178) -> 0.0007040290902 | K178: =IF(is_Baltic($B$1,$B$2)=1,SA_Baltic(F178),G178+J178) -> 35.89084715 | L178: 12.66226106 | M178: =pt0_from_t(K178,L178,B178) -> 12.63804818 | N178: =CT_from_pt(K178,M178) -> 12.61121767 | O178: =sigma0(K178,N178) -> 27.02822157 | P178: =rho(K178,N178,B178) -> 1027.817936 | Q178: =Sound_Speed(K178,N178,B178) -> 1502.819071
B179: 179 | C179: 35.7234 | E179: 12.6393 | F179: =IF(C179 ="",SP_from_C(A179,L179,B179),C179) -> 35.7234 | G179: 35.89185114 | H179: =LookUp_atlas("deltaSA_ref",B179,$B$1,$B$2) -> 0.0007153574439 | I179: =LookUp_atlas("SAAR_ref",B179,$B$1,$B$2) -> 1.967570678e-05 | J179: =IF(is_Baltic($B$1,$B$2)=1,"Baltic",G179*I179) -> 0.0007061975387 | K179: =IF(is_Baltic($B$1,$B$2)=1,SA_Baltic(F179),G179+J179) -> 35.89255734 | L179: 12.6362673 | M179: =pt0_from_t(K179,L179,B179) -> 12.61194965 | N179: =CT_from_pt(K179,M179) -> 12.5851079 | O179: =sigma0(K179,N179) -> 27.03472353 | P179: =rho(K179,N179,B179) -> 1027.828956 | Q179: =Sound_Speed(K179,N179,B179) -> 1502.750359
B180: 180 | C180: 35.7303 | E180: 12.6322 | F180: =IF(C180 ="",SP_from_C(A180,L180,B180),C180) -> 35.7303 | G180: 35.89878368 | H180: =LookUp_atlas("deltaSA_ref",B180,$B$1,$B$2) -> 0.0007172986771 | I180: =LookUp_atlas("SAAR_ref",B180,$B$1,$B$2) -> 1.973518946e-05 | J180: =IF(is_Baltic($B$1,$B$2)=1,"Baltic",G180*I180) -> 0.0007084692973 | K180: =IF(is_Baltic($B$1,$B$2)=1,SA_Baltic(F180),G180+J180) -> 35.89949215 | L180: 12.629169 | M180: =pt0_from_t(K180,L180,B180) -> 12.60472188 | N180: =CT_from_pt(K180,M180) -> 12.57773497 | O180: =sigma0(K180,N180) -> 27.04151021 | P180: =rho(K180,N180,B180) -> 1027.840187 | Q180: =Sound_Speed(K180,N180,B180) -> 1502.751107
B181: 181 | C181: 35.7247 | E181: 12.6042 | F181: =IF(C181 ="",SP_from_C(A181,L181,B181),C181) -> 35.7247 | G181: 35.89315727 | H181: =LookUp_atlas("deltaSA_ref",B181,$B$1,$B$2) -> 0.0007192399103 | I181: =LookUp_atlas("SAAR_ref",B181,$B$1,$B$2) -> 1.979467215e-05 | J181: =IF(is_Baltic($B$1,$B$2)=1,"Baltic",G181*I181) -> 0.0007104932805 | K181: =IF(is_Baltic($B$1,$B$2)=1,SA_Baltic(F181),G181+J181) -> 35.89386776 | L181: 12.60117572 | M181: =pt0_from_t(K181,L181,B181) -> 12.57662867 | N181: =CT_from_pt(K181,M181) -> 12.54979411 | O181: =sigma0(K181,N181) -> 27.04273784 | P181: =rho(K181,N181,B181) -> 1027.845951 | Q181: =Sound_Speed(K181,N181,B181) -> 1502.666924
B182: 182 | C182: 35.7169 | E182: 12.5783 | F182: =IF(C182 ="",SP_from_C(A182,L182,B182),C182) -> 35.7169 | G182: 35.88532049 | H182: =LookUp_atlas("deltaSA_ref",B182,$B$1,$B$2) -> 0.0007211811435 | I182: =LookUp_atlas("SAAR_ref",B182,$B$1,$B$2) -> 1.985415483e-05 | J182: =IF(is_Baltic($B$1,$B$2)=1,"Baltic",G182*I182) -> 0.0007124727093 | K182: =IF(is_Baltic($B$1,$B$2)=1,SA_Baltic(F182),G182+J182) -> 35.88603296 | L182: 12.57528193 | M182: =pt0_from_t(K182,L182,B182) -> 12.55063321 | N182: =CT_from_pt(K182,M182) -> 12.52399702 | O182: =sigma0(K182,N182) -> 27.04183589 | P182: =rho(K182,N182,B182) -> 1027.849582 | Q182: =Sound_Speed(K182,N182,B182) -> 1502.587094
B183: 183 | C183: 35.7167 | E183: 12.563 | F183: =IF(C183 ="",SP_from_C(A183,L183,B183),C183) -> 35.7167 | G183: 35.88511955 | H183: =LookUp_atlas("deltaSA_ref",B183,$B$1,$B$2) -> 0.0007231223767 | I183: =LookUp_atlas("SAAR_ref",B183,$B$1,$B$2) -> 1.991363752e-05 | J183: =IF(is_Baltic($B$1,$B$2)=1,"Baltic",G183*I183) -> 0.000714603263 | K183: =IF(is_Baltic($B$1,$B$2)=1,SA_Baltic(F183),G183+J183) -> 35.88583415 | L183: 12.5599856 | M183: =pt0_from_t(K183,L183,B183) -> 12.53522016 | N183: =CT_from_pt(K183,M183) -> 12.50860402 | O183: =sigma0(K183,N183) -> 27.04473037 | P183: =rho(K183,N183,B183) -> 1027.856962 | Q183: =Sound_Speed(K183,N183,B183) -> 1502.551833
B184: 184 | C184: 35.7095 | E184: 12.5507 | F184: =IF(C184 ="",SP_from_C(A184,L184,B184),C184) -> 35.7095 | G184: 35.8778856 | H184: =LookUp_atlas("deltaSA_ref",B184,$B$1,$B$2) -> 0.0007250636099 | I184: =LookUp_atlas("SAAR_ref",B184,$B$1,$B$2) -> 1.99731202e-05 | J184: =IF(is_Baltic($B$1,$B$2)=1,"Baltic",G184*I184) -> 0.0007165933217 | K184: =IF(is_Baltic($B$1,$B$2)=1,SA_Baltic(F184),G184+J184) -> 35.87860219 | L184: 12.54768855 | M184: =pt0_from_t(K184,L184,B184) -> 12.52280443 | N184: =CT_from_pt(K184,M184) -> 12.4963592 | O184: =sigma0(K184,N184) -> 27.04160071 | P184: =rho(K184,N184,B184) -> 1027.858316 | Q184: =Sound_Speed(K184,N184,B184) -> 1502.518284
B185: 185 | C185: 35.7012 | E185: 12.5281 | F185: =IF(C185 ="",SP_from_C(A185,L185,B185),C185) -> 35.7012 | G185: 35.86954646 | H185: =LookUp_atlas("deltaSA_ref",B185,$B$1,$B$2) -> 0.0007270048431 | I185: =LookUp_atlas("SAAR_ref",B185,$B$1,$B$2) -> 2.003260289e-05 | J185: =IF(is_Baltic($B$1,$B$2)=1,"Baltic",G185*I185) -> 0.0007185603801 | K185: =IF(is_Baltic($B$1,$B$2)=1,SA_Baltic(F185),G185+J185) -> 35.87026502 | L185: 12.52509398 | M185: =pt0_from_t(K185,L185,B185) -> 12.50010499 | N185: =CT_from_pt(K185,M185) -> 12.47386494 | O185: =sigma0(K185,N185) -> 27.03964552 | P185: =rho(K185,N185,B185) -> 1027.860885 | Q185: =Sound_Speed(K185,N185,B185) -> 1502.448813
B186: 186 | C186: 35.6983 | E186: 12.503 | F186: =IF(C186 ="",SP_from_C(A186,L186,B186),C186) -> 35.6983 | G186: 35.86663278 | H186: =LookUp_atlas("deltaSA_ref",B186,$B$1,$B$2) -> 0.0007289460764 | I186: =LookUp_atlas("SAAR_ref",B186,$B$1,$B$2) -> 2.009208558e-05 | J186: =IF(is_Baltic($B$1,$B$2)=1,"Baltic",G186*I186) -> 0.0007206354552 | K186: =IF(is_Baltic($B$1,$B$2)=1,SA_Baltic(F186),G186+J186) -> 35.86735342 | L186: 12.5 | M186: =pt0_from_t(K186,L186,B186) -> 12.47490841 | N186: =CT_from_pt(K186,M186) -> 12.44875723 | O186: =sigma0(K186,N186) -> 27.04236583 | P186: =rho(K186,N186,B186) -> 1027.868132 | Q186: =Sound_Speed(K186,N186,B186) -> 1502.377323
B187: 187 | C187: 35.7025 | E187: 12.4837 | F187: =IF(C187 ="",SP_from_C(A187,L187,B187),C187) -> 35.7025 | G187: 35.87085259 | H187: =LookUp_atlas("deltaSA_ref",B187,$B$1,$B$2) -> 0.0007308873096 | I187: =LookUp_atlas("SAAR_ref",B187,$B$1,$B$2) -> 2.015156826e-05 | J187: =IF(is_Baltic($B$1,$B$2)=1,"Baltic",G187*I187) -> 0.0007228539346 | K187: =IF(is_Baltic($B$1,$B$2)=1,SA_Baltic(F187),G187+J187) -> 35.87157544 | L187: 12.48070463 | M187: =pt0_from_t(K187,L187,B187) -> 12.45550143 | N187: =CT_from_pt(K187,M187) -> 12.42927777 | O187: =sigma0(K187,N187) -> 27.04944835 | P187: =rho(K187,N187,B187) -> 1027.879711 | Q187: =Sound_Speed(K187,N187,B187) -> 1502.333747
B188: 188 | C188: 35.7021 | E188: 12.4782 | F188: =IF(C188 ="",SP_from_C(A188,L188,B188),C188) -> 35.7021 | G188: 35.8704507 | H188: =LookUp_atlas("deltaSA_ref",B188,$B$1,$B$2) -> 0.0007328285428 | I188: =LookUp_atlas("SAAR_ref",B188,$B$1,$B$2) -> 2.021105095e-05 | J188: =IF(is_Baltic($B$1,$B$2)=1,"Baltic",G188*I188) -> 0.0007249795067 | K188: =IF(is_Baltic($B$1,$B$2)=1,SA_Baltic(F188),G188+J188) -> 35.87117568 | L188: 12.47520595 | M188: =pt0_from_t(K188,L188,B188) -> 12.44987434 | N188: =CT_from_pt(K188,M188) -> 12.42366509 | O188: =sigma0(K188,N188) -> 27.05024737 | P188: =rho(K188,N188,B188) -> 1027.884963 | Q188: =Sound_Speed(K188,N188,B188) -> 1502.331085
B189: 189 | C189: 35.6986 | E189: 12.4556 | F189: =IF(C189 ="",SP_from_C(A189,L189,B189),C189) -> 35.6986 | G189: 35.8669342 | H189: =LookUp_atlas("deltaSA_ref",B189,$B$1,$B$2) -> 0.000734769776 | I189: =LookUp_atlas("SAAR_ref",B189,$B$1,$B$2) -> 2.027053363e-05 | J189: =IF(is_Baltic($B$1,$B$2)=1,"Baltic",G189*I189) -> 0.000727041896 | K189: =IF(is_Baltic($B$1,$B$2)=1,SA_Baltic(F189),G189+J189) -> 35.86766124 | L189: 12.45261137 | M189: =pt0_from_t(K189,L189,B189) -> 12.42717487 | N189: =CT_from_pt(K189,M189) -> 12.40106512 | O189: =sigma0(K189,N189) -> 27.05199878 | P189: =rho(K189,N189,B189) -> 1027.891235 | Q189: =Sound_Speed(K189,N189,B189) -> 1502.267182
B190: 190 | C190: 35.697 | E190: 12.4363 | F190: =IF(C190 ="",SP_from_C(A190,L190,B190),C190) -> 35.697 | G190: 35.86532665 | H190: =LookUp_atlas("deltaSA_ref",B190,$B$1,$B$2) -> 0.0007367110092 | I190: =LookUp_atlas("SAAR_ref",B190,$B$1,$B$2) -> 2.033001632e-05 | J190: =IF(is_Baltic($B$1,$B$2)=1,"Baltic",G190*I190) -> 0.0007291426762 | K190: =IF(is_Baltic($B$1,$B$2)=1,SA_Baltic(F190),G190+J190) -> 35.8660558 | L190: 12.433316 | M190: =pt0_from_t(K190,L190,B190) -> 12.40777005 | N190: =CT_from_pt(K190,M190) -> 12.38171486 | O190: =sigma0(K190,N190) -> 27.05457208 | P190: =rho(K190,N190,B190) -> 1027.898315 | Q190: =Sound_Speed(K190,N190,B190) -> 1502.21661
B191: 191 | C191: 35.6962 | E191: 12.4313 | F191: =IF(C191 ="",SP_from_C(A191,L191,B191),C191) -> 35.6962 | G191: 35.86452288 | H191: =LookUp_atlas("deltaSA_ref",B191,$B$1,$B$2) -> 0.0007386522424 | I191: =LookUp_atlas("SAAR_ref",B191,$B$1,$B$2) -> 2.038949901e-05 | J191: =IF(is_Baltic($B$1,$B$2)=1,"Baltic",G191*I191) -> 0.0007312596536 | K191: =IF(is_Baltic($B$1,$B$2)=1,SA_Baltic(F191),G191+J191) -> 35.86525414 | L191: 12.4283172 | M191: =pt0_from_t(K191,L191,B191) -> 12.4026427 | N191: =CT_from_pt(K191,M191) -> 12.37661012 | O191: =sigma0(K191,N191) -> 27.05495991 | P191: =rho(K191,N191,B191) -> 1027.903154 | Q191: =Sound_Speed(K191,N191,B191) -> 1502.215132
B192: 192 | C192: 35.7094 | E192: 12.4268 | F192: =IF(C192 ="",SP_from_C(A192,L192,B192),C192) -> 35.7094 | G192: 35.87778513 | H192: =LookUp_atlas("deltaSA_ref",B192,$B$1,$B$2) -> 0.0007405934756 | I192: =LookUp_atlas("SAAR_ref",B192,$B$1,$B$2) -> 2.044898169e-05 | J192: =IF(is_Baltic($B$1,$B$2)=1,"Baltic",G192*I192) -> 0.0007336641711 | K192: =IF(is_Baltic($B$1,$B$2)=1,SA_Baltic(F192),G192+J192) -> 35.87851879 | L192: 12.42381828 | M192: =pt0_from_t(K192,L192,B192) -> 12.39801105 | N192: =CT_from_pt(K192,M192) -> 12.37169508 | O192: =sigma0(K192,N192) -> 27.06611309 | P192: =rho(K192,N192,B192) -> 1027.918739 | Q192: =Sound_Speed(K192,N192,B192) -> 1502.23203
B193: 193 | C193: 35.7114 | E193: 12.4247 | F193: =IF(C193 ="",SP_from_C(A193,L193,B193),C193) -> 35.7114 | G193: 35.87979456 | H193: =LookUp_atlas("deltaSA_ref",B193,$B$1,$B$2) -> 0.0007425347088 | I193: =LookUp_atlas("SAAR_ref",B193,$B$1,$B$2) -> 2.050846438e-05 | J193: =IF(is_Baltic($B$1,$B$2)=1,"Baltic",G193*I193) -> 0.0007358394885 | K193: =IF(is_Baltic($B$1,$B$2)=1,SA_Baltic(F193),G193+J193) -> 35.8805304 | L193: 12.42171879 | M193: =pt0_from_t(K193,L193,B193) -> 12.39577846 | N193: =CT_from_pt(K193,M193) -> 12.36942111 | O193: =sigma0(K193,N193) -> 27.06810492 | P193: =rho(K193,N193,B193) -> 1027.925168 | Q193: =Sound_Speed(K193,N193,B193) -> 1502.243656
B194: 194 | C194: 35.717 | E194: 12.4192 | F194: =IF(C194 ="",SP_from_C(A194,L194,B194),C194) -> 35.717 | G194: 35.88542096 | H194: =LookUp_atlas("deltaSA_ref",B194,$B$1,$B$2) -> 0.0007444759421 | I194: =LookUp_atlas("SAAR_ref",B194,$B$1,$B$2) -> 2.056794706e-05 | J194: =IF(is_Baltic($B$1,$B$2)=1,"Baltic",G194*I194) -> 0.0007380894387 | K194: =IF(is_Baltic($B$1,$B$2)=1,SA_Baltic(F194),G194+J194) -> 35.88615905 | L194: 12.41622011 | M194: =pt0_from_t(K194,L194,B194) -> 12.3901504 | N194: =CT_from_pt(K194,M194) -> 12.36367668 | O194: =sigma0(K194,N194) -> 27.07355658 | P194: =rho(K194,N194,B194) -> 1027.935065 | Q194: =Sound_Speed(K194,N194,B194) -> 1502.248121
B195: 195 | C195: 35.7199 | E195: 12.4172 | F195: =IF(C195 ="",SP_from_C(A195,L195,B195),C195) -> 35.7199 | G195: 35.88833464 | H195: =LookUp_atlas("deltaSA_ref",B195,$B$1,$B$2) -> 0.0007464171753 | I195: =LookUp_atlas("SAAR_ref",B195,$B$1,$B$2) -> 2.062742975e-05 | J195: =IF(is_Baltic($B$1,$B$2)=1,"Baltic",G195*I195) -> 0.0007402841015 | K195: =IF(is_Baltic($B$1,$B$2)=1,SA_Baltic(F195),G195+J195) -> 35.88907492 | L195: 12.41422059 | M195: =pt0_from_t(K195,L195,B195) -> 12.38801746 | N195: =CT_from_pt(K195,M195) -> 12.36148267 | O195: =sigma0(K195,N195) -> 27.0762271 | P195: =rho(K195,N195,B195) -> 1027.94217 | Q195: =Sound_Speed(K195,N195,B195) -> 1502.261156
B196: 196 | C196: 35.7188 | E196: 12.4156 | F196: =IF(C196 ="",SP_from_C(A196,L196,B196),C196) -> 35.7188 | G196: 35.88722945 | H196: =LookUp_atlas("deltaSA_ref",B196,$B$1,$B$2) -> 0.0007483584085 | I196: =LookUp_atlas("SAAR_ref",B196,$B$1,$B$2) -> 2.068691243e-05 | J196: =IF(is_Baltic($B$1,$B$2)=1,"Baltic",G196*I196) -> 0.0007423959731 | K196: =IF(is_Baltic($B$1,$B$2)=1,SA_Baltic(F196),G196+J196) -> 35.88797185 | L196: 12.41262097 | M196: =pt0_from_t(K196,L196,B196) -> 12.38628493 | N196: =CT_from_pt(K196,M196) -> 12.35977589 | O196: =sigma0(K196,N196) -> 27.07571522 | P196: =rho(K196,N196,B196) -> 1027.946098 | Q196: =Sound_Speed(K196,N196,B196) -> 1502.270769
B197: 197 | C197: 35.715 | E197: 12.4106 | F197: =IF(C197 ="",SP_from_C(A197,L197,B197),C197) -> 35.715 | G197: 35.88341153 | H197: =LookUp_atlas("deltaSA_ref",B197,$B$1,$B$2) -> 0.0007502996417 | I197: =LookUp_atlas("SAAR_ref",B197,$B$1,$B$2) -> 2.074639512e-05 | J197: =IF(is_Baltic($B$1,$B$2)=1,"Baltic",G197*I197) -> 0.0007444514339 | K197: =IF(is_Baltic($B$1,$B$2)=1,SA_Baltic(F197),G197+J197) -> 35.88415598 | L197: 12.40762217 | M197: =pt0_from_t(K197,L197,B197) -> 12.38115863 | N197: =CT_from_pt(K197,M197) -> 12.35473775 | O197: =sigma0(K197,N197) -> 27.07377407 | P197: =rho(K197,N197,B197) -> 1027.948613 | Q197: =Sound_Speed(K197,N197,B197) -> 1502.265704
B198: 198 | C198: 35.7123 | E198: 12.4067 | F198: =IF(C198 ="",SP_from_C(A198,L198,B198),C198) -> 35.7123 | G198: 35.8806988 | H198: =LookUp_atlas("deltaSA_ref",B198,$B$1,$B$2) -> 0.0007522408749 | I198: =LookUp_atlas("SAAR_ref",B198,$B$1,$B$2) -> 2.080587781e-05 | J198: =IF(is_Baltic($B$1,$B$2)=1,"Baltic",G198*I198) -> 0.0007465294348 | K198: =IF(is_Baltic($B$1,$B$2)=1,SA_Baltic(F198),G198+J198) -> 35.88144533 | L198: =IF(D198 ="",E198/1.00024,D198) -> 12.40372311 | M198: =pt0_from_t(K198,L198,B198) -> 12.37713032 | N198: =CT_from_pt(K198,M198) -> 12.35077244 | O198: =sigma0(K198,N198) -> 27.07247081 | P198: =rho(K198,N198,B198) -> 1027.951761 | Q198: =Sound_Speed(K198,N198,B198) -> 1502.265656
B199: 199 | C199: 35.7119 | E199: 12.4025 | F199: =IF(C199 ="",SP_from_C(A199,L199,B199),C199) -> 35.7119 | G199: 35.88029691 | H199: =LookUp_atlas("deltaSA_ref",B199,$B$1,$B$2) -> 0.0007541821081 | I199: =LookUp_atlas("SAAR_ref",B199,$B$1,$B$2) -> 2.086536049e-05 | J199: =IF(is_Baltic($B$1,$B$2)=1,"Baltic",G199*I199) -> 0.0007486553297 | K199: =IF(is_Baltic($B$1,$B$2)=1,SA_Baltic(F199),G199+J199) -> 35.88104557 | L199: 12.39952411 | M199: =pt0_from_t(K199,L199,B199) -> 12.37280195 | N199: =CT_from_pt(K199,M199) -> 12.34645723 | O199: =sigma0(K199,N199) -> 27.07301094 | P199: =rho(K199,N199,B199) -> 1027.956749 | Q199: =Sound_Speed(K199,N199,B199) -> 1502.267338
B200: 200 | C200: 35.713 | E200: 12.3982 | F200: =IF(C200 ="",SP_from_C(A200,L200,B200),C200) -> 35.713 | G200: 35.8814021 | H200: =LookUp_atlas("deltaSA_ref",B200,$B$1,$B$2) -> 0.0007561233413 | I200: =LookUp_atlas("SAAR_ref",B200,$B$1,$B$2) -> 2.092484318e-05 | J200: =IF(is_Baltic($B$1,$B$2)=1,"Baltic",G200*I200) -> 0.0007508127119 | K200: =IF(is_Baltic($B$1,$B$2)=1,SA_Baltic(F200),G200+J200) -> 35.88215291 | L200: 12.39522515 | M200: =pt0_from_t(K200,L200,B200) -> 12.36837339 | N200: =CT_from_pt(K200,M200) -> 12.34200926 | O200: =sigma0(K200,N200) -> 27.07473451 | P200: =rho(K200,N200,B200) -> 1027.96292 | Q200: =Sound_Speed(K200,N200,B200) -> 1502.270471
... 1261 more rows

Sheet Surface Data
A3: Long | B3: Lat | C3: Conductivity | D3: p | E3: SP | F3: temp ITS-90 | G3: temp IPTS-68 | H3: SP from C | I3: SR | J3: delta SA Atlas | K3: SAAR Atlas | L3: delta SA | M3: Absolute Salinity (SA) | N3: t ITS-90 | O3: Potential t | P3: Conservative Temperature (Θ) | Q3: Potential Density ( σΘ ) | R3: In situ Density (ρSA, Θ, p) | S3: Sound Speed (c)
C4: (mS cm-1) | D4: (dbar) | F4: (ºC) | G4: (ºC) | I4: (g kg-1) | J4: (g kg-1) | K4: (g kg-1) | L4: (g kg-1) | M4: (g kg-1) | N4: (ºC) | O4: (ºC) | P4: (ºC) | Q4: (kg m-3 - 1000) | R4: (kg m-3) | S4: (m s-1)
A5: 20.05 | B5: 59.02 | D5: 0 | E5: 5.39 | F5: 12.3 | H5: =IF(E5 ="",SP_from_C(C5,N5,D5),E5) -> 5.39 | I5: =(35.16504/35)*H5 -> 5.41541616 | J5: =LookUp_atlas("deltaSA_ref",D5,A5,B5) -> Baltic | K5: =LookUp_atlas("SAAR_ref",D5,A5,B5) -> Baltic | L5: =IF(is_Baltic(A5,B5)=1,"Baltic",I5*K5) -> Baltic | M5: =IF(is_Baltic(A5,B5)=1,SA_Baltic(H5),I5+L5) -> 5.48901816 | N5: =IF(F5 ="",G5/1.00024,F5) -> 12.3 | O5: =pt0_from_t(M5,N5,D5) -> 12.3 | P5: =CT_from_pt(M5,O5) -> 12.86822837 | Q5: =sigma0(M5,P5) -> 3.704655912 | R5: =rho(M5,P5,D5) -> 1003.704656 | S5: =Sound_Speed(M5,P5,D5) -> 1462.77626
A6: 20.1 | B6: 59.02 | D6: 0 | E6: 5.39 | F6: 12.2 | H6: =IF(E6 ="",SP_from_C(C6,N6,D6),E6) -> 5.39 | I6: =(35.16504/35)*H6 -> 5.41541616 | J6: =LookUp_atlas("deltaSA_ref",D6,A6,B6) -> Baltic | K6: =LookUp_atlas("SAAR_ref",D6,A6,B6) -> Baltic | L6: =IF(is_Baltic(A6,B6)=1,"Baltic",I6*K6) -> Baltic | M6: =IF(is_Baltic(A6,B6)=1,SA_Baltic(H6),I6+L6) -> 5.48901816 | N6: =IF(F6 ="",G6/1.00024,F6) -> 12.2 | O6: =pt0_from_t(M6,N6,D6) -> 12.2 | P6: =CT_from_pt(M6,O6) -> 12.76406832 | Q6: =sigma0(M6,P6) -> 3.717651799 | R6: =rho(M6,P6,D6) -> 1003.717652 | S6: =Sound_Speed(M6,P6,D6) -> 1462.407246
A7: 20.15 | B7: 59.02 | D7: 0 | E7: 5.38 | F7: 12.1 | H7: =IF(E7 ="",SP_from_C(C7,N7,D7),E7) -> 5.38 | I7: 5.405369006 | J7: =LookUp_atlas("deltaSA_ref",D7,A7,B7) -> Baltic | K7: =LookUp_atlas("SAAR_ref",D7,A7,B7) -> Baltic | L7: =IF(is_Baltic(A7,B7)=1,"Baltic",I7*K7) -> Baltic | M7: =IF(is_Baltic(A7,B7)=1,SA_Baltic(H7),I7+L7) -> 5.478995863 | N7: 12.1 | O7: =pt0_from_t(M7,N7,D7) -> 12.1 | P7: =CT_from_pt(M7,O7) -> 12.66008164 | Q7: =sigma0(M7,P7) -> 3.722814084 | R7: =rho(M7,P7,D7) -> 1003.722814 | S7: =Sound_Speed(M7,P7,D7) -> 1462.0253
A8: 20.2 | B8: 59.02 | D8: 0 | E8: 5.41 | F8: 12.1 | H8: =IF(E8 ="",SP_from_C(C8,N8,D8),E8) -> 5.41 | I8: 5.435510469 | J8: =LookUp_atlas("deltaSA_ref",D8,A8,B8) -> Baltic | K8: =LookUp_atlas("SAAR_ref",D8,A8,B8) -> Baltic | L8: =IF(is_Baltic(A8,B8)=1,"Baltic",I8*K8) -> Baltic | M8: =IF(is_Baltic(A8,B8)=1,SA_Baltic(H8),I8+L8) -> 5.509062754 | N8: 12.1 | O8: =pt0_from_t(M8,N8,D8) -> 12.1 | P8: =CT_from_pt(M8,O8) -> 12.65955402 | Q8: =sigma0(M8,P8) -> 3.745951131 | R8: =rho(M8,P8,D8) -> 1003.745951 | S8: =Sound_Speed(M8,P8,D8) -> 1462.061317
J9: =LookUp_atlas("deltaSA_ref",D9,A9,B9) -> 0.0005759195646 | K9: =LookUp_atlas("SAAR_ref",D9,A9,B9) -> 1.605931815e-05
A10: 162.5 | B10: 33 | D10: 0 | E10: 34.57586 | F10: 19.50761 | H10: =IF(E10 ="",SP_from_C(C10,N10,D10),E10) -> 34.57586 | I10: 34.7389 | J10: =LookUp_atlas("deltaSA_ref",D10,A10,B10) -> 0.000327101505 | K10: =LookUp_atlas("SAAR_ref",D10,A10,B10) -> 9.410246618e-06 | L10: =IF(is_Baltic(A10,B10)=1,"Baltic",I10*K10) -> 0.0003269016162 | M10: =IF(is_Baltic(A10,B10)=1,SA_Baltic(H10),I10+L10) -> 34.7392269 | N10: =IF(F10 ="",G10/1.00024,F10) -> 19.50761 | O10: =pt0_from_t(M10,N10,D10) -> 19.50761 | P10: =CT_from_pt(M10,O10) -> 19.51302026 | Q10: =sigma0(M10,P10) -> 24.57087912 | R10: =rho(M10,P10,D10) -> 1024.570879 | S10: =Sound_Speed(M10,P10,D10) -> 1519.553658
J11: =LookUp_atlas("deltaSA_ref",D11,A11,B11) -> 0.0005759195646 | K11: =LookUp_atlas("SAAR_ref",D11,A11,B11) -> 1.605931815e-05
A12: 2 | B12: 11 | D12: 0 | E12: 34.57586 | F12: 19.50761 | H12: =IF(E12 ="",SP_from_C(C12,N12,D12),E12) -> 34.57586 | I12: 34.7389 | J12: =LookUp_atlas("deltaSA_ref",D12,A12,B12) -> NOT in OCEAN | K12: =LookUp_atlas("SAAR_ref",D12,A12,B12) -> NOT in OCEAN | L12: =IF(is_Baltic(A12,B12)=1,"Baltic",I12*K12) ->  | M12: =IF(is_Baltic(A12,B12)=1,SA_Baltic(H12),I12+L12) ->  | N12: =IF(F12 ="",G12/1.00024,F12) -> 19.50761 | O12: =pt0_from_t(M12,N12,D12) ->  | P12: =CT_from_pt(M12,O12) ->  | Q12: =sigma0(M12,P12) ->  | R12: =rho(M12,P12,D12) ->  | S12: =Sound_Speed(M12,P12,D12) -> 

Sheet Vertical Profiles
A1: Temperature Vertical Profile
A2: Absolute Salinity Vertical Profile
A3: Potential Density Vertical Profile
A4: In Situ Density Vertical Profile
A5: Sound Speed Vertical Profile
A6: In Situ vs Conservative Temperature (TEOS-10 Test Data)

Sheet SA - Θ Diagram
P1: σCT | Q1: 25 | R1: σCT | S1: 26 | T1: σCT | U1: 27 | V1: σCT | W1: 28
P2: SA | Q2: CT | R2: SA | S2: CT | T2: SA | U2: CT | V2: SA | W2: CT
P3: 33 | Q3: =sigma_CT_line(P3,Q$1,0,30) -> 11.6 | R3: 33 | S3: =sigma_CT_line(R3,S$1,0,30) -> 4.73 | T3: 33 | U3: =sigma_CT_line(T3,U$1,0,30) -> 0 | V3: 33 | W3: =sigma_CT_line(V3,W$1,0,30) -> 0
P4: =P3+0.05 -> 33.05 | Q4: =sigma_CT_line(P4,Q$1,0,30) -> 11.81 | R4: =R3+0.05 -> 33.05 | S4: =sigma_CT_line(R4,S$1,0,30) -> 5.09 | T4: =T3+0.05 -> 33.05 | U4: =sigma_CT_line(T4,U$1,0,30) -> 0 | V4: =V3+0.05 -> 33.05 | W4: =sigma_CT_line(V4,W$1,0,30) -> 0
P5: =P4+0.05 -> 33.1 | Q5: =sigma_CT_line(P5,Q$1,0,30) -> 12.02 | R5: =R4+0.05 -> 33.1 | S5: =sigma_CT_line(R5,S$1,0,30) -> 5.43 | T5: =T4+0.05 -> 33.1 | U5: =sigma_CT_line(T5,U$1,0,30) -> 0 | V5: =V4+0.05 -> 33.1 | W5: =sigma_CT_line(V5,W$1,0,30) -> 0
P6: 33.15 | Q6: =sigma_CT_line(P6,Q$1,0,30) -> 12.22 | R6: 33.15 | S6: =sigma_CT_line(R6,S$1,0,30) -> 5.77 | T6: 33.15 | U6: =sigma_CT_line(T6,U$1,0,30) -> 0 | V6: 33.15 | W6: =sigma_CT_line(V6,W$1,0,30) -> 0
P7: 33.2 | Q7: =sigma_CT_line(P7,Q$1,0,30) -> 12.43 | R7: 33.2 | S7: =sigma_CT_line(R7,S$1,0,30) -> 6.09 | T7: 33.2 | U7: =sigma_CT_line(T7,U$1,0,30) -> 0 | V7: 33.2 | W7: =sigma_CT_line(V7,W$1,0,30) -> 0
P8: 33.25 | Q8: =sigma_CT_line(P8,Q$1,0,30) -> 12.63 | R8: 33.25 | S8: =sigma_CT_line(R8,S$1,0,30) -> 6.4 | T8: 33.25 | U8: =sigma_CT_line(T8,U$1,0,30) -> 0 | V8: 33.25 | W8: =sigma_CT_line(V8,W$1,0,30) -> 0
P9: 33.3 | Q9: =sigma_CT_line(P9,25,0,30) -> 12.82 | R9: 33.3 | S9: =sigma_CT_line(R9,S$1,0,30) -> 6.71 | T9: 33.3 | U9: =sigma_CT_line(T9,U$1,0,30) -> 0 | V9: 33.3 | W9: =sigma_CT_line(V9,W$1,0,30) -> 0
P10: 33.35 | Q10: =sigma_CT_line(P10,25,0,30) -> 13.02 | R10: 33.35 | S10: =sigma_CT_line(R10,S$1,0,30) -> 7 | T10: 33.35 | U10: =sigma_CT_line(T10,U$1,0,30) -> 0 | V10: 33.35 | W10: =sigma_CT_line(V10,W$1,0,30) -> 0
P11: 33.4 | Q11: =sigma_CT_line(P11,25,0,30) -> 13.21 | R11: 33.4 | S11: =sigma_CT_line(R11,S$1,0,30) -> 7.29 | T11: 33.4 | U11: =sigma_CT_line(T11,U$1,0,30) -> 0 | V11: 33.4 | W11: =sigma_CT_line(V11,W$1,0,30) -> 0
P12: 33.45 | Q12: =sigma_CT_line(P12,25,0,30) -> 13.41 | R12: 33.45 | S12: =sigma_CT_line(R12,S$1,0,30) -> 7.57 | T12: 33.45 | U12: =sigma_CT_line(T12,U$1,0,30) -> 0 | V12: 33.45 | W12: =sigma_CT_line(V12,W$1,0,30) -> 0
P13: 33.5 | Q13: =sigma_CT_line(P13,25,0,30) -> 13.6 | R13: 33.5 | S13: =sigma_CT_line(R13,S$1,0,30) -> 7.84 | T13: 33.5 | U13: =sigma_CT_line(T13,U$1,0,30) -> 0 | V13: 33.5 | W13: =sigma_CT_line(V13,W$1,0,30) -> 0
P14: 33.55 | Q14: =sigma_CT_line(P14,25,0,30) -> 13.78 | R14: 33.55 | S14: =sigma_CT_line(R14,S$1,0,30) -> 8.11 | T14: 33.55 | U14: =sigma_CT_line(T14,U$1,0,30) -> 0 | V14: 33.55 | W14: =sigma_CT_line(V14,W$1,0,30) -> 0
P15: 33.6 | Q15: =sigma_CT_line(P15,25,0,30) -> 13.97 | R15: 33.6 | S15: =sigma_CT_line(R15,S$1,0,30) -> 8.37 | T15: 33.6 | U15: =sigma_CT_line(T15,U$1,0,30) -> 0 | V15: 33.6 | W15: =sigma_CT_line(V15,W$1,0,30) -> 0
P16: 33.65 | Q16: =sigma_CT_line(P16,25,0,30) -> 14.15 | R16: 33.65 | S16: =sigma_CT_line(R16,S$1,0,30) -> 8.63 | T16: 33.65 | U16: =sigma_CT_line(T16,U$1,0,30) -> 0 | V16: 33.65 | W16: =sigma_CT_line(V16,W$1,0,30) -> 0
P17: 33.7 | Q17: =sigma_CT_line(P17,25,0,30) -> 14.34 | R17: 33.7 | S17: =sigma_CT_line(R17,S$1,0,30) -> 8.88 | T17: 33.7 | U17: =sigma_CT_line(T17,U$1,0,30) -> 0 | V17: 33.7 | W17: =sigma_CT_line(V17,W$1,0,30) -> 0
P18: 33.75 | Q18: =sigma_CT_line(P18,25,0,30) -> 14.52 | R18: 33.75 | S18: =sigma_CT_line(R18,S$1,0,30) -> 9.13 | T18: 33.75 | U18: =sigma_CT_line(T18,U$1,0,30) -> 0 | V18: 33.75 | W18: =sigma_CT_line(V18,W$1,0,30) -> 0
P19: 33.8 | Q19: =sigma_CT_line(P19,25,0,30) -> 14.7 | R19: 33.8 | S19: =sigma_CT_line(R19,S$1,0,30) -> 9.37 | T19: 33.8 | U19: =sigma_CT_line(T19,U$1,0,30) -> 0.22 | V19: 33.8 | W19: =sigma_CT_line(V19,W$1,0,30) -> 0
P20: 33.85 | Q20: =sigma_CT_line(P20,25,0,30) -> 14.87 | R20: 33.85 | S20: =sigma_CT_line(R20,S$1,0,30) -> 9.61 | T20: 33.85 | U20: =sigma_CT_line(T20,U$1,0,30) -> 0.92 | V20: 33.85 | W20: =sigma_CT_line(V20,W$1,0,30) -> 0
P21: 33.9 | Q21: =sigma_CT_line(P21,25,0,30) -> 15.05 | R21: 33.9 | S21: =sigma_CT_line(R21,S$1,0,30) -> 9.85 | T21: 33.9 | U21: =sigma_CT_line(T21,U$1,0,30) -> 1.52 | V21: 33.9 | W21: =sigma_CT_line(V21,W$1,0,30) -> 0
P22: 33.95 | Q22: =sigma_CT_line(P22,25,0,30) -> 15.23 | R22: 33.95 | S22: =sigma_CT_line(R22,S$1,0,30) -> 10.08 | T22: 33.95 | U22: =sigma_CT_line(T22,U$1,0,30) -> 2.06 | V22: 33.95 | W22: =sigma_CT_line(V22,W$1,0,30) -> 0
P23: 34 | Q23: =sigma_CT_line(P23,25,0,30) -> 15.4 | R23: 34 | S23: =sigma_CT_line(R23,S$1,0,30) -> 10.3 | T23: 34 | U23: =sigma_CT_line(T23,U$1,0,30) -> 2.55 | V23: 34 | W23: =sigma_CT_line(V23,W$1,0,30) -> 0
P24: 34.05 | Q24: =sigma_CT_line(P24,25,0,30) -> 15.57 | R24: 34.05 | S24: =sigma_CT_line(R24,S$1,0,30) -> 10.53 | T24: 34.05 | U24: =sigma_CT_line(T24,U$1,0,30) -> 3.01 | V24: 34.05 | W24: =sigma_CT_line(V24,W$1,0,30) -> 0
P25: 34.1 | Q25: =sigma_CT_line(P25,25,0,30) -> 15.74 | R25: 34.1 | S25: =sigma_CT_line(R25,S$1,0,30) -> 10.75 | T25: 34.1 | U25: =sigma_CT_line(T25,U$1,0,30) -> 3.44 | V25: 34.1 | W25: =sigma_CT_line(V25,W$1,0,30) -> 0
P26: 34.15 | Q26: =sigma_CT_line(P26,25,0,30) -> 15.91 | R26: 34.15 | S26: =sigma_CT_line(R26,S$1,0,30) -> 10.97 | T26: 34.15 | U26: =sigma_CT_line(T26,U$1,0,30) -> 3.84 | V26: 34.15 | W26: =sigma_CT_line(V26,W$1,0,30) -> 0
P27: 34.2 | Q27: =sigma_CT_line(P27,25,0,30) -> 16.08 | R27: 34.2 | S27: =sigma_CT_line(R27,S$1,0,30) -> 11.18 | T27: 34.2 | U27: =sigma_CT_line(T27,U$1,0,30) -> 4.23 | V27: 34.2 | W27: =sigma_CT_line(V27,W$1,0,30) -> 0
P28: 34.25 | Q28: =sigma_CT_line(P28,25,0,30) -> 16.24 | R28: 34.25 | S28: =sigma_CT_line(R28,S$1,0,30) -> 11.39 | T28: 34.25 | U28: =sigma_CT_line(T28,U$1,0,30) -> 4.6 | V28: 34.25 | W28: =sigma_CT_line(V28,W$1,0,30) -> 0
P29: 34.3 | Q29: =sigma_CT_line(P29,25,0,30) -> 16.41 | R29: 34.3 | S29: =sigma_CT_line(R29,S$1,0,30) -> 11.6 | T29: 34.3 | U29: =sigma_CT_line(T29,U$1,0,30) -> 4.95 | V29: 34.3 | W29: =sigma_CT_line(V29,W$1,0,30) -> 0
P30: 34.35 | Q30: =sigma_CT_line(P30,25,0,30) -> 16.57 | R30: 34.35 | S30: =sigma_CT_line(R30,S$1,0,30) -> 11.81 | T30: 34.35 | U30: =sigma_CT_line(T30,U$1,0,30) -> 5.29 | V30: 34.35 | W30: =sigma_CT_line(V30,W$1,0,30) -> 0
P31: 34.4 | Q31: =sigma_CT_line(P31,25,0,30) -> 16.74 | R31: 34.4 | S31: =sigma_CT_line(R31,S$1,0,30) -> 12.01 | T31: 34.4 | U31: =sigma_CT_line(T31,U$1,0,30) -> 5.62 | V31: 34.4 | W31: =sigma_CT_line(V31,W$1,0,30) -> 0
P32: 34.45 | Q32: =sigma_CT_line(P32,25,0,30) -> 16.9 | R32: 34.45 | S32: =sigma_CT_line(R32,S$1,0,30) -> 12.22 | T32: 34.45 | U32: =sigma_CT_line(T32,U$1,0,30) -> 5.94 | V32: 34.45 | W32: =sigma_CT_line(V32,W$1,0,30) -> 0
P33: 34.5 | Q33: =sigma_CT_line(P33,25,0,30) -> 17.06 | R33: 34.5 | S33: =sigma_CT_line(R33,S$1,0,30) -> 12.42 | T33: 34.5 | U33: =sigma_CT_line(T33,U$1,0,30) -> 6.24 | V33: 34.5 | W33: =sigma_CT_line(V33,W$1,0,30) -> 0
P34: 34.55 | Q34: =sigma_CT_line(P34,25,0,30) -> 17.22 | R34: 34.55 | S34: =sigma_CT_line(R34,S$1,0,30) -> 12.61 | T34: 34.55 | U34: =sigma_CT_line(T34,U$1,0,30) -> 6.54 | V34: 34.55 | W34: =sigma_CT_line(V34,W$1,0,30) -> 0
P35: 34.6 | Q35: =sigma_CT_line(P35,25,0,30) -> 17.37 | R35: 34.6 | S35: =sigma_CT_line(R35,S$1,0,30) -> 12.81 | T35: 34.6 | U35: =sigma_CT_line(T35,U$1,0,30) -> 6.84 | V35: 34.6 | W35: =sigma_CT_line(V35,W$1,0,30) -> 0
P36: 34.65 | Q36: =sigma_CT_line(P36,25,0,30) -> 17.53 | R36: 34.65 | S36: =sigma_CT_line(R36,S$1,0,30) -> 13 | T36: 34.65 | U36: =sigma_CT_line(T36,U$1,0,30) -> 7.12 | V36: 34.65 | W36: =sigma_CT_line(V36,W$1,0,30) -> 0
P37: 34.7 | Q37: =sigma_CT_line(P37,25,0,30) -> 17.69 | R37: 34.7 | S37: =sigma_CT_line(R37,S$1,0,30) -> 13.19 | T37: 34.7 | U37: =sigma_CT_line(T37,U$1,0,30) -> 7.4 | V37: 34.7 | W37: =sigma_CT_line(V37,W$1,0,30) -> 0
P38: 34.75 | Q38: =sigma_CT_line(P38,25,0,30) -> 17.84 | R38: 34.75 | S38: =sigma_CT_line(R38,S$1,0,30) -> 13.38 | T38: 34.75 | U38: =sigma_CT_line(T38,U$1,0,30) -> 7.67 | V38: 34.75 | W38: =sigma_CT_line(V38,W$1,0,30) -> 0
P39: 34.8 | Q39: =sigma_CT_line(P39,25,0,30) -> 18 | R39: 34.8 | S39: =sigma_CT_line(R39,S$1,0,30) -> 13.57 | T39: 34.8 | U39: =sigma_CT_line(T39,U$1,0,30) -> 7.93 | V39: 34.8 | W39: =sigma_CT_line(V39,W$1,0,30) -> 0
P40: 34.85 | Q40: =sigma_CT_line(P40,25,0,30) -> 18.15 | R40: 34.85 | S40: =sigma_CT_line(R40,S$1,0,30) -> 13.75 | T40: 34.85 | U40: =sigma_CT_line(T40,U$1,0,30) -> 8.19 | V40: 34.85 | W40: =sigma_CT_line(V40,W$1,0,30) -> 0
P41: 34.9 | Q41: =sigma_CT_line(P41,25,0,30) -> 18.3 | R41: 34.9 | S41: =sigma_CT_line(R41,S$1,0,30) -> 13.94 | T41: 34.9 | U41: =sigma_CT_line(T41,U$1,0,30) -> 8.45 | V41: 34.9 | W41: =sigma_CT_line(V41,W$1,0,30) -> 0
P42: 34.95 | Q42: =sigma_CT_line(P42,25,0,30) -> 18.45 | R42: 34.95 | S42: =sigma_CT_line(R42,S$1,0,30) -> 14.12 | T42: 34.95 | U42: =sigma_CT_line(T42,U$1,0,30) -> 8.7 | V42: 34.95 | W42: =sigma_CT_line(V42,W$1,0,30) -> 0
P43: 35 | Q43: =sigma_CT_line(P43,25,0,30) -> 18.6 | R43: 35 | S43: =sigma_CT_line(R43,S$1,0,30) -> 14.3 | T43: 35 | U43: =sigma_CT_line(T43,U$1,0,30) -> 8.94 | V43: 35 | W43: =sigma_CT_line(V43,W$1,0,30) -> 0
P44: 35.05 | Q44: =sigma_CT_line(P44,25,0,30) -> 18.75 | R44: 35.05 | S44: =sigma_CT_line(R44,S$1,0,30) -> 14.48 | T44: 35.05 | U44: =sigma_CT_line(T44,U$1,0,30) -> 9.18 | V44: 35.05 | W44: =sigma_CT_line(V44,W$1,0,30) -> 0.27
P45: 35.1 | Q45: =sigma_CT_line(P45,25,0,30) -> 18.9 | R45: 35.1 | S45: =sigma_CT_line(R45,S$1,0,30) -> 14.65 | T45: 35.1 | U45: =sigma_CT_line(T45,U$1,0,30) -> 9.42 | V45: 35.1 | W45: =sigma_CT_line(V45,W$1,0,30) -> 0.91
P46: 35.15 | Q46: =sigma_CT_line(P46,25,0,30) -> 19.05 | R46: 35.15 | S46: =sigma_CT_line(R46,S$1,0,30) -> 14.83 | T46: 35.15 | U46: =sigma_CT_line(T46,U$1,0,30) -> 9.65 | V46: 35.15 | W46: =sigma_CT_line(V46,W$1,0,30) -> 1.48
P47: 35.2 | Q47: =sigma_CT_line(P47,25,0,30) -> 19.2 | R47: 35.2 | S47: =sigma_CT_line(R47,S$1,0,30) -> 15 | T47: 35.2 | U47: =sigma_CT_line(T47,U$1,0,30) -> 9.88 | V47: 35.2 | W47: =sigma_CT_line(V47,W$1,0,30) -> 2
P48: 35.25 | Q48: =sigma_CT_line(P48,25,0,30) -> 19.34 | R48: 35.25 | S48: =sigma_CT_line(R48,S$1,0,30) -> 15.18 | T48: 35.25 | U48: =sigma_CT_line(T48,U$1,0,30) -> 10.11 | V48: 35.25 | W48: =sigma_CT_line(V48,W$1,0,30) -> 2.47
P49: 35.3 | Q49: =sigma_CT_line(P49,25,0,30) -> 19.49 | R49: 35.3 | S49: =sigma_CT_line(R49,S$1,0,30) -> 15.35 | T49: 35.3 | U49: =sigma_CT_line(T49,U$1,0,30) -> 10.33 | V49: 35.3 | W49: =sigma_CT_line(V49,W$1,0,30) -> 2.92
P50: 35.35 | Q50: =sigma_CT_line(P50,25,0,30) -> 19.63 | R50: 35.35 | S50: =sigma_CT_line(R50,S$1,0,30) -> 15.52 | T50: 35.35 | U50: =sigma_CT_line(T50,U$1,0,30) -> 10.55 | V50: 35.35 | W50: =sigma_CT_line(V50,W$1,0,30) -> 3.34
P51: 35.4 | Q51: =sigma_CT_line(P51,25,0,30) -> 19.78 | R51: 35.4 | S51: =sigma_CT_line(R51,S$1,0,30) -> 15.69 | T51: 35.4 | U51: =sigma_CT_line(T51,U$1,0,30) -> 10.77 | V51: 35.4 | W51: =sigma_CT_line(V51,W$1,0,30) -> 3.73
P52: 35.45 | Q52: =sigma_CT_line(P52,25,0,30) -> 19.92 | R52: 35.45 | S52: =sigma_CT_line(R52,S$1,0,30) -> 15.85 | T52: 35.45 | U52: =sigma_CT_line(T52,U$1,0,30) -> 10.98 | V52: 35.45 | W52: =sigma_CT_line(V52,W$1,0,30) -> 4.11
P53: 35.5 | Q53: =sigma_CT_line(P53,25,0,30) -> 20.06 | R53: 35.5 | S53: =sigma_CT_line(R53,S$1,0,30) -> 16.02 | T53: 35.5 | U53: =sigma_CT_line(T53,U$1,0,30) -> 11.19 | V53: 35.5 | W53: =sigma_CT_line(V53,W$1,0,30) -> 4.47
P54: 35.55 | Q54: =sigma_CT_line(P54,25,0,30) -> 20.2 | R54: 35.55 | S54: =sigma_CT_line(R54,S$1,0,30) -> 16.18 | T54: =T53+0.05 -> 35.55 | U54: =sigma_CT_line(T54,U$1,0,30) -> 11.4 | V54: 35.55 | W54: =sigma_CT_line(V54,W$1,0,30) -> 4.82
P55: 35.6 | Q55: =sigma_CT_line(P55,25,0,30) -> 20.34 | R55: 35.6 | S55: =sigma_CT_line(R55,S$1,0,30) -> 16.35 | T55: 35.6 | U55: =sigma_CT_line(T55,U$1,0,30) -> 11.61 | V55: 35.6 | W55: =sigma_CT_line(V55,W$1,0,30) -> 5.15
P56: 35.65 | Q56: =sigma_CT_line(P56,25,0,30) -> 20.48 | R56: 35.65 | S56: =sigma_CT_line(R56,S$1,0,30) -> 16.51 | T56: 35.65 | U56: =sigma_CT_line(T56,U$1,0,30) -> 11.81 | V56: 35.65 | W56: =sigma_CT_line(V56,W$1,0,30) -> 5.48
P57: 35.7 | Q57: =sigma_CT_line(P57,25,0,30) -> 20.62 | R57: 35.7 | S57: =sigma_CT_line(R57,S$1,0,30) -> 16.67 | T57: 35.7 | U57: =sigma_CT_line(T57,U$1,0,30) -> 12.01 | V57: 35.7 | W57: =sigma_CT_line(V57,W$1,0,30) -> 5.79
P58: 35.75 | Q58: =sigma_CT_line(P58,25,0,30) -> 20.76 | R58: 35.75 | S58: =sigma_CT_line(R58,S$1,0,30) -> 16.83 | T58: 35.75 | U58: =sigma_CT_line(T58,U$1,0,30) -> 12.21 | V58: 35.75 | W58: =sigma_CT_line(V58,W$1,0,30) -> 6.09
P59: 35.8 | Q59: =sigma_CT_line(P59,25,0,30) -> 20.9 | R59: 35.8 | S59: =sigma_CT_line(R59,S$1,0,30) -> 16.99 | T59: 35.8 | U59: =sigma_CT_line(T59,U$1,0,30) -> 12.41 | V59: 35.8 | W59: =sigma_CT_line(V59,W$1,0,30) -> 6.39
P60: 35.85 | Q60: =sigma_CT_line(P60,25,0,30) -> 21.04 | R60: 35.85 | S60: =sigma_CT_line(R60,S$1,0,30) -> 17.15 | T60: 35.85 | U60: =sigma_CT_line(T60,U$1,0,30) -> 12.6 | V60: 35.85 | W60: =sigma_CT_line(V60,W$1,0,30) -> 6.68
P61: 35.9 | Q61: =sigma_CT_line(P61,25,0,30) -> 21.17 | R61: 35.9 | S61: =sigma_CT_line(R61,S$1,0,30) -> 17.3 | T61: 35.9 | U61: =sigma_CT_line(T61,U$1,0,30) -> 12.79 | V61: 35.9 | W61: =sigma_CT_line(V61,W$1,0,30) -> 6.96
P62: 35.95 | Q62: =sigma_CT_line(P62,25,0,30) -> 21.31 | R62: 35.95 | S62: =sigma_CT_line(R62,S$1,0,30) -> 17.46 | T62: 35.95 | U62: =sigma_CT_line(T62,U$1,0,30) -> 12.98 | V62: 35.95 | W62: =sigma_CT_line(V62,W$1,0,30) -> 7.23
P63: 36 | Q63: =sigma_CT_line(P63,25,0,30) -> 21.44 | R63: 36 | S63: =sigma_CT_line(R63,S$1,0,30) -> 17.62 | T63: 36 | U63: =sigma_CT_line(T63,U$1,0,30) -> 13.17 | V63: 36 | W63: =sigma_CT_line(V63,W$1,0,30) -> 7.5
P64: 36.05 | Q64: =sigma_CT_line(P64,25,0,30) -> 21.58 | R64: 36.05 | S64: =sigma_CT_line(R64,S$1,0,30) -> 17.77 | T64: 36.05 | U64: =sigma_CT_line(T64,U$1,0,30) -> 13.36 | V64: 36.05 | W64: =sigma_CT_line(V64,W$1,0,30) -> 7.76
P65: 36.1 | Q65: =sigma_CT_line(P65,25,0,30) -> 21.71 | R65: 36.1 | S65: =sigma_CT_line(R65,S$1,0,30) -> 17.92 | T65: 36.1 | U65: =sigma_CT_line(T65,U$1,0,30) -> 13.54 | V65: 36.1 | W65: =sigma_CT_line(V65,W$1,0,30) -> 8.02
P66: 36.15 | Q66: =sigma_CT_line(P66,25,0,30) -> 21.84 | R66: 36.15 | S66: =sigma_CT_line(R66,S$1,0,30) -> 18.07 | T66: 36.15 | U66: =sigma_CT_line(T66,U$1,0,30) -> 13.72 | V66: 36.15 | W66: =sigma_CT_line(V66,W$1,0,30) -> 8.27
P67: 36.2 | Q67: =sigma_CT_line(P67,25,0,30) -> 21.98 | R67: 36.2 | S67: =sigma_CT_line(R67,S$1,0,30) -> 18.22 | T67: 36.2 | U67: =sigma_CT_line(T67,U$1,0,30) -> 13.91 | V67: 36.2 | W67: =sigma_CT_line(V67,W$1,0,30) -> 8.52
P68: 36.25 | Q68: =sigma_CT_line(P68,25,0,30) -> 22.11 | R68: 36.25 | S68: =sigma_CT_line(R68,S$1,0,30) -> 18.37 | T68: 36.25 | U68: =sigma_CT_line(T68,U$1,0,30) -> 14.09 | V68: 36.25 | W68: =sigma_CT_line(V68,W$1,0,30) -> 8.76
P69: =P68+0.05 -> 36.3 | Q69: =sigma_CT_line(P69,25,0,30) -> 22.24 | R69: =R68+0.05 -> 36.3 | S69: =sigma_CT_line(R69,S$1,0,30) -> 18.52 | T69: 36.3 | U69: =sigma_CT_line(T69,U$1,0,30) -> 14.26 | V69: =V68+0.05 -> 36.3 | W69: =sigma_CT_line(V69,W$1,0,30) -> 9
P70: 36.35 | Q70: =sigma_CT_line(P70,25,0,30) -> 22.37 | R70: 36.35 | S70: =sigma_CT_line(R70,S$1,0,30) -> 18.67 | T70: 36.35 | U70: =sigma_CT_line(T70,U$1,0,30) -> 14.44 | V70: 36.35 | W70: =sigma_CT_line(V70,W$1,0,30) -> 9.24
P71: 36.4 | Q71: =sigma_CT_line(P71,25,0,30) -> 22.5 | R71: 36.4 | S71: =sigma_CT_line(R71,S$1,0,30) -> 18.82 | T71: 36.4 | U71: =sigma_CT_line(T71,U$1,0,30) -> 14.61 | V71: 36.4 | W71: =sigma_CT_line(V71,W$1,0,30) -> 9.47
P72: 36.45 | Q72: =sigma_CT_line(P72,25,0,30) -> 22.63 | R72: 36.45 | S72: =sigma_CT_line(R72,S$1,0,30) -> 18.97 | T72: 36.45 | U72: =sigma_CT_line(T72,U$1,0,30) -> 14.79 | V72: 36.45 | W72: =sigma_CT_line(V72,W$1,0,30) -> 9.7
P73: 36.5 | Q73: =sigma_CT_line(P73,25,0,30) -> 22.76 | R73: 36.5 | S73: =sigma_CT_line(R73,S$1,0,30) -> 19.11 | T73: 36.5 | U73: =sigma_CT_line(T73,U$1,0,30) -> 14.96 | V73: 36.5 | W73: =sigma_CT_line(V73,W$1,0,30) -> 9.92
P74: 36.55 | Q74: =sigma_CT_line(P74,25,0,30) -> 22.89 | R74: 36.55 | S74: =sigma_CT_line(R74,S$1,0,30) -> 19.26 | T74: 36.55 | U74: =sigma_CT_line(T74,U$1,0,30) -> 15.13 | V74: 36.55 | W74: =sigma_CT_line(V74,W$1,0,30) -> 10.14
P75: 36.6 | Q75: =sigma_CT_line(P75,25,0,30) -> 23.02 | R75: 36.6 | S75: =sigma_CT_line(R75,S$1,0,30) -> 19.4 | T75: 36.6 | U75: =sigma_CT_line(T75,U$1,0,30) -> 15.3 | V75: 36.6 | W75: =sigma_CT_line(V75,W$1,0,30) -> 10.36
P76: 36.65 | Q76: =sigma_CT_line(P76,25,0,30) -> 23.15 | R76: 36.65 | S76: =sigma_CT_line(R76,S$1,0,30) -> 19.54 | T76: 36.65 | U76: =sigma_CT_line(T76,U$1,0,30) -> 15.47 | V76: 36.65 | W76: =sigma_CT_line(V76,W$1,0,30) -> 10.58
P77: 36.7 | Q77: =sigma_CT_line(P77,25,0,30) -> 23.27 | R77: 36.7 | S77: =sigma_CT_line(R77,S$1,0,30) -> 19.69 | T77: 36.7 | U77: =sigma_CT_line(T77,U$1,0,30) -> 15.63 | V77: 36.7 | W77: =sigma_CT_line(V77,W$1,0,30) -> 10.79
P78: 36.75 | Q78: =sigma_CT_line(P78,25,0,30) -> 23.4 | R78: 36.75 | S78: =sigma_CT_line(R78,S$1,0,30) -> 19.83 | T78: 36.75 | U78: =sigma_CT_line(T78,U$1,0,30) -> 15.8 | V78: 36.75 | W78: =sigma_CT_line(V78,W$1,0,30) -> 11
P79: 36.8 | Q79: =sigma_CT_line(P79,25,0,30) -> 23.52 | R79: 36.8 | S79: =sigma_CT_line(R79,S$1,0,30) -> 19.97 | T79: 36.8 | U79: =sigma_CT_line(T79,U$1,0,30) -> 15.96 | V79: 36.8 | W79: =sigma_CT_line(V79,W$1,0,30) -> 11.21
P80: 36.85 | Q80: =sigma_CT_line(P80,25,0,30) -> 23.65 | R80: 36.85 | S80: =sigma_CT_line(R80,S$1,0,30) -> 20.11 | T80: 36.85 | U80: =sigma_CT_line(T80,U$1,0,30) -> 16.13 | V80: 36.85 | W80: =sigma_CT_line(V80,W$1,0,30) -> 11.41
P81: 36.9 | Q81: =sigma_CT_line(P81,25,0,30) -> 23.78 | R81: 36.9 | S81: =sigma_CT_line(R81,S$1,0,30) -> 20.25 | T81: 36.9 | U81: =sigma_CT_line(T81,U$1,0,30) -> 16.29 | V81: 36.9 | W81: =sigma_CT_line(V81,W$1,0,30) -> 11.61
P82: 36.95 | Q82: =sigma_CT_line(P82,25,0,30) -> 23.9 | R82: 36.95 | S82: =sigma_CT_line(R82,S$1,0,30) -> 20.39 | T82: 36.95 | U82: =sigma_CT_line(T82,U$1,0,30) -> 16.45 | V82: 36.95 | W82: =sigma_CT_line(V82,W$1,0,30) -> 11.81
P83: 37 | Q83: =sigma_CT_line(P83,25,0,30) -> 24.02 | R83: 37 | S83: =sigma_CT_line(R83,S$1,0,30) -> 20.53 | T83: 37 | U83: =sigma_CT_line(T83,U$1,0,30) -> 16.61 | V83: 37 | W83: =sigma_CT_line(V83,W$1,0,30) -> 12.01
P84: 37.05 | Q84: =sigma_CT_line(P84,25,0,30) -> 24.15 | R84: 37.05 | S84: =sigma_CT_line(R84,S$1,0,30) -> 20.66 | T84: 37.05 | U84: =sigma_CT_line(T84,U$1,0,30) -> 16.77 | V84: 37.05 | W84: =sigma_CT_line(V84,W$1,0,30) -> 12.2
P85: 37.1 | Q85: =sigma_CT_line(P85,25,0,30) -> 24.27 | R85: 37.1 | S85: =sigma_CT_line(R85,S$1,0,30) -> 20.8 | T85: 37.1 | U85: =sigma_CT_line(T85,U$1,0,30) -> 16.93 | V85: 37.1 | W85: =sigma_CT_line(V85,W$1,0,30) -> 12.4
P86: 37.15 | Q86: =sigma_CT_line(P86,25,0,30) -> 24.39 | R86: 37.15 | S86: =sigma_CT_line(R86,S$1,0,30) -> 20.94 | T86: 37.15 | U86: =sigma_CT_line(T86,U$1,0,30) -> 17.08 | V86: 37.15 | W86: =sigma_CT_line(V86,W$1,0,30) -> 12.59
P87: 37.2 | Q87: =sigma_CT_line(P87,25,0,30) -> 24.52 | R87: 37.2 | S87: =sigma_CT_line(R87,S$1,0,30) -> 21.07 | T87: 37.2 | U87: =sigma_CT_line(T87,U$1,0,30) -> 17.24 | V87: 37.2 | W87: =sigma_CT_line(V87,W$1,0,30) -> 12.78
P88: 37.25 | Q88: =sigma_CT_line(P88,25,0,30) -> 24.64 | R88: 37.25 | S88: =sigma_CT_line(R88,S$1,0,30) -> 21.21 | T88: 37.25 | U88: =sigma_CT_line(T88,U$1,0,30) -> 17.39 | V88: 37.25 | W88: =sigma_CT_line(V88,W$1,0,30) -> 12.97
P89: 37.3 | Q89: =sigma_CT_line(P89,25,0,30) -> 24.76 | R89: 37.3 | S89: =sigma_CT_line(R89,S$1,0,30) -> 21.34 | T89: 37.3 | U89: =sigma_CT_line(T89,U$1,0,30) -> 17.55 | V89: 37.3 | W89: =sigma_CT_line(V89,W$1,0,30) -> 13.15
P90: 37.35 | Q90: =sigma_CT_line(P90,25,0,30) -> 24.88 | R90: 37.35 | S90: =sigma_CT_line(R90,S$1,0,30) -> 21.48 | T90: 37.35 | U90: =sigma_CT_line(T90,U$1,0,30) -> 17.7 | V90: 37.35 | W90: =sigma_CT_line(V90,W$1,0,30) -> 13.34
P91: 37.4 | Q91: =sigma_CT_line(P91,25,0,30) -> 25 | R91: 37.4 | S91: =sigma_CT_line(R91,S$1,0,30) -> 21.61 | T91: 37.4 | U91: =sigma_CT_line(T91,U$1,0,30) -> 17.85 | V91: 37.4 | W91: =sigma_CT_line(V91,W$1,0,30) -> 13.52
P92: 37.45 | Q92: =sigma_CT_line(P92,25,0,30) -> 25.12 | R92: 37.45 | S92: =sigma_CT_line(R92,S$1,0,30) -> 21.74 | T92: 37.45 | U92: =sigma_CT_line(T92,U$1,0,30) -> 18 | V92: 37.45 | W92: =sigma_CT_line(V92,W$1,0,30) -> 13.7
P93: 37.5 | Q93: =sigma_CT_line(P93,25,0,30) -> 25.24 | R93: 37.5 | S93: =sigma_CT_line(R93,S$1,0,30) -> 21.87 | T93: 37.5 | U93: =sigma_CT_line(T93,U$1,0,30) -> 18.15 | V93: 37.5 | W93: =sigma_CT_line(V93,W$1,0,30) -> 13.88
P94: 37.55 | Q94: =sigma_CT_line(P94,25,0,30) -> 25.36 | R94: 37.55 | S94: =sigma_CT_line(R94,S$1,0,30) -> 22.01 | T94: 37.55 | U94: =sigma_CT_line(T94,U$1,0,30) -> 18.3 | V94: 37.55 | W94: =sigma_CT_line(V94,W$1,0,30) -> 14.05
P95: 37.6 | Q95: =sigma_CT_line(P95,25,0,30) -> 25.48 | R95: 37.6 | S95: =sigma_CT_line(R95,S$1,0,30) -> 22.14 | T95: 37.6 | U95: =sigma_CT_line(T95,U$1,0,30) -> 18.45 | V95: 37.6 | W95: =sigma_CT_line(V95,W$1,0,30) -> 14.23
P96: 37.65 | Q96: =sigma_CT_line(P96,25,0,30) -> 25.6 | R96: 37.65 | S96: =sigma_CT_line(R96,S$1,0,30) -> 22.27 | T96: 37.65 | U96: =sigma_CT_line(T96,U$1,0,30) -> 18.59 | V96: 37.65 | W96: =sigma_CT_line(V96,W$1,0,30) -> 14.4
P97: 37.7 | Q97: =sigma_CT_line(P97,25,0,30) -> 25.71 | R97: 37.7 | S97: =sigma_CT_line(R97,S$1,0,30) -> 22.4 | T97: 37.7 | U97: =sigma_CT_line(T97,U$1,0,30) -> 18.74 | V97: 37.7 | W97: =sigma_CT_line(V97,W$1,0,30) -> 14.58
P98: 37.75 | Q98: =sigma_CT_line(P98,25,0,30) -> 25.83 | R98: 37.75 | S98: =sigma_CT_line(R98,S$1,0,30) -> 22.53 | T98: 37.75 | U98: =sigma_CT_line(T98,U$1,0,30) -> 18.89 | V98: 37.75 | W98: =sigma_CT_line(V98,W$1,0,30) -> 14.75
P99: 37.8 | Q99: =sigma_CT_line(P99,25,0,30) -> 25.95 | R99: 37.8 | S99: =sigma_CT_line(R99,S$1,0,30) -> 22.65 | T99: 37.8 | U99: =sigma_CT_line(T99,U$1,0,30) -> 19.03 | V99: 37.8 | W99: =sigma_CT_line(V99,W$1,0,30) -> 14.92
P100: 37.85 | Q100: =sigma_CT_line(P100,25,0,30) -> 26.06 | R100: 37.85 | S100: =sigma_CT_line(R100,S$1,0,30) -> 22.78 | T100: 37.85 | U100: =sigma_CT_line(T100,U$1,0,30) -> 19.17 | V100: 37.85 | W100: =sigma_CT_line(V100,W$1,0,30) -> 15.09
P101: 37.9 | Q101: =sigma_CT_line(P101,25,0,30) -> 26.18 | R101: 37.9 | S101: =sigma_CT_line(R101,S$1,0,30) -> 22.91 | T101: 37.9 | U101: =sigma_CT_line(T101,U$1,0,30) -> 19.32 | V101: 37.9 | W101: =sigma_CT_line(V101,W$1,0,30) -> 15.25
P102: 37.95 | Q102: =sigma_CT_line(P102,25,0,30) -> 26.3 | R102: 37.95 | S102: =sigma_CT_line(R102,S$1,0,30) -> 23.04 | T102: 37.95 | U102: =sigma_CT_line(T102,U$1,0,30) -> 19.46 | V102: 37.95 | W102: =sigma_CT_line(V102,W$1,0,30) -> 15.42
P103: 38 | Q103: =sigma_CT_line(P103,25,0,30) -> 26.41 | R103: 38 | S103: =sigma_CT_line(R103,S$1,0,30) -> 23.16 | T103: 38 | U103: =sigma_CT_line(T103,U$1,0,30) -> 19.6 | V103: 38 | W103: =sigma_CT_line(V103,W$1,0,30) -> 15.59

Sheet longs_ref
A1: 0
A2: 4
A3: 8
A4: 12
A5: 16
A6: 20
A7: 24
A8: 28
A9: 32
A10: 36
A11: 40
A12: 44
A13: 48
A14: 52
A15: 56
A16: 60
A17: 64
A18: 68
A19: 72
A20: 76
A21: 80
A22: 84
A23: 88
A24: 92
A25: 96
A26: 100
A27: 104
A28: 108
A29: 112
A30: 116
A31: 120
A32: 124
A33: 128
A34: 132
A35: 136
A36: 140
A37: 144
A38: 148
A39: 152
A40: 156
A41: 160
A42: 164
A43: 168
A44: 172
A45: 176
A46: 180
A47: 184
A48: 188
A49: 192
A50: 196
A51: 200
A52: 204
A53: 208
A54: 212
A55: 216
A56: 220
A57: 224
A58: 228
A59: 232
A60: 236
A61: 240
A62: 244
A63: 248
A64: 252
A65: 256
A66: 260
A67: 264
A68: 268
A69: 272
A70: 276
A71: 280
A72: 284
A73: 288
A74: 292
A75: 296
A76: 300
A77: 304
A78: 308
A79: 312
A80: 316
A81: 320
A82: 324
A83: 328
A84: 332
A85: 336
A86: 340
A87: 344
A88: 348
A89: 352
A90: 356
A91: 360

Sheet lats_ref
A1: -86
A2: -82
A3: -78
A4: -74
A5: -70
A6: -66
A7: -62
A8: -58
A9: -54
A10: -50
A11: -46
A12: -42
A13: -38
A14: -34
A15: -30
A16: -26
A17: -22
A18: -18
A19: -14
A20: -10
A21: -6
A22: -2
A23: 2
A24: 6
A25: 10
A26: 14
A27: 18
A28: 22
A29: 26
A30: 30
A31: 34
A32: 38
A33: 42
A34: 46
A35: 50
A36: 54
A37: 58
A38: 62
A39: 66
A40: 70
A41: 74
A42: 78
A43: 82
A44: 86
A45: 90

Sheet ndepth_ref
AO1: 20 | AP1: 20 | AQ1: 21 | AR1: 20 | AS1: 20 | AT1: 19 | AU1: 18 | AV1: 20 | AW1: 22 | AX1: 30 | AY1: 34 | AZ1: 35 | BA1: 34 | BB1: 11 | BC1: 2 | BP1: 17 | BQ1: 17 | BR1: 17 | BS1: 17 | BT1: 17 | BU1: 17 | BV1: 17 | BW1: 17 | BX1: 17 | BY1: 17 | BZ1: 16 | CA1: 16 | CB1: 19 | CC1: 24 | CD1: 22 | CE1: 21 | CF1: 16 | CG1: 7
AO2: 20 | AP2: 20 | AQ2: 21 | AR2: 20 | AS2: 20 | AT2: 19 | AU2: 18 | AV2: 20 | AW2: 22 | AX2: 30 | AY2: 34 | AZ2: 35 | BA2: 34 | BB2: 11 | BC2: 2 | BP2: 17 | BQ2: 17 | BR2: 17 | BS2: 17 | BT2: 17 | BU2: 17 | BV2: 17 | BW2: 17 | BX2: 17 | BY2: 17 | BZ2: 16 | CA2: 16 | CB2: 19 | CC2: 24 | CD2: 22 | CE2: 21 | CF2: 16 | CG2: 7
AO3: 20 | AP3: 20 | AQ3: 21 | AR3: 20 | AS3: 20 | AT3: 19 | AU3: 18 | AV3: 20 | AW3: 22 | AX3: 30 | AY3: 34 | AZ3: 35 | BA3: 34 | BB3: 11 | BC3: 2 | BP3: 17 | BQ3: 17 | BR3: 17 | BS3: 17 | BT3: 17 | BU3: 17 | BV3: 17 | BW3: 17 | BX3: 17 | BY3: 17 | BZ3: 16 | CA3: 16 | CB3: 19 | CC3: 24 | CD3: 22 | CE3: 21 | CF3: 16 | CG3: 7
R4: 2 | S4: 2 | AO4: 20 | AP4: 20 | AQ4: 20 | AR4: 28 | AS4: 29 | AT4: 30 | AU4: 33 | AV4: 36 | AW4: 37 | AX4: 37 | AY4: 37 | AZ4: 38 | BA4: 38 | BB4: 37 | BC4: 37 | BD4: 37 | BE4: 38 | BF4: 35 | BG4: 33 | BH4: 31 | BI4: 31 | BJ4: 24 | BK4: 21 | BL4: 28 | BM4: 26 | BN4: 12 | BO4: 17 | BP4: 18 | BQ4: 17 | BR4: 17 | BS4: 17 | BT4: 15 | BU4: 2 | BV4: 2 | BW4: 17 | BX4: 18 | BY4: 22 | BZ4: 28 | CA4: 28 | CB4: 33 | CC4: 37 | CD4: 36 | CE4: 36 | CF4: 37 | CG4: 37 | CH4: 37 | CI4: 32 | CJ4: 15
A5: 39 | B5: 39 | C5: 37 | D5: 35 | E5: 37 | F5: 37 | G5: 37 | H5: 37 | I5: 35 | J5: 33 | K5: 34 | L5: 17 | R5: 13 | S5: 20 | T5: 21 | U5: 16 | AL5: 17 | AM5: 19 | AN5: 22 | AO5: 31 | AP5: 31 | AQ5: 33 | AR5: 35 | AS5: 35 | AT5: 36 | AU5: 37 | AV5: 37 | AW5: 37 | AX5: 38 | AY5: 38 | AZ5: 39 | BA5: 39 | BB5: 39 | BC5: 39 | BD5: 38 | BE5: 39 | BF5: 38 | BG5: 38 | BH5: 38 | BI5: 38 | BJ5: 39 | BK5: 38 | BL5: 38 | BM5: 39 | BN5: 39 | BO5: 39 | BP5: 39 | BQ5: 37 | BR5: 37 | BS5: 36 | BT5: 36 | BU5: 21 | BV5: 21 | BW5: 9 | BX5: 18 | BY5: 23 | BZ5: 34 | CA5: 36 | CB5: 37 | CC5: 38 | CD5: 38 | CE5: 39 | CF5: 39 | CG5: 40 | CH5: 40 | CI5: 40 | CJ5: 40 | CK5: 40 | CL5: 39 | CM5: 39
A6: 41 | B6: 40 | C6: 41 | D6: 42 | E6: 41 | F6: 41 | G6: 41 | H6: 41 | I6: 41 | J6: 41 | K6: 40 | L6: 39 | M6: 39 | N6: 39 | O6: 39 | P6: 38 | Q6: 37 | R6: 36 | S6: 35 | T6: 35 | U6: 35 | V6: 35 | W6: 35 | X6: 35 | Y6: 33 | Z6: 29 | AA6: 35 | AB6: 34 | AC6: 34 | AD6: 33 | AE6: 36 | AF6: 36 | AG6: 36 | AH6: 34 | AI6: 35 | AJ6: 35 | AK6: 36 | AL6: 36 | AM6: 35 | AN6: 35 | AO6: 33 | AP6: 33 | AQ6: 34 | AR6: 35 | AS6: 36 | AT6: 36 | AU6: 37 | AV6: 37 | AW6: 37 | AX6: 38 | AY6: 38 | AZ6: 39 | BA6: 39 | BB6: 39 | BC6: 39 | BD6: 39 | BE6: 40 | BF6: 40 | BG6: 41 | BH6: 41 | BI6: 41 | BJ6: 41 | BK6: 41 | BL6: 41 | BM6: 41 | BN6: 40 | BO6: 40 | BP6: 40 | BQ6: 39 | BR6: 39 | BS6: 39 | BT6: 37 | BU6: 36 | BV6: 34 | BW6: 19 | BX6: 18 | BY6: 28 | BZ6: 35 | CA6: 39 | CB6: 39 | CC6: 40 | CD6: 40 | CE6: 40 | CF6: 40 | CG6: 41 | CH6: 41 | CI6: 41 | CJ6: 41 | CK6: 41 | CL6: 41 | CM6: 41
A7: 42 | B7: 42 | C7: 43 | D7: 43 | E7: 43 | F7: 43 | G7: 42 | H7: 43 | I7: 42 | J7: 42 | K7: 42 | L7: 42 | M7: 42 | N7: 42 | O7: 41 | P7: 41 | Q7: 40 | R7: 39 | S7: 38 | T7: 37 | U7: 36 | V7: 37 | W7: 38 | X7: 38 | Y7: 38 | Z7: 39 | AA7: 39 | AB7: 38 | AC7: 39 | AD7: 39 | AE7: 39 | AF7: 39 | AG7: 40 | AH7: 40 | AI7: 39 | AJ7: 39 | AK7: 38 | AL7: 37 | AM7: 36 | AN7: 36 | AO7: 37 | AP7: 38 | AQ7: 40 | AR7: 42 | AS7: 41 | AT7: 40 | AU7: 40 | AV7: 39 | AW7: 39 | AX7: 38 | AY7: 37 | AZ7: 36 | BA7: 37 | BB7: 38 | BC7: 39 | BD7: 40 | BE7: 41 | BF7: 40 | BG7: 41 | BH7: 42 | BI7: 41 | BJ7: 41 | BK7: 41 | BL7: 41 | BM7: 42 | BN7: 42 | BO7: 42 | BP7: 41 | BQ7: 41 | BR7: 41 | BS7: 41 | BT7: 40 | BU7: 39 | BV7: 38 | BW7: 38 | BX7: 40 | BY7: 40 | BZ7: 37 | CA7: 39 | CB7: 41 | CC7: 40 | CD7: 40 | CE7: 40 | CF7: 44 | CG7: 45 | CH7: 41 | CI7: 41 | CJ7: 42 | CK7: 42 | CL7: 42 | CM7: 42
A8: 43 | B8: 43 | C8: 43 | D8: 43 | E8: 43 | F8: 42 | G8: 42 | H8: 43 | I8: 43 | J8: 42 | K8: 42 | L8: 42 | M8: 42 | N8: 42 | O8: 41 | P8: 41 | Q8: 41 | R8: 39 | S8: 38 | T8: 34 | U8: 39 | V8: 39 | W8: 39 | X8: 39 | Y8: 39 | Z8: 39 | AA8: 39 | AB8: 39 | AC8: 39 | AD8: 39 | AE8: 40 | AF8: 40 | AG8: 40 | AH8: 40 | AI8: 40 | AJ8: 39 | AK8: 38 | AL8: 37 | AM8: 36 | AN8: 42 | AO8: 43 | AP8: 41 | AQ8: 42 | AR8: 43 | AS8: 42 | AT8: 41 | AU8: 42 | AV8: 41 | AW8: 40 | AX8: 39 | AY8: 39 | AZ8: 37 | BA8: 35 | BB8: 34 | BC8: 35 | BD8: 37 | BE8: 39 | BF8: 39 | BG8: 39 | BH8: 39 | BI8: 41 | BJ8: 41 | BK8: 41 | BL8: 42 | BM8: 42 | BN8: 41 | BO8: 42 | BP8: 42 | BQ8: 43 | BR8: 42 | BS8: 42 | BT8: 41 | BU8: 39 | BV8: 38 | BW8: 38 | BX8: 39 | BY8: 40 | BZ8: 41 | CA8: 40 | CB8: 41 | CC8: 37 | CD8: 35 | CE8: 39 | CF8: 45 | CG8: 45 | CH8: 41 | CI8: 41 | CJ8: 41 | CK8: 41 | CL8: 41 | CM8: 43
A9: 38 | B9: 38 | C9: 41 | D9: 41 | E9: 42 | F9: 40 | G9: 42 | H9: 43 | I9: 43 | J9: 43 | K9: 39 | L9: 40 | M9: 41 | N9: 41 | O9: 41 | P9: 40 | Q9: 39 | R9: 39 | S9: 37 | T9: 34 | U9: 39 | V9: 39 | W9: 39 | X9: 39 | Y9: 38 | Z9: 37 | AA9: 37 | AB9: 38 | AC9: 39 | AD9: 39 | AE9: 39 | AF9: 40 | AG9: 40 | AH9: 39 | AI9: 38 | AJ9: 37 | AK9: 37 | AL9: 38 | AM9: 39 | AN9: 39 | AO9: 42 | AP9: 41 | AQ9: 42 | AR9: 43 | AS9: 42 | AT9: 41 | AU9: 43 | AV9: 43 | AW9: 41 | AX9: 41 | AY9: 40 | AZ9: 40 | BA9: 40 | BB9: 38 | BC9: 40 | BD9: 40 | BE9: 40 | BF9: 39 | BG9: 39 | BH9: 38 | BI9: 36 | BJ9: 35 | BK9: 37 | BL9: 38 | BM9: 39 | BN9: 39 | BO9: 42 | BP9: 42 | BQ9: 42 | BR9: 41 | BS9: 40 | BT9: 38 | BU9: 38 | BV9: 28 | BW9: 39 | BX9: 39 | BY9: 40 | BZ9: 40 | CA9: 41 | CB9: 39 | CC9: 36 | CD9: 38 | CE9: 45 | CF9: 45 | CG9: 45 | CH9: 41 | CI9: 41 | CJ9: 39 | CK9: 37 | CL9: 36 | CM9: 38
A10: 37 | B10: 38 | C10: 38 | D10: 40 | E10: 41 | F10: 41 | G10: 43 | H10: 44 | I10: 43 | J10: 41 | K10: 39 | L10: 37 | M10: 38 | N10: 39 | O10: 39 | P10: 39 | Q10: 39 | R10: 37 | S10: 31 | T10: 34 | U10: 37 | V10: 38 | W10: 38 | X10: 37 | Y10: 36 | Z10: 35 | AA10: 35 | AB10: 35 | AC10: 36 | AD10: 36 | AE10: 39 | AF10: 40 | AG10: 40 | AH10: 37 | AI10: 37 | AJ10: 38 | AK10: 38 | AL10: 38 | AM10: 39 | AN10: 39 | AO10: 42 | AP10: 41 | AQ10: 31 | AR10: 24 | AS10: 40 | AT10: 41 | AU10: 43 | AV10: 43 | AW10: 41 | AX10: 41 | AY10: 41 | AZ10: 41 | BA10: 41 | BB10: 40 | BC10: 40 | BD10: 41 | BE10: 41 | BF10: 41 | BG10: 38 | BH10: 37 | BI10: 37 | BJ10: 34 | BK10: 35 | BL10: 36 | BM10: 38 | BN10: 39 | BO10: 40 | BP10: 40 | BQ10: 40 | BR10: 39 | BS10: 38 | BT10: 37 | BU10: 7 | BV10: 9 | BW10: 13 | BX10: 31 | BY10: 44 | BZ10: 45 | CA10: 45 | CB10: 45 | CC10: 45 | CD10: 44 | CE10: 42 | CF10: 41 | CG10: 40 | CH10: 40 | CI10: 38 | CJ10: 37 | CK10: 37 | CL10: 37 | CM10: 37
A11: 40 | B11: 41 | C11: 40 | D11: 41 | E11: 41 | F11: 41 | G11: 43 | H11: 44 | I11: 43 | J11: 40 | K11: 38 | L11: 36 | M11: 36 | N11: 36 | O11: 39 | P11: 41 | Q11: 41 | R11: 38 | S11: 37 | T11: 35 | U11: 35 | V11: 36 | W11: 36 | X11: 35 | Y11: 34 | Z11: 36 | AA11: 36 | AB11: 37 | AC11: 38 | AD11: 38 | AE11: 39 | AF11: 40 | AG11: 43 | AH11: 41 | AI11: 40 | AJ11: 40 | AK11: 40 | AL11: 38 | AM11: 39 | AN11: 41 | AO11: 41 | AP11: 41 | AQ11: 38 | AR11: 28 | AS11: 33 | AT11: 40 | AU11: 41 | AV11: 41 | AW11: 43 | AX11: 43 | AY11: 42 | AZ11: 42 | BA11: 41 | BB11: 42 | BC11: 42 | BD11: 43 | BE11: 43 | BF11: 41 | BG11: 40 | BH11: 39 | BI11: 37 | BJ11: 36 | BK11: 33 | BL11: 35 | BM11: 38 | BN11: 38 | BO11: 38 | BP11: 38 | BQ11: 39 | BR11: 38 | BS11: 36 | BT11: 36 | BU11: 2 | BV11: 8 | BW11: 9 | BX11: 35 | BY11: 45 | BZ11: 45 | CA11: 45 | CB11: 45 | CC11: 45 | CD11: 44 | CE11: 42 | CF11: 41 | CG11: 41 | CH11: 39 | CI11: 37 | CJ11: 37 | CK11: 37 | CL11: 39 | CM11: 40
A12: 41 | B12: 42 | C12: 42 | D12: 43 | E12: 43 | F12: 41 | G12: 42 | H12: 43 | I12: 43 | J12: 41 | K12: 41 | L12: 38 | M12: 38 | N12: 39 | O12: 41 | P12: 42 | Q12: 41 | R12: 39 | S12: 38 | T12: 36 | U12: 34 | V12: 34 | W12: 35 | X12: 35 | Y12: 37 | Z12: 38 | AA12: 39 | AB12: 39 | AC12: 39 | AD12: 40 | AE12: 41 | AF12: 43 | AG12: 43 | AH12: 43 | AI12: 43 | AJ12: 42 | AK12: 40 | AL12: 39 | AM12: 39 | AN12: 40 | AO12: 41 | AP12: 40 | AQ12: 37 | AR12: 26 | AS12: 33 | AT12: 36 | AU12: 39 | AV12: 40 | AW12: 43 | AX12: 43 | AY12: 42 | AZ12: 41 | BA12: 41 | BB12: 42 | BC12: 43 | BD12: 43 | BE12: 42 | BF12: 41 | BG12: 40 | BH12: 39 | BI12: 40 | BJ12: 37 | BK12: 34 | BL12: 35 | BM12: 37 | BN12: 39 | BO12: 38 | BP12: 38 | BQ12: 37 | BR12: 38 | BS12: 38 | BT12: 38 | BU12: 15 | BW12: 9 | BX12: 31 | BY12: 43 | BZ12: 44 | CA12: 44 | CB12: 41 | CC12: 42 | CD12: 42 | CE12: 42 | CF12: 40 | CG12: 40 | CH12: 38 | CI12: 35 | CJ12: 39 | CK12: 39 | CL12: 40 | CM12: 41
A13: 41 | B13: 42 | C13: 42 | D13: 42 | E13: 41 | F13: 41 | G13: 42 | H13: 39 | I13: 40 | J13: 44 | K13: 42 | L13: 40 | M13: 38 | N13: 38 | O13: 41 | P13: 43 | Q13: 42 | R13: 39 | S13: 39 | T13: 37 | U13: 35 | V13: 36 | W13: 36 | X13: 37 | Y13: 39 | Z13: 39 | AA13: 44 | AB13: 43 | AC13: 42 | AD13: 42 | AE13: 44 | AF13: 44 | AG13: 43 | AH13: 43 | AI13: 43 | AJ13: 43 | AK13: 35 | AL13: 38 | AM13: 40 | AN13: 41 | AO13: 41 | AP13: 39 | AQ13: 34 | AR13: 30 | AS13: 31 | AT13: 45 | AU13: 44 | AV13: 43 | AW13: 42 | AX13: 42 | AY13: 42 | AZ13: 43 | BA13: 43 | BB13: 43 | BC13: 42 | BD13: 42 | BE13: 41 | BF13: 41 | BG13: 40 | BH13: 39 | BI13: 39 | BJ13: 38 | BK13: 34 | BL13: 36 | BM13: 37 | BN13: 39 | BO13: 37 | BP13: 36 | BQ13: 37 | BR13: 38 | BS13: 38 | BT13: 39 | BU13: 38 | BW13: 2 | BX13: 7 | BY13: 38 | BZ13: 42 | CA13: 42 | CB13: 41 | CC13: 41 | CD13: 41 | CE13: 41 | CF13: 39 | CG13: 38 | CH13: 37 | CI13: 35 | CJ13: 37 | CK13: 38 | CL13: 41 | CM13: 41
A14: 41 | B14: 42 | C14: 42 | D14: 41 | E14: 40 | F14: 34 | G14: 39 | H14: 39 | I14: 39 | J14: 43 | K14: 42 | L14: 40 | M14: 38 | N14: 42 | O14: 43 | P14: 42 | Q14: 41 | R14: 40 | S14: 40 | T14: 37 | U14: 37 | V14: 36 | W14: 37 | X14: 39 | Y14: 39 | Z14: 45 | AA14: 45 | AB14: 43 | AC14: 42 | AD14: 42 | AE14: 42 | AF14: 43 | AG14: 43 | AH14: 43 | AI14: 35 | AJ14: 5 | AL14: 4 | AM14: 39 | AN14: 40 | AO14: 40 | AP14: 34 | AQ14: 36 | AR14: 37 | AS14: 37 | AT14: 45 | AU14: 45 | AV14: 44 | AW14: 43 | AX14: 43 | AY14: 43 | AZ14: 43 | BA14: 43 | BB14: 42 | BC14: 41 | BD14: 41 | BE14: 40 | BF14: 39 | BG14: 39 | BH14: 39 | BI14: 38 | BJ14: 37 | BK14: 34 | BL14: 35 | BM14: 36 | BN14: 36 | BO14: 36 | BP14: 37 | BQ14: 37 | BR14: 37 | BS14: 38 | BT14: 40 | BU14: 41 | BX14: 2 | BY14: 6 | BZ14: 38 | CA14: 40 | CB14: 41 | CC14: 40 | CD14: 40 | CE14: 39 | CF14: 39 | CG14: 40 | CH14: 37 | CI14: 36 | CJ14: 37 | CK14: 38 | CL14: 40 | CM14: 41
A15: 40 | B15: 43 | C15: 41 | D15: 40 | E15: 34 | F15: 8 | H15: 31 | I15: 35 | J15: 41 | K15: 41 | L15: 39 | M15: 40 | N15: 42 | O15: 42 | P15: 42 | Q15: 41 | R15: 40 | S15: 40 | T15: 39 | U15: 39 | V15: 39 | W15: 38 | X15: 40 | Y15: 39 | Z15: 39 | AA15: 42 | AB15: 44 | AC15: 44 | AD15: 39 | AG15: 6 | AH15: 6 | AI15: 3 | AM15: 39 | AN15: 40 | AO15: 37 | AP15: 35 | AQ15: 38 | AR15: 37 | AS15: 39 | AT15: 45 | AU15: 45 | AV15: 44 | AW15: 43 | AX15: 43 | AY15: 42 | AZ15: 43 | BA15: 42 | BB15: 41 | BC15: 41 | BD15: 40 | BE15: 39 | BF15: 38 | BG15: 37 | BH15: 36 | BI15: 36 | BJ15: 35 | BK15: 33 | BL15: 34 | BM15: 35 | BN15: 35 | BO15: 36 | BP15: 36 | BQ15: 36 | BR15: 37 | BS15: 37 | BT15: 39 | BU15: 44 | BZ15: 12 | CA15: 36 | CB15: 37 | CC15: 39 | CD15: 38 | CE15: 39 | CF15: 41 | CG15: 41 | CH15: 39 | CI15: 37 | CJ15: 37 | CK15: 39 | CL15: 40 | CM15: 40
A16: 43 | B16: 42 | C16: 41 | D16: 40 | E16: 27 | I16: 27 | J16: 40 | K16: 40 | L16: 38 | M16: 41 | N16: 42 | O16: 42 | P16: 42 | Q16: 42 | R16: 39 | S16: 37 | T16: 39 | U16: 39 | V16: 40 | W16: 41 | X16: 42 | Y16: 43 | Z16: 44 | AA16: 43 | AB16: 44 | AC16: 44 | AD16: 3 | AM16: 36 | AN16: 40 | AO16: 35 | AP16: 35 | AQ16: 35 | AR16: 39 | AS16: 39 | AT16: 38 | AU16: 45 | AV16: 44 | AW16: 45 | AX16: 43 | AY16: 42 | AZ16: 42 | BA16: 42 | BB16: 40 | BC16: 39 | BD16: 39 | BE16: 38 | BF16: 37 | BG16: 37 | BH16: 36 | BI16: 35 | BJ16: 35 | BK16: 35 | BL16: 36 | BM16: 36 | BN16: 36 | BO16: 36 | BP16: 37 | BQ16: 37 | BR16: 37 | BS16: 39 | BT16: 39 | BU16: 45 | CA16: 30 | CB16: 34 | CC16: 38 | CD16: 39 | CE16: 42 | CF16: 43 | CG16: 43 | CH16: 42 | CI16: 39 | CJ16: 37 | CK16: 41 | CL16: 43 | CM16: 43
A17: 43 | B17: 42 | C17: 40 | D17: 37 | E17: 11 | J17: 34 | K17: 36 | L17: 34 | M17: 39 | N17: 42 | O17: 41 | P17: 41 | Q17: 38 | R17: 38 | S17: 40 | T17: 40 | U17: 42 | V17: 41 | W17: 41 | X17: 42 | Y17: 45 | Z17: 45 | AA17: 45 | AB17: 43 | AC17: 41 | AD17: 25 | AE17: 4 | AL17: 6 | AM17: 31 | AN17: 37 | AO17: 35 | AP17: 36 | AQ17: 43 | AR17: 42 | AS17: 39 | AT17: 37 | AU17: 45 | AV17: 45 | AW17: 44 | AX17: 43 | AY17: 41 | AZ17: 40 | BA17: 39 | BB17: 40 | BC17: 41 | BD17: 39 | BE17: 37 | BF17: 37 | BG17: 37 | BH17: 36 | BI17: 35 | BJ17: 34 | BK17: 37 | BL17: 36 | BM17: 37 | BN17: 37 | BO17: 37 | BP17: 38 | BQ17: 38 | BR17: 39 | BS17: 39 | BT17: 41 | BU17: 45 | CA17: 2 | CB17: 23 | CC17: 35 | CD17: 40 | CE17: 42 | CF17: 43 | CG17: 44 | CH17: 43 | CI17: 39 | CJ17: 39 | CK17: 41 | CL17: 43 | CM17: 43
A18: 43 | B18: 43 | C18: 42 | D18: 37 | J18: 29 | K18: 32 | L18: 33 | M18: 38 | N18: 40 | O18: 40 | P18: 39 | Q18: 37 | R18: 38 | S18: 41 | T18: 41 | U18: 43 | V18: 43 | W18: 42 | X18: 43 | Y18: 44 | Z18: 45 | AA18: 45 | AB18: 45 | AC18: 43 | AD18: 44 | AE18: 44 | AF18: 6 | AI18: 3 | AJ18: 6 | AK18: 26 | AL18: 28 | AM18: 36 | AN18: 37 | AO18: 39 | AP18: 40 | AQ18: 43 | AR18: 34 | AS18: 36 | AT18: 36 | AU18: 33 | AV18: 45 | AW18: 44 | AX18: 43 | AY18: 41 | AZ18: 40 | BA18: 39 | BB18: 39 | BC18: 40 | BD18: 39 | BE18: 39 | BF18: 37 | BG18: 37 | BH18: 36 | BI18: 35 | BJ18: 35 | BK18: 35 | BL18: 37 | BM18: 37 | BN18: 37 | BO18: 38 | BP18: 38 | BQ18: 39 | BR18: 39 | BS18: 39 | BT18: 41 | BU18: 45 | CC18: 32 | CD18: 39 | CE18: 40 | CF18: 43 | CG18: 43 | CH18: 43 | CI18: 39 | CJ18: 37 | CK18: 41 | CL18: 42 | CM18: 43
A19: 44 | B19: 42 | C19: 42 | D19: 37 | K19: 33 | L19: 36 | M19: 35 | N19: 40 | O19: 40 | P19: 37 | Q19: 37 | R19: 37 | S19: 43 | T19: 42 | U19: 41 | V19: 43 | W19: 43 | X19: 44 | Y19: 45 | Z19: 45 | AA19: 45 | AB19: 45 | AC19: 43 | AD19: 44 | AE19: 44 | AF19: 31 | AG19: 8 | AH19: 5 | AI19: 6 | AJ19: 6 | AK19: 34 | AL19: 39 | AM19: 39 | AN19: 39 | AO19: 39 | AP19: 44 | AQ19: 43 | AR19: 36 | AS19: 36 | AT19: 35 | AU19: 42 | AV19: 45 | AW19: 43 | AX19: 43 | AY19: 41 | AZ19: 41 | BA19: 41 | BB19: 41 | BC19: 41 | BD19: 39 | BE19: 39 | BF19: 38 | BG19: 37 | BH19: 37 | BI19: 36 | BJ19: 35 | BK19: 35 | BL19: 36 | BM19: 38 | BN19: 37 | BO19: 37 | BP19: 38 | BQ19: 39 | BR19: 40 | BS19: 41 | BT19: 41 | CC19: 34 | CD19: 39 | CE19: 42 | CF19: 43 | CG19: 43 | CH19: 43 | CI19: 39 | CJ19: 37 | CK19: 39 | CL19: 43 | CM19: 44
A20: 43 | B20: 43 | C20: 42 | D20: 38 | K20: 34 | L20: 37 | M20: 40 | N20: 40 | O20: 39 | P20: 37 | Q20: 37 | R20: 42 | S20: 42 | T20: 42 | U20: 41 | V20: 43 | W20: 43 | X20: 44 | Y20: 43 | Z20: 43 | AA20: 45 | AB20: 45 | AC20: 45 | AD20: 45 | AE20: 43 | AF20: 39 | AG20: 33 | AH20: 26 | AI20: 10 | AJ20: 6 | AK20: 32 | AL20: 37 | AM20: 41 | AN20: 39 | AO20: 43 | AP20: 44 | AQ20: 42 | AR20: 42 | AS20: 41 | AT20: 43 | AU20: 43 | AV20: 41 | AW20: 43 | AX20: 42 | AY20: 43 | AZ20: 43 | BA20: 42 | BB20: 42 | BC20: 41 | BD20: 39 | BE20: 39 | BF20: 39 | BG20: 39 | BH20: 39 | BI20: 38 | BJ20: 38 | BK20: 36 | BL20: 36 | BM20: 39 | BN20: 38 | BO20: 37 | BP20: 37 | BQ20: 39 | BR20: 39 | BS20: 41 | BT20: 26 | CD20: 40 | CE20: 42 | CF20: 43 | CG20: 45 | CH20: 45 | CI20: 39 | CJ20: 36 | CK20: 40 | CL20: 43 | CM20: 43
A21: 44 | B21: 44 | C21: 40 | D21: 37 | K21: 34 | L21: 39 | M21: 41 | N21: 42 | O21: 37 | P21: 39 | Q21: 37 | R21: 37 | S21: 41 | T21: 42 | U21: 42 | V21: 41 | W21: 43 | X21: 42 | Y21: 42 | Z21: 45 | AA21: 45 | AB21: 33 | AC21: 6 | AD21: 26 | AE21: 37 | AF21: 39 | AG21: 39 | AH21: 38 | AI21: 32 | AJ21: 5 | AK21: 30 | AL21: 40 | AM21: 41 | AN21: 40 | AO21: 36 | AP21: 37 | AQ21: 40 | AR21: 42 | AS21: 43 | AT21: 44 | AU21: 44 | AV21: 45 | AW21: 43 | AX21: 41 | AY21: 43 | AZ21: 42 | BA21: 42 | BB21: 42 | BC21: 41 | BD21: 39 | BE21: 39 | BF21: 39 | BG21: 39 | BH21: 39 | BI21: 38 | BJ21: 38 | BK21: 37 | BL21: 36 | BM21: 38 | BN21: 38 | BO21: 37 | BP21: 37 | BQ21: 37 | BR21: 39 | BS21: 39 | CD21: 37 | CE21: 42 | CF21: 43 | CG21: 43 | CH21: 43 | CI21: 39 | CJ21: 36 | CK21: 40 | CL21: 43 | CM21: 44
A22: 41 | B22: 41 | C22: 39 | D22: 27 | K22: 33 | L22: 39 | M22: 41 | N22: 41 | O22: 40 | P22: 39 | Q22: 39 | R22: 37 | S22: 39 | T22: 41 | U22: 41 | V22: 41 | W22: 40 | X22: 40 | Y22: 42 | Z22: 43 | AA22: 15 | AB22: 6 | AC22: 5 | AD22: 23 | AE22: 29 | AF22: 39 | AG22: 39 | AH22: 37 | AI22: 40 | AJ22: 38 | AK22: 38 | AL22: 43 | AM22: 43 | AN22: 36 | AO22: 37 | AP22: 39 | AQ22: 39 | AR22: 40 | AS22: 42 | AT22: 44 | AU22: 44 | AV22: 43 | AW22: 45 | AX22: 43 | AY22: 41 | AZ22: 42 | BA22: 42 | BB22: 40 | BC22: 39 | BD22: 39 | BE22: 39 | BF22: 39 | BG22: 39 | BH22: 39 | BI22: 38 | BJ22: 38 | BK22: 37 | BL22: 36 | BM22: 35 | BN22: 35 | BO22: 35 | BP22: 36 | BQ22: 35 | BR22: 38 | BS22: 38 | BZ22: 2 | CA22: 6 | CB22: 36 | CC22: 38 | CD22: 39 | CE22: 40 | CF22: 43 | CG22: 44 | CH22: 44 | CI22: 40 | CJ22: 40 | CK22: 41 | CL22: 41 | CM22: 41
A23: 41 | B23: 39 | C23: 35 | L23: 37 | M23: 41 | N23: 41 | O23: 41 | P23: 40 | Q23: 39 | R23: 37 | S23: 37 | T23: 39 | U23: 39 | V23: 39 | W23: 39 | X23: 40 | Y23: 42 | Z23: 17 | AA23: 7 | AB23: 8 | AC23: 7 | AD23: 19 | AE23: 42 | AF23: 42 | AG23: 44 | AH23: 40 | AI23: 41 | AJ23: 38 | AK23: 39 | AL23: 43 | AM23: 42 | AN23: 35 | AO23: 37 | AP23: 39 | AQ23: 40 | AR23: 40 | AS23: 44 | AT23: 43 | AU23: 42 | AV23: 43 | AW23: 43 | AX23: 42 | AY23: 42 | AZ23: 40 | BA23: 41 | BB23: 41 | BC23: 40 | BD23: 39 | BE23: 39 | BF23: 39 | BG23: 39 | BH23: 39 | BI23: 39 | BJ23: 37 | BK23: 37 | BL23: 36 | BM23: 35 | BN23: 35 | BO23: 35 | BP23: 34 | BQ23: 34 | BR23: 35 | BS23: 36 | BT23: 28 | BZ23: 4 | CA23: 35 | CB23: 38 | CC23: 39 | CD23: 39 | CE23: 39 | CF23: 38 | CG23: 40 | CH23: 41 | CI23: 42 | CJ23: 41 | CK23: 41 | CL23: 41 | CM23: 41
A24: 39 | B24: 37 | C24: 7 | M24: 36 | N24: 41 | O24: 42 | P24: 39 | Q24: 39 | R24: 40 | S24: 38 | T24: 35 | U24: 38 | V24: 37 | W24: 37 | X24: 39 | Y24: 33 | Z24: 12 | AA24: 7 | AB24: 27 | AC24: 32 | AD24: 32 | AE24: 40 | AF24: 42 | AG24: 45 | AH24: 43 | AI24: 45 | AJ24: 39 | AK24: 38 | AL24: 41 | AM24: 41 | AN24: 40 | AO24: 41 | AP24: 41 | AQ24: 40 | AR24: 42 | AS24: 45 | AT24: 44 | AU24: 44 | AV24: 45 | AW24: 45 | AX24: 42 | AY24: 39 | AZ24: 42 | BA24: 41 | BB24: 41 | BC24: 42 | BD24: 41 | BE24: 40 | BF24: 40 | BG24: 40 | BH24: 39 | BI24: 38 | BJ24: 38 | BK24: 38 | BL24: 37 | BM24: 36 | BN24: 35 | BO24: 36 | BP24: 36 | BQ24: 35 | BR24: 36 | BS24: 36 | BT24: 36 | BX24: 8 | BY24: 29 | BZ24: 38 | CA24: 38 | CB24: 40 | CC24: 40 | CD24: 39 | CE24: 40 | CF24: 40 | CG24: 40 | CH24: 40 | CI24: 40 | CJ24: 40 | CK24: 36 | CL24: 35 | CM24: 39
L25: 28 | M25: 29 | N25: 41 | O25: 41 | P25: 39 | Q25: 39 | R25: 39 | S25: 39 | T25: 32 | U25: 35 | V25: 36 | W25: 36 | X25: 35 | Y25: 34 | Z25: 7 | AA25: 7 | AB25: 29 | AC25: 34 | AD25: 34 | AE25: 40 | AF25: 45 | AG25: 45 | AH25: 45 | AI25: 45 | AJ25: 45 | AK25: 45 | AL25: 45 | AM25: 45 | AN25: 44 | AO25: 43 | AP25: 41 | AQ25: 40 | AR25: 43 | AS25: 45 | AT25: 45 | AU25: 45 | AV25: 44 | AW25: 42 | AX25: 42 | AY25: 43 | AZ25: 43 | BA25: 42 | BB25: 42 | BC25: 42 | BD25: 41 | BE25: 41 | BF25: 41 | BG25: 40 | BH25: 40 | BI25: 38 | BJ25: 38 | BK25: 37 | BL25: 37 | BM25: 35 | BN25: 37 | BO25: 39 | BP25: 37 | BQ25: 40 | BR25: 36 | BS25: 35 | BT25: 35 | BU25: 30 | BV25: 28 | BW25: 36 | BX25: 33 | BY25: 40 | BZ25: 41 | CA25: 41 | CB25: 41 | CC25: 41 | CD25: 44 | CE25: 45 | CF25: 44 | CG25: 43 | CH25: 41 | CI25: 39 | CJ25: 3
K26: 27 | L26: 26 | M26: 31 | N26: 35 | O26: 39 | P26: 39 | Q26: 38 | R26: 38 | S26: 38 | T26: 27 | U26: 35 | V26: 34 | W26: 34 | X26: 34 | Y26: 31 | Z26: 6 | AA26: 4 | AB26: 28 | AC26: 34 | AD26: 34 | AE26: 34 | AF26: 45 | AG26: 45 | AH26: 44 | AI26: 42 | AJ26: 41 | AK26: 45 | AL26: 45 | AM26: 45 | AN26: 45 | AO26: 44 | AP26: 43 | AQ26: 43 | AR26: 44 | AS26: 44 | AT26: 44 | AU26: 44 | AV26: 44 | AW26: 43 | AX26: 44 | AY26: 44 | AZ26: 44 | BA26: 44 | BB26: 44 | BC26: 44 | BD26: 43 | BE26: 41 | BF26: 41 | BG26: 40 | BH26: 40 | BI26: 39 | BJ26: 38 | BK26: 38 | BL26: 38 | BM26: 35 | BN26: 40 | BO26: 44 | BP26: 42 | BQ26: 40 | BR26: 27 | BS26: 36 | BT26: 37 | BU26: 38 | BV26: 41 | BW26: 40 | BX26: 43 | BY26: 43 | BZ26: 42 | CA26: 41 | CB26: 40 | CC26: 43 | CD26: 45 | CE26: 45 | CF26: 44 | CG26: 42 | CH26: 40 | CI26: 34
J27: 19 | K27: 28 | L27: 8 | N27: 31 | O27: 37 | P27: 37 | Q27: 36 | R27: 36 | S27: 35 | U27: 21 | V27: 33 | W27: 32 | X27: 31 | Y27: 20 | AA27: 3 | AB27: 24 | AC27: 34 | AD27: 34 | AE27: 34 | AF27: 44 | AG27: 45 | AH27: 45 | AI27: 44 | AJ27: 42 | AK27: 40 | AL27: 45 | AM27: 45 | AN27: 45 | AO27: 44 | AP27: 43 | AQ27: 43 | AR27: 43 | AS27: 42 | AT27: 42 | AU27: 43 | AV27: 43 | AW27: 43 | AX27: 43 | AY27: 44 | AZ27: 42 | BA27: 43 | BB27: 43 | BC27: 43 | BD27: 43 | BE27: 43 | BF27: 42 | BG27: 41 | BH27: 40 | BI27: 38 | BJ27: 37 | BK27: 36 | BL27: 38 | BM27: 38 | BN27: 40 | BO27: 32 | BP27: 27 | BQ27: 39 | BR27: 41 | BS27: 45 | BT27: 43 | BU27: 38 | BV27: 45 | BW27: 45 | BX27: 45 | BY27: 44 | BZ27: 43 | CA27: 40 | CB27: 41 | CC27: 44 | CD27: 45 | CE27: 43 | CF27: 41 | CG27: 39 | CH27: 36 | CI27: 32
J28: 28 | K28: 28 | O28: 22 | P28: 35 | Q28: 36 | R28: 33 | S28: 8 | W28: 25 | X28: 23 | AB28: 6 | AC28: 13 | AD28: 32 | AE28: 39 | AF28: 45 | AG28: 45 | AH28: 45 | AI28: 44 | AJ28: 42 | AK28: 45 | AL28: 45 | AM28: 44 | AN28: 44 | AO28: 43 | AP28: 45 | AQ28: 45 | AR28: 44 | AS28: 43 | AT28: 43 | AU28: 43 | AV28: 42 | AW28: 41 | AX28: 41 | AY28: 40 | AZ28: 43 | BA28: 43 | BB28: 44 | BC28: 44 | BD28: 43 | BE28: 42 | BF28: 41 | BG28: 40 | BH28: 40 | BI28: 38 | BJ28: 37 | BK28: 36 | BL28: 37 | BM28: 30 | BN28: 2 | BO28: 34 | BP28: 36 | BQ28: 38 | BR28: 39 | BS28: 38 | BT28: 40 | BU28: 42 | BV28: 45 | BW28: 45 | BX28: 45 | BY28: 45 | BZ28: 45 | CA28: 40 | CB28: 40 | CC28: 44 | CD28: 44 | CE28: 45 | CF28: 43 | CG28: 42 | CH28: 39 | CI28: 31
I29: 22 | J29: 25 | K29: 6 | M29: 5 | N29: 7 | O29: 31 | P29: 34 | Q29: 34 | R29: 12 | AD29: 2 | AE29: 32 | AF29: 34 | AG29: 45 | AH29: 43 | AI29: 43 | AJ29: 42 | AK29: 45 | AL29: 45 | AM29: 45 | AN29: 45 | AO29: 45 | AP29: 45 | AQ29: 45 | AR29: 45 | AS29: 45 | AT29: 43 | AU29: 42 | AV29: 42 | AW29: 42 | AX29: 41 | AY29: 43 | AZ29: 44 | BA29: 43 | BB29: 42 | BC29: 42 | BD29: 42 | BE29: 41 | BF29: 40 | BG29: 40 | BH29: 39 | BI29: 38 | BJ29: 38 | BK29: 36 | BL29: 32 | BN29: 2 | BO29: 34 | BP29: 36 | BQ29: 36 | BR29: 34 | BS29: 28 | BT29: 42 | BU29: 42 | BV29: 43 | BW29: 44 | BX29: 45 | BY29: 45 | BZ29: 45 | CA29: 40 | CB29: 40 | CC29: 43 | CD29: 45 | CE29: 45 | CF29: 44 | CG29: 43 | CH29: 40 | CI29: 36 | CJ29: 28
E30: 27 | F30: 27 | G30: 28 | H30: 32 | I30: 22 | J30: 22 | M30: 6 | N30: 6 | AE30: 5 | AF30: 9 | AG30: 25 | AH30: 42 | AI30: 41 | AJ30: 45 | AK30: 45 | AL30: 45 | AM30: 45 | AN30: 45 | AO30: 45 | AP30: 45 | AQ30: 45 | AR30: 45 | AS30: 44 | AT30: 42 | AU30: 44 | AV30: 44 | AW30: 44 | AX30: 44 | AY30: 44 | AZ30: 45 | BA30: 44 | BB30: 44 | BC30: 44 | BD30: 43 | BE30: 41 | BF30: 40 | BG30: 39 | BH30: 38 | BI30: 38 | BJ30: 38 | BK30: 20 | BO30: 7 | BP30: 17 | BQ30: 32 | BR30: 22 | BS30: 22 | BT30: 42 | BU30: 42 | BV30: 42 | BW30: 42 | BX30: 44 | BY30: 45 | BZ30: 44 | CA30: 42 | CB30: 39 | CC30: 40 | CD30: 41 | CE30: 41 | CF30: 42 | CG30: 42 | CH30: 41 | CI30: 39 | CJ30: 37 | CK30: 21
A31: 30 | B31: 4 | C31: 4 | D31: 20 | E31: 36 | F31: 36 | G31: 36 | H31: 38 | I31: 32 | J31: 29 | AE31: 5 | AF31: 8 | AG31: 18 | AH31: 35 | AI31: 40 | AJ31: 45 | AK31: 45 | AL31: 45 | AM31: 45 | AN31: 44 | AO31: 44 | AP31: 45 | AQ31: 45 | AR31: 44 | AS31: 42 | AT31: 42 | AU31: 44 | AV31: 45 | AW31: 45 | AX31: 44 | AY31: 45 | AZ31: 44 | BA31: 44 | BB31: 43 | BC31: 43 | BD31: 43 | BE31: 42 | BF31: 41 | BG31: 41 | BH31: 39 | BI31: 37 | BJ31: 27 | BS31: 17 | BT31: 40 | BU31: 42 | BV31: 42 | BW31: 41 | BX31: 42 | BY31: 42 | BZ31: 43 | CA31: 43 | CB31: 41 | CC31: 37 | CD31: 36 | CE31: 37 | CF31: 41 | CG31: 42 | CH31: 42 | CI31: 41 | CJ31: 40 | CK31: 38 | CL31: 28 | CM31: 30
A32: 32 | B32: 32 | C32: 32 | D32: 32 | E32: 36 | F32: 36 | G32: 33 | H32: 38 | I32: 31 | J32: 21 | AE32: 6 | AF32: 7 | AG32: 19 | AH32: 18 | AI32: 19 | AJ32: 32 | AK32: 45 | AL32: 45 | AM32: 44 | AN32: 43 | AO32: 43 | AP32: 43 | AQ32: 45 | AR32: 45 | AS32: 43 | AT32: 44 | AU32: 45 | AV32: 44 | AW32: 45 | AX32: 45 | AY32: 45 | AZ32: 45 | BA32: 44 | BB32: 42 | BC32: 44 | BD32: 44 | BE32: 42 | BF32: 41 | BG32: 40 | BH32: 39 | BI32: 27 | BJ32: 6 | BT32: 32 | BU32: 38 | BV32: 41 | BW32: 41 | BX32: 41 | BY32: 42 | BZ32: 42 | CA32: 42 | CB32: 41 | CC32: 41 | CD32: 39 | CE32: 35 | CF32: 36 | CG32: 39 | CH32: 44 | CI32: 42 | CJ32: 42 | CK32: 38 | CL32: 28 | CM32: 32
A33: 28 | B33: 31 | C33: 32 | D33: 32 | E33: 28 | F33: 24 | G33: 21 | AE33: 3 | AG33: 18 | AH33: 19 | AI33: 19 | AJ33: 23 | AK33: 45 | AL33: 45 | AM33: 45 | AN33: 44 | AO33: 43 | AP33: 44 | AQ33: 44 | AR33: 45 | AS33: 45 | AT33: 45 | AU33: 45 | AV33: 45 | AW33: 44 | AX33: 44 | AY33: 44 | AZ33: 43 | BA33: 43 | BB33: 42 | BC33: 42 | BD33: 39 | BE33: 39 | BF33: 39 | BG33: 39 | BH33: 36 | BT33: 6 | BU33: 16 | BV33: 36 | BW33: 40 | BX33: 41 | BY33: 41 | BZ33: 42 | CA33: 42 | CB33: 41 | CC33: 41 | CD33: 39 | CE33: 37 | CF33: 33 | CG33: 38 | CH33: 43 | CI33: 42 | CJ33: 42 | CK33: 41 | CL33: 36 | CM33: 28
A34: 12 | C34: 24 | D34: 6 | E34: 6 | AI34: 18 | AJ34: 19 | AK34: 34 | AL34: 45 | AM34: 45 | AN34: 45 | AO34: 44 | AP34: 45 | AQ34: 45 | AR34: 45 | AS34: 45 | AT34: 44 | AU34: 44 | AV34: 45 | AW34: 45 | AX34: 43 | AY34: 43 | AZ34: 42 | BA34: 43 | BB34: 41 | BC34: 40 | BD34: 39 | BE34: 38 | BF34: 36 | BG34: 33 | BH34: 33 | BU34: 2 | BV34: 12 | BW34: 12 | BX34: 28 | BY34: 34 | BZ34: 32 | CA34: 37 | CB34: 40 | CC34: 40 | CD34: 39 | CE34: 38 | CF34: 35 | CG34: 38 | CH34: 40 | CI34: 42 | CJ34: 41 | CK34: 41 | CL34: 40 | CM34: 12
A35: 6 | B35: 4 | AJ35: 18 | AK35: 28 | AL35: 33 | AM35: 34 | AN35: 45 | AO35: 45 | AP35: 45 | AQ35: 45 | AR35: 45 | AS35: 45 | AT35: 45 | AU35: 45 | AV35: 45 | AW35: 45 | AX35: 44 | AY35: 41 | AZ35: 41 | BA35: 43 | BB35: 40 | BC35: 39 | BD35: 38 | BE35: 37 | BF35: 36 | BG35: 32 | BH35: 27 | BS35: 2 | BV35: 14 | BW35: 14 | BX35: 16 | BY35: 14 | BZ35: 31 | CA35: 37 | CB35: 38 | CC35: 39 | CD35: 39 | CE35: 38 | CF35: 36 | CG35: 38 | CH35: 40 | CI35: 40 | CJ35: 39 | CK35: 32 | CL35: 9 | CM35: 6
A36: 7 | B36: 6 | C36: 5 | D36: 4 | E36: 45 | F36: 45 | AI36: 7 | AJ36: 15 | AK36: 27 | AL36: 27 | AM36: 24 | AN36: 18 | AO36: 45 | AP36: 45 | AQ36: 45 | AR36: 45 | AS36: 37 | AT36: 36 | AU36: 36 | AV36: 35 | AW36: 45 | AX36: 45 | AY36: 45 | AZ36: 44 | BA36: 42 | BB36: 40 | BC36: 37 | BD36: 36 | BE36: 35 | BF36: 32 | BG36: 13 | BQ36: 6 | BR36: 8 | BS36: 8 | BT36: 7 | BX36: 16 | BY36: 33 | BZ36: 35 | CA36: 37 | CB36: 37 | CC36: 37 | CD36: 35 | CE36: 37 | CF36: 36 | CG36: 37 | CH36: 39 | CI36: 39 | CJ36: 32 | CK36: 29 | CL36: 8 | CM36: 7
A37: 10 | B37: 14 | C37: 15 | D37: 14 | E37: 45 | F37: 45 | G37: 45 | H37: 45 | I37: 45 | AI37: 7 | AJ37: 14 | AK37: 16 | AL37: 15 | AM37: 19 | AN37: 18 | AO37: 10 | AP37: 37 | AQ37: 36 | AR37: 36 | AS37: 36 | AT37: 36 | AU37: 36 | AV37: 35 | AW37: 22 | AX37: 8 | AY37: 6 | AZ37: 12 | BA37: 42 | BB37: 42 | BC37: 39 | BD37: 35 | BE37: 33 | BF37: 11 | BO37: 7 | BP37: 9 | BQ37: 12 | BR37: 12 | BS37: 10 | BT37: 8 | BU37: 2 | BV37: 13 | BW37: 13 | BX37: 32 | BY37: 34 | BZ37: 35 | CA37: 36 | CB37: 35 | CC37: 35 | CD37: 33 | CE37: 32 | CF37: 34 | CG37: 34 | CH37: 33 | CI37: 31 | CJ37: 31 | CK37: 29 | CL37: 21 | CM37: 10
A38: 32 | B38: 28 | C38: 15 | D38: 11 | E38: 45 | F38: 45 | G38: 45 | H38: 45 | I38: 45 | AN38: 12 | AO38: 10 | AP38: 6 | AQ38: 12 | AR38: 34 | AS38: 35 | AT38: 34 | AU38: 12 | AV38: 7 | AW38: 6 | AX38: 3 | AY38: 2 | BA38: 7 | BB38: 12 | BC38: 7 | BD38: 2 | BO38: 7 | BP38: 10 | BQ38: 12 | BR38: 12 | BS38: 13 | BT38: 15 | BU38: 15 | BV38: 19 | BW38: 19 | BX38: 32 | BY38: 34 | BZ38: 34 | CA38: 33 | CB38: 24 | CC38: 33 | CD38: 33 | CE38: 33 | CF38: 29 | CG38: 31 | CH38: 32 | CI38: 31 | CJ38: 28 | CK38: 34 | CL38: 34 | CM38: 32
A39: 35 | B39: 32 | C39: 30 | D39: 21 | E39: 13 | F39: 45 | G39: 45 | K39: 6 | L39: 6 | M39: 5 | N39: 5 | S39: 2 | AS39: 2 | AT39: 7 | AU39: 7 | AV39: 6 | AW39: 6 | AX39: 4 | AY39: 2 | BJ39: 6 | BK39: 10 | BL39: 7 | BM39: 6 | BN39: 6 | BO39: 2 | BQ39: 7 | BR39: 14 | BS39: 16 | BT39: 11 | BU39: 8 | BV39: 21 | BW39: 27 | BX39: 27 | BY39: 23 | BZ39: 21 | CA39: 2 | CC39: 18 | CD39: 29 | CE39: 31 | CF39: 29 | CG39: 26 | CH39: 22 | CI39: 26 | CJ39: 28 | CK39: 34 | CL39: 35 | CM39: 35
A40: 35 | B40: 34 | C40: 33 | D40: 33 | E40: 31 | F40: 15 | G40: 15 | H40: 15 | I40: 15 | J40: 13 | K40: 14 | L40: 13 | M40: 11 | N40: 9 | O40: 14 | P40: 13 | Q40: 10 | R40: 8 | S40: 2 | T40: 2 | U40: 2 | V40: 2 | AG40: 2 | AH40: 2 | AI40: 2 | AJ40: 2 | AK40: 2 | AL40: 2 | AM40: 2 | AN40: 3 | AO40: 3 | AP40: 5 | AQ40: 5 | AR40: 5 | AS40: 5 | AT40: 6 | AU40: 6 | AV40: 6 | AW40: 6 | AX40: 5 | AY40: 7 | AZ40: 17 | BA40: 33 | BB40: 35 | BC40: 34 | BD40: 33 | BE40: 31 | BF40: 28 | BG40: 16 | BH40: 17 | BI40: 17 | BJ40: 15 | BK40: 10 | BL40: 7 | BM40: 13 | BN40: 11 | BO40: 15 | BP40: 13 | BQ40: 10 | BR40: 8 | BS40: 6 | BT40: 8 | BU40: 28 | BV40: 29 | BW40: 30 | BX40: 29 | BY40: 18 | BZ40: 17 | CE40: 11 | CF40: 16 | CG40: 26 | CH40: 27 | CI40: 27 | CJ40: 30 | CK40: 33 | CL40: 35 | CM40: 35
A41: 35 | B41: 34 | C41: 34 | D41: 31 | E41: 28 | F41: 16 | G41: 16 | H41: 16 | I41: 15 | J41: 14 | K41: 14 | L41: 14 | M41: 14 | N41: 13 | O41: 14 | P41: 16 | Q41: 13 | R41: 13 | S41: 12 | T41: 7 | U41: 6 | V41: 4 | W41: 4 | X41: 2 | Z41: 2 | AA41: 2 | AB41: 2 | AC41: 2 | AD41: 6 | AE41: 7 | AF41: 7 | AG41: 6 | AH41: 5 | AI41: 4 | AJ41: 3 | AK41: 2 | AL41: 2 | AM41: 4 | AN41: 4 | AO41: 5 | AP41: 8 | AQ41: 11 | AR41: 12 | AS41: 17 | AT41: 22 | AU41: 29 | AV41: 29 | AW41: 26 | AX41: 29 | AY41: 35 | AZ41: 37 | BA41: 37 | BB41: 36 | BC41: 36 | BD41: 35 | BE41: 35 | BF41: 35 | BG41: 28 | BH41: 17 | BI41: 17 | BJ41: 17 | BK41: 16 | BL41: 15 | BM41: 16 | BN41: 13 | BO41: 15 | BP41: 16 | BQ41: 17 | BR41: 19 | BS41: 20 | BT41: 21 | BU41: 28 | BV41: 30 | BW41: 30 | BX41: 29 | BY41: 19 | BZ41: 2 | CF41: 2 | CG41: 16 | CH41: 23 | CI41: 30 | CJ41: 33 | CK41: 35 | CL41: 35 | CM41: 35
A42: 35 | B42: 35 | C42: 33 | D42: 30 | E42: 20 | F42: 13 | G42: 12 | H42: 13 | I42: 14 | J42: 14 | K42: 14 | L42: 14 | M42: 16 | N42: 14 | O42: 14 | P42: 14 | Q42: 16 | R42: 17 | S42: 17 | T42: 16 | U42: 10 | V42: 15 | W42: 15 | X42: 12 | Y42: 8 | Z42: 12 | AA42: 26 | AB42: 30 | AC42: 33 | AD42: 34 | AE42: 34 | AF42: 35 | AG42: 35 | AH42: 35 | AI42: 34 | AJ42: 32 | AK42: 27 | AL42: 23 | AM42: 22 | AN42: 29 | AO42: 31 | AP42: 31 | AQ42: 31 | AR42: 31 | AS42: 30 | AT42: 27 | AU42: 31 | AV42: 33 | AW42: 34 | AX42: 33 | AY42: 36 | AZ42: 37 | BA42: 37 | BB42: 36 | BC42: 36 | BD42: 36 | BE42: 36 | BF42: 35 | BG42: 35 | BH42: 33 | BI42: 31 | BJ42: 28 | BK42: 19 | BL42: 17 | BM42: 16 | BN42: 18 | BO42: 16 | BP42: 16 | BQ42: 16 | BR42: 16 | BS42: 15 | BT42: 17 | BU42: 19 | BV42: 17 | BW42: 16 | BX42: 16 | CG42: 2 | CH42: 12 | CI42: 13 | CJ42: 17 | CK42: 32 | CL42: 35 | CM42: 35
A43: 36 | B43: 36 | C43: 36 | D43: 36 | E43: 36 | F43: 36 | G43: 36 | H43: 36 | I43: 36 | J43: 36 | K43: 36 | L43: 36 | M43: 35 | N43: 35 | O43: 35 | P43: 35 | Q43: 35 | R43: 34 | S43: 34 | T43: 35 | U43: 35 | V43: 35 | W43: 35 | X43: 36 | Y43: 35 | Z43: 35 | AA43: 35 | AB43: 35 | AC43: 36 | AD43: 36 | AE43: 37 | AF43: 37 | AG43: 37 | AH43: 37 | AI43: 37 | AJ43: 34 | AK43: 30 | AL43: 31 | AM43: 32 | AN43: 32 | AO43: 33 | AP43: 34 | AQ43: 34 | AR43: 33 | AS43: 32 | AT43: 31 | AU43: 33 | AV43: 36 | AW43: 36 | AX43: 36 | AY43: 36 | AZ43: 36 | BA43: 36 | BB43: 36 | BC43: 36 | BD43: 36 | BE43: 36 | BF43: 36 | BG43: 36 | BH43: 35 | BI43: 35 | BJ43: 35 | BK43: 32 | BL43: 31 | BM43: 31 | BN43: 29 | BO43: 28 | BP43: 27 | BQ43: 27 | BR43: 27 | BS43: 27 | BT43: 25 | BU43: 19 | BV43: 17 | BW43: 19 | BX43: 19 | BY43: 17 | BZ43: 17 | CA43: 16 | CB43: 16 | CC43: 16 | CD43: 16 | CE43: 15 | CF43: 17 | CG43: 28 | CH43: 35 | CI43: 37 | CJ43: 37 | CK43: 36 | CL43: 36 | CM43: 36
A44: 38 | B44: 38 | C44: 38 | D44: 38 | E44: 38 | F44: 38 | G44: 38 | H44: 38 | I44: 38 | J44: 38 | K44: 38 | L44: 38 | M44: 38 | N44: 38 | O44: 39 | P44: 39 | Q44: 38 | R44: 38 | S44: 38 | T44: 38 | U44: 38 | V44: 38 | W44: 38 | X44: 38 | Y44: 38 | Z44: 38 | AA44: 38 | AB44: 38 | AC44: 38 | AD44: 38 | AE44: 37 | AF44: 37 | AG44: 37 | AH44: 37 | AI44: 37 | AJ44: 34 | AK44: 33 | AL44: 34 | AM44: 36 | AN44: 37 | AO44: 36 | AP44: 36 | AQ44: 36 | AR44: 36 | AS44: 36 | AT44: 36 | AU44: 36 | AV44: 37 | AW44: 37 | AX44: 36 | AY44: 36 | AZ44: 36 | BA44: 35 | BB44: 35 | BC44: 35 | BD44: 34 | BE44: 34 | BF44: 34 | BG44: 34 | BH44: 34 | BI44: 34 | BJ44: 33 | BK44: 32 | BL44: 32 | BM44: 32 | BN44: 32 | BO44: 31 | BP44: 30 | BQ44: 31 | BR44: 31 | BS44: 31 | BT44: 31 | BU44: 31 | BV44: 30 | BW44: 29 | BX44: 27 | BY44: 29 | BZ44: 31 | CA44: 33 | CB44: 33 | CC44: 34 | CD44: 35 | CE44: 35 | CF44: 36 | CG44: 37 | CH44: 37 | CI44: 37 | CJ44: 38 | CK44: 38 | CL44: 38 | CM44: 38
A45: 38 | B45: 38 | C45: 38 | D45: 38 | E45: 38 | F45: 38 | G45: 38 | H45: 38 | I45: 38 | J45: 38 | K45: 38 | L45: 38 | M45: 38 | N45: 38 | O45: 39 | P45: 39 | Q45: 38 | R45: 38 | S45: 38 | T45: 38 | U45: 38 | V45: 38 | W45: 38 | X45: 38 | Y45: 38 | Z45: 38 | AA45: 38 | AB45: 38 | AC45: 38 | AD45: 38 | AE45: 38 | AF45: 38 | AG45: 38 | AH45: 38 | AI45: 38 | AJ45: 38 | AK45: 38 | AL45: 38 | AM45: 38 | AN45: 38 | AO45: 38 | AP45: 38 | AQ45: 38 | AR45: 38 | AS45: 38 | AT45: 38 | AU45: 38 | AV45: 38 | AW45: 38 | AX45: 38 | AY45: 38 | AZ45: 38 | BA45: 38 | BB45: 38 | BC45: 38 | BD45: 38 | BE45: 38 | BF45: 38 | BG45: 38 | BH45: 38 | BI45: 38 | BJ45: 38 | BK45: 38 | BL45: 38 | BM45: 38 | BN45: 38 | BO45: 38 | BP45: 38 | BQ45: 38 | BR45: 38 | BS45: 38 | BT45: 38 | BU45: 38 | BV45: 38 | BW45: 38 | BX45: 38 | BY45: 38 | BZ45: 38 | CA45: 38 | CB45: 38 | CC45: 38 | CD45: 38 | CE45: 38 | CF45: 38 | CG45: 38 | CH45: 38 | CI45: 38 | CJ45: 38 | CK45: 38 | CL45: 38 | CM45: 38

Sheet p_ref
A1: 0
A2: 10
A3: 20
A4: 30
A5: 40
A6: 50
A7: 76
A8: 101
A9: 126
A10: 151
A11: 176
A12: 202
A13: 252
A14: 303
A15: 353
A16: 404
A17: 505
A18: 606
A19: 707
A20: 808
A21: 909
A22: 1010
A23: 1111
A24: 1213
A25: 1314
A26: 1416
A27: 1517
A28: 1771
A29: 2025
A30: 2279
A31: 2534
A32: 2789
A33: 3045
A34: 3300
A35: 3556
A36: 3812
A37: 4069
A38: 4325
A39: 4583
A40: 4840
A41: 5098
A42: 5355
A43: 5614
A44: 5872
A45: 6131

Sheet deltaSA_ref
